Body Name,Vendor Number,Vendor Name,Cost Centre,Service Label,BV Code,Amount,Period
Slough Borough Council,806064,24 X 7 Buckinghamshire Ltd,F123,Education & Inclusion,Supplies and Services,"1,486.24",Sep-22
Slough Borough Council,806064,24 X 7 Buckinghamshire Ltd,F123,Education & Inclusion,Supplies and Services,"1,804.72",Sep-22
Slough Borough Council,804709,247 Careservices Ltd,M44D,Adult Social Care Operations,Supplies and Services,"11,160.00",Sep-22
Slough Borough Council,804709,247 Careservices Ltd,M44D,Adult Social Care Operations,Supplies and Services,"11,160.00",Sep-22
Slough Borough Council,806901,4way Consulting Ltd,P240,Capital,Capital Charges,755.26,Sep-22
Slough Borough Council,536,Ability Housing Association,M42E,Adult Social Care Operations,Supplies and Services,"2,851.86",Sep-22
Slough Borough Council,536,Ability Housing Association,M42E,Adult Social Care Operations,Supplies and Services,"3,493.57",Sep-22
Slough Borough Council,536,Ability Housing Association,M42E,Adult Social Care Operations,Supplies and Services,"2,630.94",Sep-22
Slough Borough Council,536,Ability Housing Association,M42E,Adult Social Care Operations,Supplies and Services,"2,731.36",Sep-22
Slough Borough Council,536,Ability Housing Association,M42E,Adult Social Care Operations,Supplies and Services,"2,688.19",Sep-22
Slough Borough Council,536,Ability Housing Association,M42E,Adult Social Care Operations,Supplies and Services,"2,530.52",Sep-22
Slough Borough Council,536,Ability Housing Association,M42E,Adult Social Care Operations,Supplies and Services,"1,446.01",Sep-22
Slough Borough Council,536,Ability Housing Association,M42E,Adult Social Care Operations,Supplies and Services,"1,894.89",Sep-22
Slough Borough Council,536,Ability Housing Association,M42E,Adult Social Care Operations,Supplies and Services,"2,437.14",Sep-22
Slough Borough Council,536,Ability Housing Association,M42E,Adult Social Care Operations,Supplies and Services,"2,758.46",Sep-22
Slough Borough Council,536,Ability Housing Association,M42E,Adult Social Care Operations,Supplies and Services,"2,517.48",Sep-22
Slough Borough Council,536,Ability Housing Association,M42E,Adult Social Care Operations,Supplies and Services,"1,272.30",Sep-22
Slough Borough Council,536,Ability Housing Association,M42E,Adult Social Care Operations,Supplies and Services,"3,039.65",Sep-22
Slough Borough Council,536,Ability Housing Association,M42E,Adult Social Care Operations,Supplies and Services,"2,698.23",Sep-22
Slough Borough Council,536,Ability Housing Association,M42E,Adult Social Care Operations,Supplies and Services,"2,675.13",Sep-22
Slough Borough Council,536,Ability Housing Association,M42E,Adult Social Care Operations,Supplies and Services,"1,855.72",Sep-22
Slough Borough Council,536,Ability Housing Association,M42E,Adult Social Care Operations,Supplies and Services,"3,076.80",Sep-22
Slough Borough Council,536,Ability Housing Association,M44E,Adult Social Care Operations,Supplies and Services,"1,815.55",Sep-22
Slough Borough Council,536,Ability Housing Association,M44E,Adult Social Care Operations,Supplies and Services,"1,883.84",Sep-22
Slough Borough Council,536,Ability Housing Association,M44E,Adult Social Care Operations,Supplies and Services,"2,221.24",Sep-22
Slough Borough Council,536,Ability Housing Association,M44E,Adult Social Care Operations,Supplies and Services,"2,301.58",Sep-22
Slough Borough Council,807554,Acorn Care & Education Ltd,F558,Children & Families,Supplies and Services,"2,610.00",Sep-22
Slough Borough Council,807554,Acorn Care & Education Ltd,F558,Children & Families,Supplies and Services,"1,914.00",Sep-22
Slough Borough Council,807554,Acorn Care & Education Ltd,F558,Children & Families,Supplies and Services,"3,654.00",Sep-22
Slough Borough Council,805529,Action First Recrutiment Ltd,A02A,Adult Social Care Operations,Supplies and Services,"3,830.00",Sep-22
Slough Borough Council,2185,Activate Learning,F558,Children & Families,Supplies and Services,"22,123.00",Sep-22
Slough Borough Council,2855,Advance Housing & Support Ltd,M27F,Adult Social Care Operations,Supplies and Services,731.60,Sep-22
Slough Borough Council,2855,Advance Housing & Support Ltd,M27F,Adult Social Care Operations,Supplies and Services,731.60,Sep-22
Slough Borough Council,2855,Advance Housing & Support Ltd,M42F,Adult Social Care Operations,Supplies and Services,"1,097.40",Sep-22
Slough Borough Council,2855,Advance Housing & Support Ltd,M42F,Adult Social Care Operations,Supplies and Services,"1,170.56",Sep-22
Slough Borough Council,2855,Advance Housing & Support Ltd,M42F,Adult Social Care Operations,Supplies and Services,"1,097.40",Sep-22
Slough Borough Council,2855,Advance Housing & Support Ltd,M42F,Adult Social Care Operations,Supplies and Services,731.60,Sep-22
Slough Borough Council,2855,Advance Housing & Support Ltd,M42F,Adult Social Care Operations,Supplies and Services,"1,609.52",Sep-22
Slough Borough Council,2855,Advance Housing & Support Ltd,M42F,Adult Social Care Operations,Supplies and Services,731.60,Sep-22
Slough Borough Council,2855,Advance Housing & Support Ltd,M42F,Adult Social Care Operations,Supplies and Services,"1,609.52",Sep-22
Slough Borough Council,2855,Advance Housing & Support Ltd,M42F,Adult Social Care Operations,Supplies and Services,"1,170.56",Sep-22
Slough Borough Council,2855,Advance Housing & Support Ltd,M42F,Adult Social Care Operations,Supplies and Services,"1,864.72",Sep-22
Slough Borough Council,2855,Advance Housing & Support Ltd,M42F,Adult Social Care Operations,Supplies and Services,"1,864.72",Sep-22
Slough Borough Council,2855,Advance Housing & Support Ltd,M42F,Adult Social Care Operations,Supplies and Services,"1,864.72",Sep-22
Slough Borough Council,2855,Advance Housing & Support Ltd,M42F,Adult Social Care Operations,Supplies and Services,"1,864.72",Sep-22
Slough Borough Council,2855,Advance Housing & Support Ltd,M42F,Adult Social Care Operations,Supplies and Services,"1,864.72",Sep-22
Slough Borough Council,2855,Advance Housing & Support Ltd,M42F,Adult Social Care Operations,Supplies and Services,"1,864.72",Sep-22
Slough Borough Council,2855,Advance Housing & Support Ltd,M42F,Adult Social Care Operations,Supplies and Services,"1,864.72",Sep-22
Slough Borough Council,2855,Advance Housing & Support Ltd,M42F,Adult Social Care Operations,Supplies and Services,"1,864.72",Sep-22
Slough Borough Council,2855,Advance Housing & Support Ltd,M42F,Adult Social Care Operations,Supplies and Services,"1,864.72",Sep-22
Slough Borough Council,2855,Advance Housing & Support Ltd,M42F,Adult Social Care Operations,Supplies and Services,"1,864.72",Sep-22
Slough Borough Council,2855,Advance Housing & Support Ltd,M42F,Adult Social Care Operations,Supplies and Services,"1,097.40",Sep-22
Slough Borough Council,2855,Advance Housing & Support Ltd,M42F,Adult Social Care Operations,Supplies and Services,731.60,Sep-22
Slough Borough Council,807002,Advanced Card Bureau LTD,J020,Place Management,Supplies and Services,"4,982.09",Sep-22
Slough Borough Council,2135,Adventure Learning Childcare Limited,F909,Children & Families,Supplies and Services,"11,268.87",Sep-22
Slough Borough Council,805178,AFM Transport Limited,D880,Place Operations,Supplies and Services,"2,120.00",Sep-22
Slough Borough Council,805178,AFM Transport Limited,D880,Place Operations,Supplies and Services,"3,008.00",Sep-22
Slough Borough Council,805178,AFM Transport Limited,D880,Place Operations,Supplies and Services,"13,163.76",Sep-22
Slough Borough Council,805178,AFM Transport Limited,D880,Place Operations,Supplies and Services,"2,600.00",Sep-22
Slough Borough Council,805178,AFM Transport Limited,D880,Place Operations,Supplies and Services,"2,973.30",Sep-22
Slough Borough Council,805178,AFM Transport Limited,D880,Place Operations,Supplies and Services,"15,225.94",Sep-22
Slough Borough Council,805178,AFM Transport Limited,D880,Place Operations,Supplies and Services,"2,072.48",Sep-22
Slough Borough Council,805178,AFM Transport Limited,D880,Place Operations,Supplies and Services,"1,040.00",Sep-22
Slough Borough Council,805178,AFM Transport Limited,D880,Place Operations,Supplies and Services,"1,696.00",Sep-22
Slough Borough Council,805178,AFM Transport Limited,D880,Place Operations,Supplies and Services,"1,272.00",Sep-22
Slough Borough Council,805178,AFM Transport Limited,D880,Place Operations,Supplies and Services,"9,982.96",Sep-22
Slough Borough Council,805178,AFM Transport Limited,D880,Place Operations,Supplies and Services,"2,599.36",Sep-22
Slough Borough Council,805178,AFM Transport Limited,D880,Place Operations,Supplies and Services,"14,310.24",Sep-22
Slough Borough Council,805178,AFM Transport Limited,D880,Place Operations,Supplies and Services,922.12,Sep-22
Slough Borough Council,805178,AFM Transport Limited,D880,Place Operations,Supplies and Services,725.12,Sep-22
Slough Borough Council,805178,AFM Transport Limited,D880,Place Operations,Supplies and Services,"1,040.00",Sep-22
Slough Borough Council,805178,AFM Transport Limited,D880,Place Operations,Supplies and Services,"3,064.00",Sep-22
Slough Borough Council,805178,AFM Transport Limited,D880,Place Operations,Supplies and Services,"3,023.36",Sep-22
Slough Borough Council,805178,AFM Transport Limited,D880,Place Operations,Supplies and Services,"10,313.12",Sep-22
Slough Borough Council,2486,Agriculture And Estate Services Limited,P220,Capital,Capital Charges,"2,503.00",Sep-22
Slough Borough Council,2486,Agriculture And Estate Services Limited,P220,Capital,Capital Charges,600.00,Sep-22
Slough Borough Council,2486,Agriculture And Estate Services Limited,P220,Capital,Capital Charges,"3,256.00",Sep-22
Slough Borough Council,806268,Allied Publicity Services (Manchester) Limited,A120,Customer,Supplies and Services,675.14,Sep-22
Slough Borough Council,2956,Alpha Parking Limited,D123,Place Strategy & Infrastructure,Indirect Employee Expenses,785.00,Sep-22
Slough Borough Council,2197,Altwood Housing Ltd,H205,Housing (People) Services,Supplies and Services,561.00,Sep-22
Slough Borough Council,2197,Altwood Housing Ltd,H205,Housing (People) Services,Supplies and Services,930.00,Sep-22
Slough Borough Council,2197,Altwood Housing Ltd,H205,Housing (People) Services,Supplies and Services,930.00,Sep-22
Slough Borough Council,2197,Altwood Housing Ltd,H205,Housing (People) Services,Supplies and Services,930.00,Sep-22
Slough Borough Council,2197,Altwood Housing Ltd,H205,Housing (People) Services,Supplies and Services,"2,325.00",Sep-22
Slough Borough Council,2197,Altwood Housing Ltd,H205,Housing (People) Services,Supplies and Services,930.00,Sep-22
Slough Borough Council,2197,Altwood Housing Ltd,H205,Housing (People) Services,Supplies and Services,930.00,Sep-22
Slough Borough Council,2197,Altwood Housing Ltd,H205,Housing (People) Services,Supplies and Services,"1,240.00",Sep-22
Slough Borough Council,2197,Altwood Housing Ltd,H205,Housing (People) Services,Supplies and Services,"1,705.00",Sep-22
Slough Borough Council,2197,Altwood Housing Ltd,H205,Housing (People) Services,Supplies and Services,930.00,Sep-22
Slough Borough Council,2197,Altwood Housing Ltd,H205,Housing (People) Services,Supplies and Services,"1,240.00",Sep-22
Slough Borough Council,2197,Altwood Housing Ltd,H205,Housing (People) Services,Supplies and Services,"1,705.00",Sep-22
Slough Borough Council,2197,Altwood Housing Ltd,H205,Housing (People) Services,Supplies and Services,"1,218.00",Sep-22
Slough Borough Council,2197,Altwood Housing Ltd,H205,Housing (People) Services,Supplies and Services,744.00,Sep-22
Slough Borough Council,2197,Altwood Housing Ltd,H205,Housing (People) Services,Supplies and Services,550.00,Sep-22
Slough Borough Council,2197,Altwood Housing Ltd,H205,Housing (People) Services,Supplies and Services,744.00,Sep-22
Slough Borough Council,2197,Altwood Housing Ltd,H205,Housing (People) Services,Supplies and Services,930.00,Sep-22
Slough Borough Council,86,Altwood Properties Ltd,H205,Housing (People) Services,Premises,"55,169.41",Sep-22
Slough Borough Council,807515,Always Growing Together Community Interest Company Limited,F909,Children & Families,Supplies and Services,"9,888.06",Sep-22
Slough Borough Council,808191,Ambrose Adrian Healthcare Ltd,M44E,Adult Social Care Operations,Supplies and Services,"3,800.00",Sep-22
Slough Borough Council,808191,Ambrose Adrian Healthcare Ltd,M44E,Adult Social Care Operations,Supplies and Services,"1,045.00",Sep-22
Slough Borough Council,808191,Ambrose Adrian Healthcare Ltd,M44E,Adult Social Care Operations,Supplies and Services,"3,800.00",Sep-22
Slough Borough Council,808562,Andy Clements,F253,Children & Families,Agency Staff,"1,824.00",Sep-22
Slough Borough Council,808368,Anthony Toby Homes Trust,M26E,Adult Social Care Operations,Supplies and Services,"5,239.15",Sep-22
Slough Borough Council,807893,Antz Kidz Activity Centre,F382,Children & Families,Supplies and Services,"11,222.50",Sep-22
Slough Borough Council,3137,Applegarth Care Home Ltd,M25C,Adult Social Care Operations,Supplies and Services,"3,200.00",Sep-22
Slough Borough Council,3137,Applegarth Care Home Ltd,M25C,Adult Social Care Operations,Supplies and Services,"3,400.00",Sep-22
Slough Borough Council,3137,Applegarth Care Home Ltd,M27C,Adult Social Care Operations,Supplies and Services,"3,500.00",Sep-22
Slough Borough Council,805234,Aquam Water Services Limited,D620,Place Operations,Supplies and Services,"3,168.44",Sep-22
Slough Borough Council,3350,Arbour Vale School,E610,Children & Families,Supplies and Services,"877,970.14",Sep-22
Slough Borough Council,2073,Arc Preschool,F909,Children & Families,Supplies and Services,"5,820.15",Sep-22
Slough Borough Council,831,Argos Business Solutions Ltd,H055,Finance & Commercial,Supplies and Services,"9,705.25",Sep-22
Slough Borough Council,831,Argos Business Solutions Ltd,H055,Finance & Commercial,Supplies and Services,"4,075.00",Sep-22
Slough Borough Council,831,Argos Business Solutions Ltd,H055,Finance & Commercial,Supplies and Services,630.50,Sep-22
Slough Borough Council,831,Argos Business Solutions Ltd,H055,Finance & Commercial,Supplies and Services,"2,377.00",Sep-22
Slough Borough Council,831,Argos Business Solutions Ltd,H055,Finance & Commercial,Supplies and Services,"4,251.40",Sep-22
Slough Borough Council,831,Argos Business Solutions Ltd,H055,Finance & Commercial,Supplies and Services,"4,612.50",Sep-22
Slough Borough Council,1985,Ascentis,F210,Community,TP-Other Bodies,700.00,Sep-22
Slough Borough Council,420,Ashburn Estate Agents,H205,Housing (People) Services,Premises,"122,459.00",Sep-22
Slough Borough Council,3666,Assisted Living South West,M26E,Adult Social Care Operations,Supplies and Services,"6,102.44",Sep-22
Slough Borough Council,3666,Assisted Living South West,M26E,Adult Social Care Operations,Supplies and Services,"4,816.04",Sep-22
Slough Borough Council,3666,Assisted Living South West,M26E,Adult Social Care Operations,Supplies and Services,"4,816.04",Sep-22
Slough Borough Council,3666,Assisted Living South West,M26E,Adult Social Care Operations,Supplies and Services,"6,102.44",Sep-22
Slough Borough Council,1292,Association Of Electoral Administrators,B240,Business Services,Salaries and Wages,"3,264.00",Sep-22
Slough Borough Council,804324,Astoria Healthcare,M27F,Adult Social Care Operations,Supplies and Services,"4,275.00",Sep-22
Slough Borough Council,570,Atkins Limited,P212,Capital,Capital Charges,"10,000.00",Sep-22
Slough Borough Council,803408,Basingstoke and Deane Borough Council,B079,Place Strategy & Infrastructure,External Receipts,"15,205.64",Sep-22
Slough Borough Council,803408,Basingstoke and Deane Borough Council,B079,Place Strategy & Infrastructure,External Receipts,"15,205.64",Sep-22
Slough Borough Council,3370,Baylis Court School,E610,Children & Families,Supplies and Services,919.98,Sep-22
Slough Borough Council,1681,Bcq,B246,Governance,Supplies and Services,"2,373.00",Sep-22
Slough Borough Council,1681,Bcq,B246,Governance,Supplies and Services,"5,148.00",Sep-22
Slough Borough Council,3208,Be Happy Pre School,F909,Children & Families,Supplies and Services,"4,118.26",Sep-22
Slough Borough Council,3208,Be Happy Pre School,F909,Children & Families,Supplies and Services,"8,019.49",Sep-22
Slough Borough Council,609,Beechwood Secondary School,E610,Children & Families,Supplies and Services,"7,472.14",Sep-22
Slough Borough Council,804588,BEN Motor & Allied Trades Bev.Fnd,M15D,Adult Social Care Operations,Supplies and Services,"6,400.00",Sep-22
Slough Borough Council,804588,BEN Motor & Allied Trades Bev.Fnd,M27C,Adult Social Care Operations,Supplies and Services,"5,600.00",Sep-22
Slough Borough Council,612,Berkshire Healthcare Nhs Foundation Trust,A07M,Mental Health Services,Agency Staff,"49,513.98",Sep-22
Slough Borough Council,612,Berkshire Healthcare Nhs Foundation Trust,A07M,Mental Health Services,Agency Staff,"22,597.50",Sep-22
Slough Borough Council,612,Berkshire Healthcare Nhs Foundation Trust,A07M,Mental Health Services,Agency Staff,"19,156.50",Sep-22
Slough Borough Council,612,Berkshire Healthcare Nhs Foundation Trust,A07M,Mental Health Services,Agency Staff,"33,615.00",Sep-22
Slough Borough Council,612,Berkshire Healthcare Nhs Foundation Trust,A07M,Mental Health Services,Agency Staff,"23,406.00",Sep-22
Slough Borough Council,612,Berkshire Healthcare Nhs Foundation Trust,A07M,Mental Health Services,Agency Staff,"28,687.98",Sep-22
Slough Borough Council,612,Berkshire Healthcare Nhs Foundation Trust,A07M,Mental Health Services,Agency Staff,"3,994.50",Sep-22
Slough Borough Council,612,Berkshire Healthcare Nhs Foundation Trust,A07M,Mental Health Services,Agency Staff,"4,827.48",Sep-22
Slough Borough Council,612,Berkshire Healthcare Nhs Foundation Trust,A07M,Mental Health Services,Agency Staff,"16,806.48",Sep-22
Slough Borough Council,612,Berkshire Healthcare Nhs Foundation Trust,A07M,Mental Health Services,Agency Staff,"4,662.00",Sep-22
Slough Borough Council,612,Berkshire Healthcare Nhs Foundation Trust,A07R,Adult Social Care Operations,Supplies and Services,"6,582.00",Sep-22
Slough Borough Council,612,Berkshire Healthcare Nhs Foundation Trust,F417,Education & Inclusion,Supplies and Services,"4,166.67",Sep-22
Slough Borough Council,612,Berkshire Healthcare Nhs Foundation Trust,F417,Education & Inclusion,Supplies and Services,"4,166.67",Sep-22
Slough Borough Council,2308,Bespoke Supportive Tenancies Ltd,A04L,Adult Social Care Operations,Supplies and Services,"1,441.44",Sep-22
Slough Borough Council,2308,Bespoke Supportive Tenancies Ltd,A04L,Adult Social Care Operations,Supplies and Services,"1,595.88",Sep-22
Slough Borough Council,2308,Bespoke Supportive Tenancies Ltd,A04L,Adult Social Care Operations,Supplies and Services,"1,595.88",Sep-22
Slough Borough Council,808148,BEST CHOICE CARE LTD,A07R,Adult Social Care Operations,Supplies and Services,"1,268.75",Sep-22
Slough Borough Council,808148,BEST CHOICE CARE LTD,M44C,Adult Social Care Operations,Supplies and Services,670.63,Sep-22
Slough Borough Council,1736,Bevan Brittan Llp,P159,Capital,Capital Charges,"1,254.00",Sep-22
Slough Borough Council,1224,Big Yellow Self Storage,F253,Children & Families,Premises,"7,212.40",Sep-22
Slough Borough Council,1224,Big Yellow Self Storage,F253,Children & Families,Premises,"2,202.03",Sep-22
Slough Borough Council,808560,Birds of Prey,F382,Children & Families,Supplies and Services,"1,280.00",Sep-22
Slough Borough Council,808452,Black Swan International Limited,M25C,Adult Social Care Operations,Supplies and Services,"3,321.34",Sep-22
Slough Borough Council,808452,Black Swan International Limited,M25C,Adult Social Care Operations,Supplies and Services,"3,964.18",Sep-22
Slough Borough Council,808452,Black Swan International Limited,M25C,Adult Social Care Operations,Supplies and Services,"3,214.20",Sep-22
Slough Borough Council,808452,Black Swan International Limited,M25C,Adult Social Care Operations,Supplies and Services,"3,321.34",Sep-22
Slough Borough Council,808452,Black Swan International Limited,M25C,Adult Social Care Operations,Supplies and Services,"3,214.20",Sep-22
Slough Borough Council,808452,Black Swan International Limited,M25C,Adult Social Care Operations,Supplies and Services,"3,321.34",Sep-22
Slough Borough Council,803828,Blue Willow Day Nursery Ltd,F909,Children & Families,Supplies and Services,"21,852.39",Sep-22
Slough Borough Council,1947,Bmeimaging Limited,D224,Place Regulation,Supplies and Services,"4,865.17",Sep-22
Slough Borough Council,805160,Bouygues E&S FM UK Limited,K523,Building Management,Supplies and Services,"39,896.18",Sep-22
Slough Borough Council,805160,Bouygues E&S FM UK Limited,K522,Building Management,Premises,"47,019.75",Sep-22
Slough Borough Council,805160,Bouygues E&S FM UK Limited,K523,Building Management,Premises,"47,041.09",Sep-22
Slough Borough Council,805160,Bouygues E&S FM UK Limited,K525,Building Management,Premises,"3,149.03",Sep-22
Slough Borough Council,805160,Bouygues E&S FM UK Limited,K522,Building Management,Supplies and Services,"6,822.13",Sep-22
Slough Borough Council,805160,Bouygues E&S FM UK Limited,B060,Business Services,Transport,"16,791.62",Sep-22
Slough Borough Council,805160,Bouygues E&S FM UK Limited,B060,Business Services,Transport,"5,631.02",Sep-22
Slough Borough Council,805060,BPS Dorking Ltd t/a BPS Chartered Surveyors,D224,Place Regulation,Supplies and Services,"3,840.00",Sep-22
Slough Borough Council,805060,BPS Dorking Ltd t/a BPS Chartered Surveyors,D224,Place Regulation,Supplies and Services,"4,640.00",Sep-22
Slough Borough Council,805060,BPS Dorking Ltd t/a BPS Chartered Surveyors,D224,Place Regulation,Supplies and Services,"4,080.00",Sep-22
Slough Borough Council,805060,BPS Dorking Ltd t/a BPS Chartered Surveyors,D224,Place Regulation,Supplies and Services,"4,360.00",Sep-22
Slough Borough Council,2856,Brain Injury Rehabilitation Trust,M26E,Adult Social Care Operations,Supplies and Services,"5,613.57",Sep-22
Slough Borough Council,2856,Brain Injury Rehabilitation Trust,M26E,Adult Social Care Operations,Supplies and Services,"5,432.48",Sep-22
Slough Borough Council,2856,Brain Injury Rehabilitation Trust,M27C,Adult Social Care Operations,Supplies and Services,"7,240.33",Sep-22
Slough Borough Council,805179,Braywood Tree Surgery Ltd,D880,Place Operations,Supplies and Services,700.00,Sep-22
Slough Borough Council,805179,Braywood Tree Surgery Ltd,P220,Capital,Capital Charges,"10,067.20",Sep-22
Slough Borough Council,805179,Braywood Tree Surgery Ltd,P220,Capital,Capital Charges,"9,673.84",Sep-22
Slough Borough Council,805817,Bright World Nurseries,F909,Children & Families,Supplies and Services,"10,380.54",Sep-22
Slough Borough Council,617,British Telecommunications,K089,Place Regulation,Supplies and Services,"1,489.99",Sep-22
Slough Borough Council,504,Britwell Baptist Pre School,F909,Children & Families,Supplies and Services,"6,127.32",Sep-22
Slough Borough Council,2852,Britwell Youth & Community Project,F382,Children & Families,Supplies and Services,"12,835.76",Sep-22
Slough Borough Council,806892,Bucks & Berks SLT Consultancy,F417,Education & Inclusion,Supplies and Services,777.27,Sep-22
Slough Borough Council,806892,Bucks & Berks SLT Consultancy,F417,Education & Inclusion,Supplies and Services,777.27,Sep-22
Slough Borough Council,741,Bunnies Pre-School,F909,Children & Families,Supplies and Services,"6,830.89",Sep-22
Slough Borough Council,741,Bunnies Pre-School,F909,Children & Families,Supplies and Services,"6,920.89",Sep-22
Slough Borough Council,741,Bunnies Pre-School,F909,Children & Families,Supplies and Services,"6,920.89",Sep-22
Slough Borough Council,803553,BUPA CARE HOME (CFH CARE),M25D,Adult Social Care Operations,Supplies and Services,"3,172.00",Sep-22
Slough Borough Council,804448,Bupa Care Homes (ANS) Ltd,M26E,Adult Social Care Operations,Supplies and Services,"7,285.71",Sep-22
Slough Borough Council,804448,Bupa Care Homes (ANS) Ltd,M51C,Adult Social Care Operations,Supplies and Services,"1,215.00",Sep-22
Slough Borough Council,807597,Bytesize Training ltd,B282,Digital and Strategic IT,Supplies and Services,"1,400.00",Sep-22
Slough Borough Council,807597,Bytesize Training ltd,B282,Digital and Strategic IT,Supplies and Services,875.00,Sep-22
Slough Borough Council,2177,C F Roberts (Electrical Contractors)Plc,D152,Place Strategy & Infrastructure,Premises,"3,427.46",Sep-22
Slough Borough Council,629,C.H.O.I.C.E Limited,M26E,Adult Social Care Operations,Supplies and Services,"6,214.33",Sep-22
Slough Borough Council,629,C.H.O.I.C.E Limited,M26E,Adult Social Care Operations,Supplies and Services,"10,409.83",Sep-22
Slough Borough Council,629,C.H.O.I.C.E Limited,M26E,Adult Social Care Operations,Supplies and Services,"8,930.66",Sep-22
Slough Borough Council,629,C.H.O.I.C.E Limited,M26E,Adult Social Care Operations,Supplies and Services,"10,119.86",Sep-22
Slough Borough Council,629,C.H.O.I.C.E Limited,M26E,Adult Social Care Operations,Supplies and Services,"10,386.91",Sep-22
Slough Borough Council,629,C.H.O.I.C.E Limited,M26E,Adult Social Care Operations,Supplies and Services,"11,083.71",Sep-22
Slough Borough Council,629,C.H.O.I.C.E Limited,M26E,Adult Social Care Operations,Supplies and Services,"10,195.63",Sep-22
Slough Borough Council,629,C.H.O.I.C.E Limited,M26E,Adult Social Care Operations,Supplies and Services,"8,456.61",Sep-22
Slough Borough Council,629,C.H.O.I.C.E Limited,M26E,Adult Social Care Operations,Supplies and Services,"10,671.86",Sep-22
Slough Borough Council,629,C.H.O.I.C.E Limited,M42E,Adult Social Care Operations,Supplies and Services,"6,235.03",Sep-22
Slough Borough Council,629,C.H.O.I.C.E Limited,M42E,Adult Social Care Operations,Supplies and Services,"5,677.03",Sep-22
Slough Borough Council,629,C.H.O.I.C.E Limited,M42E,Adult Social Care Operations,Supplies and Services,"6,108.82",Sep-22
Slough Borough Council,629,C.H.O.I.C.E Limited,M42E,Adult Social Care Operations,Supplies and Services,"6,145.35",Sep-22
Slough Borough Council,629,C.H.O.I.C.E Limited,M42E,Adult Social Care Operations,Supplies and Services,"1,107.14",Sep-22
Slough Borough Council,629,C.H.O.I.C.E Limited,M42E,Adult Social Care Operations,Supplies and Services,"6,033.90",Sep-22
Slough Borough Council,629,C.H.O.I.C.E Limited,M42E,Adult Social Care Operations,Supplies and Services,"5,493.90",Sep-22
Slough Borough Council,629,C.H.O.I.C.E Limited,M42E,Adult Social Care Operations,Supplies and Services,"5,911.76",Sep-22
Slough Borough Council,629,C.H.O.I.C.E Limited,M42E,Adult Social Care Operations,Supplies and Services,"5,947.11",Sep-22
Slough Borough Council,629,C.H.O.I.C.E Limited,M42E,Adult Social Care Operations,Supplies and Services,"1,071.43",Sep-22
Slough Borough Council,629,C.H.O.I.C.E Limited,M44F,Adult Social Care Operations,Supplies and Services,"2,608.07",Sep-22
Slough Borough Council,629,C.H.O.I.C.E Limited,M44F,Adult Social Care Operations,Supplies and Services,"2,581.90",Sep-22
Slough Borough Council,629,C.H.O.I.C.E Limited,M44F,Adult Social Care Operations,Supplies and Services,"2,523.94",Sep-22
Slough Borough Council,629,C.H.O.I.C.E Limited,M44F,Adult Social Care Operations,Supplies and Services,"2,498.61",Sep-22
Slough Borough Council,629,C.H.O.I.C.E Limited,M26E,Adult Social Care Operations,External Receipts,-517.29,Sep-22
Slough Borough Council,623,Canon (Uk) Ltd,K059,Business Services,Supplies and Services,"2,603.25",Sep-22
Slough Borough Council,623,Canon (Uk) Ltd,K059,Business Services,Supplies and Services,"2,788.11",Sep-22
Slough Borough Council,623,Canon (Uk) Ltd,K059,Business Services,Supplies and Services,647.79,Sep-22
Slough Borough Council,737,Capita Business Services Ltd,B282,Digital and Strategic IT,Supplies and Services,766.26,Sep-22
Slough Borough Council,737,Capita Business Services Ltd,B282,Digital and Strategic IT,Supplies and Services,"21,495.00",Sep-22
Slough Borough Council,804861,Care Management Group Ltd,M26E,Adult Social Care Operations,Supplies and Services,"14,088.53",Sep-22
Slough Borough Council,804861,Care Management Group Ltd,M26E,Adult Social Care Operations,Supplies and Services,"9,036.64",Sep-22
Slough Borough Council,804861,Care Management Group Ltd,M26E,Adult Social Care Operations,Supplies and Services,"14,744.00",Sep-22
Slough Borough Council,804861,Care Management Group Ltd,M26E,Adult Social Care Operations,Supplies and Services,"-9,743.10",Sep-22
Slough Borough Council,804861,Care Management Group Ltd,M26E,Adult Social Care Operations,Supplies and Services,"14,088.53",Sep-22
Slough Borough Council,804861,Care Management Group Ltd,M26E,Adult Social Care Operations,Supplies and Services,"13,634.06",Sep-22
Slough Borough Council,804861,Care Management Group Ltd,M26E,Adult Social Care Operations,Supplies and Services,"-14,744.00",Sep-22
Slough Borough Council,804861,Care Management Group Ltd,M26E,Adult Social Care Operations,Supplies and Services,"19,744.90",Sep-22
Slough Borough Council,804861,Care Management Group Ltd,M26E,Adult Social Care Operations,Supplies and Services,"13,634.06",Sep-22
Slough Borough Council,804861,Care Management Group Ltd,M26E,Adult Social Care Operations,Supplies and Services,"-10,001.80",Sep-22
Slough Borough Council,804861,Care Management Group Ltd,M42F,Adult Social Care Operations,Supplies and Services,"1,180.90",Sep-22
Slough Borough Council,805621,Care Staff Services,A07R,Adult Social Care Operations,Supplies and Services,612.50,Sep-22
Slough Borough Council,805621,Care Staff Services,A07R,Adult Social Care Operations,Supplies and Services,"1,063.13",Sep-22
Slough Borough Council,805621,Care Staff Services,A07R,Adult Social Care Operations,Supplies and Services,656.25,Sep-22
Slough Borough Council,805621,Care Staff Services,A07R,Adult Social Care Operations,Supplies and Services,765.63,Sep-22
Slough Borough Council,805621,Care Staff Services,A07R,Adult Social Care Operations,Supplies and Services,980.00,Sep-22
Slough Borough Council,805621,Care Staff Services,A07R,Adult Social Care Operations,Supplies and Services,"1,601.25",Sep-22
Slough Borough Council,805621,Care Staff Services,A07R,Adult Social Care Operations,Supplies and Services,"1,715.00",Sep-22
Slough Borough Council,805621,Care Staff Services,A07R,Adult Social Care Operations,Supplies and Services,673.75,Sep-22
Slough Borough Council,805621,Care Staff Services,A07R,Adult Social Care Operations,Supplies and Services,"1,165.50",Sep-22
Slough Borough Council,805621,Care Staff Services,A07R,Adult Social Care Operations,Supplies and Services,-573.30,Sep-22
Slough Borough Council,805621,Care Staff Services,A07R,Adult Social Care Operations,Supplies and Services,"1,102.50",Sep-22
Slough Borough Council,805621,Care Staff Services,A07R,Adult Social Care Operations,Supplies and Services,818.13,Sep-22
Slough Borough Council,805621,Care Staff Services,A07R,Adult Social Care Operations,Supplies and Services,"1,960.00",Sep-22
Slough Borough Council,805621,Care Staff Services,A07R,Adult Social Care Operations,Supplies and Services,"1,960.00",Sep-22
Slough Borough Council,805621,Care Staff Services,A07R,Adult Social Care Operations,Supplies and Services,"1,365.00",Sep-22
Slough Borough Council,805621,Care Staff Services,A07R,Adult Social Care Operations,Supplies and Services,"1,102.50",Sep-22
Slough Borough Council,805621,Care Staff Services,A07R,Adult Social Care Operations,Supplies and Services,"1,102.50",Sep-22
Slough Borough Council,805621,Care Staff Services,A07R,Adult Social Care Operations,Supplies and Services,608.13,Sep-22
Slough Borough Council,805621,Care Staff Services,A07R,Adult Social Care Operations,Supplies and Services,533.75,Sep-22
Slough Borough Council,805621,Care Staff Services,A07R,Adult Social Care Operations,Supplies and Services,"2,082.50",Sep-22
Slough Borough Council,805621,Care Staff Services,A07R,Adult Social Care Operations,Supplies and Services,"1,165.50",Sep-22
Slough Borough Council,805621,Care Staff Services,A07R,Adult Social Care Operations,Supplies and Services,"2,205.00",Sep-22
Slough Borough Council,805621,Care Staff Services,A07R,Adult Social Care Operations,Supplies and Services,717.50,Sep-22
Slough Borough Council,805621,Care Staff Services,M44C,Adult Social Care Operations,Supplies and Services,"2,161.54",Sep-22
Slough Borough Council,805621,Care Staff Services,M44C,Adult Social Care Operations,Supplies and Services,814.00,Sep-22
Slough Borough Council,805621,Care Staff Services,M44C,Adult Social Care Operations,Supplies and Services,"1,960.00",Sep-22
Slough Borough Council,805621,Care Staff Services,M44C,Adult Social Care Operations,Supplies and Services,906.50,Sep-22
Slough Borough Council,805621,Care Staff Services,M44C,Adult Social Care Operations,Supplies and Services,925.00,Sep-22
Slough Borough Council,805621,Care Staff Services,M44C,Adult Social Care Operations,Supplies and Services,"1,351.35",Sep-22
Slough Borough Council,805621,Care Staff Services,M44C,Adult Social Care Operations,Supplies and Services,805.00,Sep-22
Slough Borough Council,805621,Care Staff Services,M44C,Adult Social Care Operations,Supplies and Services,"2,664.00",Sep-22
Slough Borough Council,805621,Care Staff Services,M44C,Adult Social Care Operations,Supplies and Services,857.50,Sep-22
Slough Borough Council,805621,Care Staff Services,M44C,Adult Social Care Operations,Supplies and Services,936.25,Sep-22
Slough Borough Council,805621,Care Staff Services,M44C,Adult Social Care Operations,Supplies and Services,630.00,Sep-22
Slough Borough Council,805621,Care Staff Services,M44C,Adult Social Care Operations,Supplies and Services,612.50,Sep-22
Slough Borough Council,805621,Care Staff Services,M44C,Adult Social Care Operations,Supplies and Services,"2,205.00",Sep-22
Slough Borough Council,805621,Care Staff Services,M44C,Adult Social Care Operations,Supplies and Services,"1,239.50",Sep-22
Slough Borough Council,805621,Care Staff Services,M44C,Adult Social Care Operations,Supplies and Services,"2,030.00",Sep-22
Slough Borough Council,805621,Care Staff Services,M44C,Adult Social Care Operations,Supplies and Services,"1,406.00",Sep-22
Slough Borough Council,805621,Care Staff Services,M44C,Adult Social Care Operations,Supplies and Services,"1,554.00",Sep-22
Slough Borough Council,805621,Care Staff Services,M44C,Adult Social Care Operations,Supplies and Services,"1,050.00",Sep-22
Slough Borough Council,805621,Care Staff Services,M44C,Adult Social Care Operations,Supplies and Services,857.50,Sep-22
Slough Borough Council,805621,Care Staff Services,M44C,Adult Social Care Operations,Supplies and Services,"2,331.00",Sep-22
Slough Borough Council,805621,Care Staff Services,M44C,Adult Social Care Operations,Supplies and Services,906.50,Sep-22
Slough Borough Council,805621,Care Staff Services,M44C,Adult Social Care Operations,Supplies and Services,906.50,Sep-22
Slough Borough Council,805621,Care Staff Services,M44C,Adult Social Care Operations,Supplies and Services,906.50,Sep-22
Slough Borough Council,805621,Care Staff Services,M44C,Adult Social Care Operations,Supplies and Services,612.50,Sep-22
Slough Borough Council,805621,Care Staff Services,M44C,Adult Social Care Operations,Supplies and Services,"2,205.00",Sep-22
Slough Borough Council,805621,Care Staff Services,M44C,Adult Social Care Operations,Supplies and Services,"1,813.00",Sep-22
Slough Borough Council,805621,Care Staff Services,M44C,Adult Social Care Operations,Supplies and Services,"1,102.50",Sep-22
Slough Borough Council,805621,Care Staff Services,M44C,Adult Social Care Operations,Supplies and Services,559.63,Sep-22
Slough Borough Council,805621,Care Staff Services,M44C,Adult Social Care Operations,Supplies and Services,"1,202.50",Sep-22
Slough Borough Council,805621,Care Staff Services,M44C,Adult Social Care Operations,Supplies and Services,647.50,Sep-22
Slough Borough Council,805621,Care Staff Services,M44C,Adult Social Care Operations,Supplies and Services,906.50,Sep-22
Slough Borough Council,805621,Care Staff Services,M44C,Adult Social Care Operations,Supplies and Services,"2,205.00",Sep-22
Slough Borough Council,805621,Care Staff Services,M44C,Adult Social Care Operations,Supplies and Services,666.00,Sep-22
Slough Borough Council,805621,Care Staff Services,M44C,Adult Social Care Operations,Supplies and Services,"2,196.25",Sep-22
Slough Borough Council,805621,Care Staff Services,M44C,Adult Social Care Operations,Supplies and Services,752.50,Sep-22
Slough Borough Council,805621,Care Staff Services,M44C,Adult Social Care Operations,Supplies and Services,536.50,Sep-22
Slough Borough Council,805621,Care Staff Services,M44C,Adult Social Care Operations,Supplies and Services,"2,072.00",Sep-22
Slough Borough Council,805621,Care Staff Services,M44C,Adult Social Care Operations,Supplies and Services,743.75,Sep-22
Slough Borough Council,805621,Care Staff Services,M44C,Adult Social Care Operations,Supplies and Services,"1,813.00",Sep-22
Slough Borough Council,805621,Care Staff Services,M44C,Adult Social Care Operations,Supplies and Services,508.75,Sep-22
Slough Borough Council,805621,Care Staff Services,M44C,Adult Social Care Operations,Supplies and Services,"2,331.00",Sep-22
Slough Borough Council,805621,Care Staff Services,M44C,Adult Social Care Operations,Supplies and Services,761.25,Sep-22
Slough Borough Council,805621,Care Staff Services,M44C,Adult Social Care Operations,Supplies and Services,721.50,Sep-22
Slough Borough Council,805621,Care Staff Services,M44C,Adult Social Care Operations,Supplies and Services,"1,225.00",Sep-22
Slough Borough Council,805621,Care Staff Services,M44C,Adult Social Care Operations,Supplies and Services,"1,470.00",Sep-22
Slough Borough Council,805621,Care Staff Services,M44C,Adult Social Care Operations,Supplies and Services,906.50,Sep-22
Slough Borough Council,805621,Care Staff Services,M44C,Adult Social Care Operations,Supplies and Services,"2,205.00",Sep-22
Slough Borough Council,805621,Care Staff Services,M44C,Adult Social Care Operations,Supplies and Services,"2,664.00",Sep-22
Slough Borough Council,805621,Care Staff Services,M44C,Adult Social Care Operations,Supplies and Services,857.50,Sep-22
Slough Borough Council,805621,Care Staff Services,M44C,Adult Social Care Operations,Supplies and Services,"1,050.00",Sep-22
Slough Borough Council,805621,Care Staff Services,M44C,Adult Social Care Operations,Supplies and Services,"2,144.52",Sep-22
Slough Borough Council,805621,Care Staff Services,M44D,Adult Social Care Operations,Supplies and Services,"2,331.00",Sep-22
Slough Borough Council,805621,Care Staff Services,M44D,Adult Social Care Operations,Supplies and Services,518.00,Sep-22
Slough Borough Council,805621,Care Staff Services,M44D,Adult Social Care Operations,Supplies and Services,629.00,Sep-22
Slough Borough Council,805621,Care Staff Services,M44D,Adult Social Care Operations,Supplies and Services,857.50,Sep-22
Slough Borough Council,805621,Care Staff Services,M44D,Adult Social Care Operations,Supplies and Services,"1,295.00",Sep-22
Slough Borough Council,805621,Care Staff Services,M44D,Adult Social Care Operations,Supplies and Services,832.50,Sep-22
Slough Borough Council,805621,Care Staff Services,M44D,Adult Social Care Operations,Supplies and Services,"1,216.75",Sep-22
Slough Borough Council,805621,Care Staff Services,M44D,Adult Social Care Operations,Supplies and Services,612.50,Sep-22
Slough Borough Council,805621,Care Staff Services,M44D,Adult Social Care Operations,Supplies and Services,975.63,Sep-22
Slough Borough Council,805621,Care Staff Services,M44D,Adult Social Care Operations,Supplies and Services,"1,750.00",Sep-22
Slough Borough Council,805621,Care Staff Services,M44D,Adult Social Care Operations,Supplies and Services,"1,592.50",Sep-22
Slough Borough Council,805621,Care Staff Services,M44D,Adult Social Care Operations,Supplies and Services,"1,165.50",Sep-22
Slough Borough Council,805621,Care Staff Services,M44E,Adult Social Care Operations,Supplies and Services,518.00,Sep-22
Slough Borough Council,805621,Care Staff Services,M44F,Adult Social Care Operations,Supplies and Services,999.00,Sep-22
Slough Borough Council,805621,Care Staff Services,M44F,Adult Social Care Operations,Supplies and Services,740.00,Sep-22
Slough Borough Council,805621,Care Staff Services,M44F,Adult Social Care Operations,Supplies and Services,"2,590.00",Sep-22
Slough Borough Council,805621,Care Staff Services,M44F,Adult Social Care Operations,Supplies and Services,666.00,Sep-22
Slough Borough Council,805621,Care Staff Services,M44F,Adult Social Care Operations,Supplies and Services,"1,233.75",Sep-22
Slough Borough Council,805621,Care Staff Services,M44F,Adult Social Care Operations,Supplies and Services,"1,036.00",Sep-22
Slough Borough Council,805621,Care Staff Services,M45C,Adult Social Care Operations,Supplies and Services,"2,165.80",Sep-22
Slough Borough Council,805621,Care Staff Services,M45C,Adult Social Care Operations,Supplies and Services,700.00,Sep-22
Slough Borough Council,805621,Care Staff Services,M45C,Adult Social Care Operations,Supplies and Services,612.50,Sep-22
Slough Borough Council,805621,Care Staff Services,M45C,Adult Social Care Operations,Supplies and Services,980.00,Sep-22
Slough Borough Council,805621,Care Staff Services,M45C,Adult Social Care Operations,Supplies and Services,848.75,Sep-22
Slough Borough Council,1162,Care Uk Community Partnership Ltd,A02E,Adult Social Care Operations,Supplies and Services,"-27,875.60",Sep-22
Slough Borough Council,1162,Care Uk Community Partnership Ltd,A03E,Adult Social Care Operations,Supplies and Services,"3,842.56",Sep-22
Slough Borough Council,1162,Care Uk Community Partnership Ltd,M15D,Adult Social Care Operations,Supplies and Services,"2,736.00",Sep-22
Slough Borough Council,1162,Care Uk Community Partnership Ltd,M15D,Adult Social Care Operations,Supplies and Services,"3,849.16",Sep-22
Slough Borough Council,1162,Care Uk Community Partnership Ltd,M15D,Adult Social Care Operations,Supplies and Services,"3,849.16",Sep-22
Slough Borough Council,1162,Care Uk Community Partnership Ltd,M15D,Adult Social Care Operations,Supplies and Services,"3,849.16",Sep-22
Slough Borough Council,1162,Care Uk Community Partnership Ltd,M15D,Adult Social Care Operations,Supplies and Services,"3,969.72",Sep-22
Slough Borough Council,1162,Care Uk Community Partnership Ltd,M15D,Adult Social Care Operations,Supplies and Services,"3,849.16",Sep-22
Slough Borough Council,1162,Care Uk Community Partnership Ltd,M15F,Adult Social Care Operations,Supplies and Services,"3,849.16",Sep-22
Slough Borough Council,1162,Care Uk Community Partnership Ltd,M17C,Adult Social Care Operations,Supplies and Services,"5,778.36",Sep-22
Slough Borough Council,1162,Care Uk Community Partnership Ltd,M17C,Adult Social Care Operations,Supplies and Services,"3,969.72",Sep-22
Slough Borough Council,1162,Care Uk Community Partnership Ltd,M17C,Adult Social Care Operations,Supplies and Services,"3,969.72",Sep-22
Slough Borough Council,1162,Care Uk Community Partnership Ltd,M17C,Adult Social Care Operations,Supplies and Services,"3,969.72",Sep-22
Slough Borough Council,1162,Care Uk Community Partnership Ltd,M17C,Adult Social Care Operations,Supplies and Services,"3,969.72",Sep-22
Slough Borough Council,1162,Care Uk Community Partnership Ltd,M17C,Adult Social Care Operations,Supplies and Services,"3,969.72",Sep-22
Slough Borough Council,1162,Care Uk Community Partnership Ltd,M18C,Adult Social Care Operations,Supplies and Services,"115,474.80",Sep-22
Slough Borough Council,1162,Care Uk Community Partnership Ltd,M18C,Adult Social Care Operations,Supplies and Services,"-13,594.60",Sep-22
Slough Borough Council,1162,Care Uk Community Partnership Ltd,M18C,Adult Social Care Operations,Supplies and Services,"3,849.16",Sep-22
Slough Borough Council,1162,Care Uk Community Partnership Ltd,M18C,Adult Social Care Operations,Supplies and Services,"3,849.16",Sep-22
Slough Borough Council,1162,Care Uk Community Partnership Ltd,M18C,Adult Social Care Operations,Supplies and Services,"3,969.72",Sep-22
Slough Borough Council,1162,Care Uk Community Partnership Ltd,M18C,Adult Social Care Operations,Supplies and Services,"3,969.72",Sep-22
Slough Borough Council,1162,Care Uk Community Partnership Ltd,M18C,Adult Social Care Operations,Supplies and Services,"3,969.72",Sep-22
Slough Borough Council,1162,Care Uk Community Partnership Ltd,M18C,Adult Social Care Operations,Supplies and Services,"3,849.16",Sep-22
Slough Borough Council,1162,Care Uk Community Partnership Ltd,M18C,Adult Social Care Operations,Supplies and Services,"3,849.16",Sep-22
Slough Borough Council,1162,Care Uk Community Partnership Ltd,M18C,Adult Social Care Operations,Supplies and Services,"3,849.16",Sep-22
Slough Borough Council,1162,Care Uk Community Partnership Ltd,M18C,Adult Social Care Operations,Supplies and Services,"3,849.16",Sep-22
Slough Borough Council,1162,Care Uk Community Partnership Ltd,M18C,Adult Social Care Operations,Supplies and Services,"3,969.72",Sep-22
Slough Borough Council,1162,Care Uk Community Partnership Ltd,M18C,Adult Social Care Operations,Supplies and Services,"3,969.72",Sep-22
Slough Borough Council,1162,Care Uk Community Partnership Ltd,M18C,Adult Social Care Operations,Supplies and Services,"3,849.16",Sep-22
Slough Borough Council,1162,Care Uk Community Partnership Ltd,M18C,Adult Social Care Operations,Supplies and Services,"3,969.72",Sep-22
Slough Borough Council,1162,Care Uk Community Partnership Ltd,M18C,Adult Social Care Operations,Supplies and Services,"3,969.72",Sep-22
Slough Borough Council,1162,Care Uk Community Partnership Ltd,M18C,Adult Social Care Operations,Supplies and Services,"3,849.16",Sep-22
Slough Borough Council,1162,Care Uk Community Partnership Ltd,M18C,Adult Social Care Operations,Supplies and Services,"-74,518.52",Sep-22
Slough Borough Council,1162,Care Uk Community Partnership Ltd,M18C,Adult Social Care Operations,Supplies and Services,"3,849.16",Sep-22
Slough Borough Council,1162,Care Uk Community Partnership Ltd,M18C,Adult Social Care Operations,Supplies and Services,"3,849.16",Sep-22
Slough Borough Council,1162,Care Uk Community Partnership Ltd,M18C,Adult Social Care Operations,Supplies and Services,"3,849.16",Sep-22
Slough Borough Council,1162,Care Uk Community Partnership Ltd,M18C,Adult Social Care Operations,Supplies and Services,"3,969.72",Sep-22
Slough Borough Council,1162,Care Uk Community Partnership Ltd,M18C,Adult Social Care Operations,Supplies and Services,"3,969.72",Sep-22
Slough Borough Council,1162,Care Uk Community Partnership Ltd,M18C,Adult Social Care Operations,Supplies and Services,"3,969.72",Sep-22
Slough Borough Council,1162,Care Uk Community Partnership Ltd,M18C,Adult Social Care Operations,Supplies and Services,"3,849.16",Sep-22
Slough Borough Council,1162,Care Uk Community Partnership Ltd,M25C,Adult Social Care Operations,Supplies and Services,"76,659.44",Sep-22
Slough Borough Council,1162,Care Uk Community Partnership Ltd,M25C,Adult Social Care Operations,Supplies and Services,"3,484.52",Sep-22
Slough Borough Council,1162,Care Uk Community Partnership Ltd,M25C,Adult Social Care Operations,Supplies and Services,"3,484.52",Sep-22
Slough Borough Council,1162,Care Uk Community Partnership Ltd,M25C,Adult Social Care Operations,Supplies and Services,"3,484.52",Sep-22
Slough Borough Council,1162,Care Uk Community Partnership Ltd,M25C,Adult Social Care Operations,Supplies and Services,"3,484.52",Sep-22
Slough Borough Council,1162,Care Uk Community Partnership Ltd,M25C,Adult Social Care Operations,Supplies and Services,"3,484.52",Sep-22
Slough Borough Council,1162,Care Uk Community Partnership Ltd,M26E,Adult Social Care Operations,Supplies and Services,"3,849.16",Sep-22
Slough Borough Council,1162,Care Uk Community Partnership Ltd,M26E,Adult Social Care Operations,Supplies and Services,"3,849.16",Sep-22
Slough Borough Council,1162,Care Uk Community Partnership Ltd,M27C,Adult Social Care Operations,Supplies and Services,"31,245.89",Sep-22
Slough Borough Council,1162,Care Uk Community Partnership Ltd,M27C,Adult Social Care Operations,Supplies and Services,"3,181.40",Sep-22
Slough Borough Council,1162,Care Uk Community Partnership Ltd,M27C,Adult Social Care Operations,Supplies and Services,"3,181.40",Sep-22
Slough Borough Council,1162,Care Uk Community Partnership Ltd,M27C,Adult Social Care Operations,Supplies and Services,"3,484.52",Sep-22
Slough Borough Council,1162,Care Uk Community Partnership Ltd,M27C,Adult Social Care Operations,Supplies and Services,"3,181.40",Sep-22
Slough Borough Council,1162,Care Uk Community Partnership Ltd,M27C,Adult Social Care Operations,Supplies and Services,"3,484.52",Sep-22
Slough Borough Council,1162,Care Uk Community Partnership Ltd,M27C,Adult Social Care Operations,Supplies and Services,"3,484.52",Sep-22
Slough Borough Council,1162,Care Uk Community Partnership Ltd,M27C,Adult Social Care Operations,Supplies and Services,"3,181.40",Sep-22
Slough Borough Council,1162,Care Uk Community Partnership Ltd,M27C,Adult Social Care Operations,Supplies and Services,"3,484.52",Sep-22
Slough Borough Council,1162,Care Uk Community Partnership Ltd,M27C,Adult Social Care Operations,Supplies and Services,"3,484.52",Sep-22
Slough Borough Council,1162,Care Uk Community Partnership Ltd,M27C,Adult Social Care Operations,Supplies and Services,"3,484.52",Sep-22
Slough Borough Council,1162,Care Uk Community Partnership Ltd,M27C,Adult Social Care Operations,Supplies and Services,"3,181.40",Sep-22
Slough Borough Council,1162,Care Uk Community Partnership Ltd,M27C,Adult Social Care Operations,Supplies and Services,"3,484.52",Sep-22
Slough Borough Council,1162,Care Uk Community Partnership Ltd,M27C,Adult Social Care Operations,Supplies and Services,"3,484.52",Sep-22
Slough Borough Council,1162,Care Uk Community Partnership Ltd,M27C,Adult Social Care Operations,Supplies and Services,"3,484.52",Sep-22
Slough Borough Council,1162,Care Uk Community Partnership Ltd,M27C,Adult Social Care Operations,Supplies and Services,"3,484.52",Sep-22
Slough Borough Council,1162,Care Uk Community Partnership Ltd,M27C,Adult Social Care Operations,Supplies and Services,"3,181.40",Sep-22
Slough Borough Council,1162,Care Uk Community Partnership Ltd,M27C,Adult Social Care Operations,Supplies and Services,"3,484.52",Sep-22
Slough Borough Council,1162,Care Uk Community Partnership Ltd,M27F,Adult Social Care Operations,Supplies and Services,"-3,181.40",Sep-22
Slough Borough Council,1162,Care Uk Community Partnership Ltd,M28C,Adult Social Care Operations,Supplies and Services,568.11,Sep-22
Slough Borough Council,808004,Careskills Academy,B409,People,Indirect Employee Expenses,"4,914.00",Sep-22
Slough Borough Council,1910,Carousel Buses Ltd,D512,Place Strategy & Infrastructure,Supplies and Services,"3,274.30",Sep-22
Slough Borough Council,1910,Carousel Buses Ltd,D512,Place Strategy & Infrastructure,Supplies and Services,"2,279.99",Sep-22
Slough Borough Council,804413,Castle Water,B184,Business Services,Premises,937.16,Sep-22
Slough Borough Council,804413,Castle Water,D320,Place Operations,Premises,617.35,Sep-22
Slough Borough Council,804413,Castle Water,D900,Place Operations,Premises,696.58,Sep-22
Slough Borough Council,418,Castleview School,E620,Children & Families,Supplies and Services,"37,755.01",Sep-22
Slough Borough Council,803560,Centennial Property Limited T/A Rent Connect,H205,Housing (People) Services,Premises,"38,967.00",Sep-22
Slough Borough Council,805619,Centennial Property Limited T/A The Housing Network,H205,Housing (People) Services,Premises,"39,940.00",Sep-22
Slough Borough Council,3609,Centurion Healthcare Ltd,M26E,Adult Social Care Operations,Supplies and Services,"6,031.67",Sep-22
Slough Borough Council,3609,Centurion Healthcare Ltd,M26E,Adult Social Care Operations,Supplies and Services,"5,837.10",Sep-22
Slough Borough Council,805174,Certas Energy,D900,Place Operations,Supplies and Services,"21,814.23",Sep-22
Slough Borough Council,805174,Certas Energy,D900,Place Operations,Supplies and Services,"25,027.50",Sep-22
Slough Borough Council,805174,Certas Energy,D900,Place Operations,Supplies and Services,"1,005.67",Sep-22
Slough Borough Council,2892,Chalfont Lodge,M15D,Adult Social Care Operations,Supplies and Services,"5,785.71",Sep-22
Slough Borough Council,2892,Chalfont Lodge,M15D,Adult Social Care Operations,Supplies and Services,"3,214.29",Sep-22
Slough Borough Council,2892,Chalfont Lodge,M15F,Adult Social Care Operations,Supplies and Services,"8,571.43",Sep-22
Slough Borough Council,2892,Chalfont Lodge,M26E,Adult Social Care Operations,Supplies and Services,"5,785.71",Sep-22
Slough Borough Council,2608,Chandos Lodge Nursing Home,M18C,Adult Social Care Operations,Supplies and Services,"3,600.00",Sep-22
Slough Borough Council,2608,Chandos Lodge Nursing Home,M18C,Adult Social Care Operations,Supplies and Services,"3,600.00",Sep-22
Slough Borough Council,2608,Chandos Lodge Nursing Home,M18C,Adult Social Care Operations,Supplies and Services,"3,600.00",Sep-22
Slough Borough Council,808500,Chartwell Care Services,M26E,Adult Social Care Operations,Supplies and Services,"12,601.84",Sep-22
Slough Borough Council,807017,Chelmsford Safety Supplies Ltd,D610,Place Operations,Supplies and Services,"4,569.33",Sep-22
Slough Borough Council,807017,Chelmsford Safety Supplies Ltd,D750,Place Operations,Supplies and Services,"1,075.79",Sep-22
Slough Borough Council,3114,Cherry Trees Day Nursery,F909,Children & Families,Supplies and Services,"26,273.52",Sep-22
Slough Borough Council,2871,Cherry Trees Residential Care,M42F,Adult Social Care Operations,Supplies and Services,"1,660.71",Sep-22
Slough Borough Council,2871,Cherry Trees Residential Care,M42F,Adult Social Care Operations,Supplies and Services,"3,321.43",Sep-22
Slough Borough Council,2871,Cherry Trees Residential Care,M42F,Adult Social Care Operations,Supplies and Services,"3,321.43",Sep-22
Slough Borough Council,2871,Cherry Trees Residential Care,M42F,Adult Social Care Operations,Supplies and Services,"1,607.14",Sep-22
Slough Borough Council,2871,Cherry Trees Residential Care,M42F,Adult Social Care Operations,Supplies and Services,"3,214.29",Sep-22
Slough Borough Council,2871,Cherry Trees Residential Care,M42F,Adult Social Care Operations,Supplies and Services,"3,214.29",Sep-22
Slough Borough Council,808527,Chiron Care (Uk) Limited,M44F,Adult Social Care Operations,Supplies and Services,"1,868.68",Sep-22
Slough Borough Council,803495,Christchurch Court Ltd,M15D,Adult Social Care Operations,Supplies and Services,"8,574.00",Sep-22
Slough Borough Council,807491,Cippenham School,E620,Children & Families,Supplies and Services,"15,416.67",Sep-22
Slough Borough Council,806550,City Homecare Ltd,A07R,Adult Social Care Operations,Supplies and Services,"1,020.60",Sep-22
Slough Borough Council,806550,City Homecare Ltd,M44C,Adult Social Care Operations,Supplies and Services,"1,646.40",Sep-22
Slough Borough Council,806550,City Homecare Ltd,M44C,Adult Social Care Operations,Supplies and Services,"2,251.20",Sep-22
Slough Borough Council,806550,City Homecare Ltd,M44C,Adult Social Care Operations,Supplies and Services,"1,881.60",Sep-22
Slough Borough Council,806550,City Homecare Ltd,M44C,Adult Social Care Operations,Supplies and Services,"3,528.00",Sep-22
Slough Borough Council,806550,City Homecare Ltd,M44C,Adult Social Care Operations,Supplies and Services,"1,020.60",Sep-22
Slough Borough Council,806550,City Homecare Ltd,M44C,Adult Social Care Operations,Supplies and Services,"1,831.20",Sep-22
Slough Borough Council,806550,City Homecare Ltd,M44C,Adult Social Care Operations,Supplies and Services,705.60,Sep-22
Slough Borough Council,806550,City Homecare Ltd,M44C,Adult Social Care Operations,Supplies and Services,"2,116.80",Sep-22
Slough Borough Council,806550,City Homecare Ltd,M44C,Adult Social Care Operations,Supplies and Services,"1,881.60",Sep-22
Slough Borough Council,806550,City Homecare Ltd,M44C,Adult Social Care Operations,Supplies and Services,"1,079.40",Sep-22
Slough Borough Council,806550,City Homecare Ltd,M44C,Adult Social Care Operations,Supplies and Services,"2,116.80",Sep-22
Slough Borough Council,806550,City Homecare Ltd,M44C,Adult Social Care Operations,Supplies and Services,"1,176.00",Sep-22
Slough Borough Council,806550,City Homecare Ltd,M44C,Adult Social Care Operations,Supplies and Services,940.80,Sep-22
Slough Borough Council,806550,City Homecare Ltd,M44C,Adult Social Care Operations,Supplies and Services,"1,881.60",Sep-22
Slough Borough Council,806550,City Homecare Ltd,M44C,Adult Social Care Operations,Supplies and Services,823.20,Sep-22
Slough Borough Council,806550,City Homecare Ltd,M44C,Adult Social Care Operations,Supplies and Services,861.00,Sep-22
Slough Borough Council,806550,City Homecare Ltd,M44C,Adult Social Care Operations,Supplies and Services,793.80,Sep-22
Slough Borough Council,806550,City Homecare Ltd,M44C,Adult Social Care Operations,Supplies and Services,940.80,Sep-22
Slough Borough Council,806550,City Homecare Ltd,M44C,Adult Social Care Operations,Supplies and Services,688.80,Sep-22
Slough Borough Council,806550,City Homecare Ltd,M44C,Adult Social Care Operations,Supplies and Services,"1,058.40",Sep-22
Slough Borough Council,806550,City Homecare Ltd,M44C,Adult Social Care Operations,Supplies and Services,"1,176.00",Sep-22
Slough Borough Council,806550,City Homecare Ltd,M44C,Adult Social Care Operations,Supplies and Services,823.20,Sep-22
Slough Borough Council,806550,City Homecare Ltd,M44C,Adult Social Care Operations,Supplies and Services,856.80,Sep-22
Slough Borough Council,806550,City Homecare Ltd,M44C,Adult Social Care Operations,Supplies and Services,"1,058.40",Sep-22
Slough Borough Council,806550,City Homecare Ltd,M44C,Adult Social Care Operations,Supplies and Services,"1,646.40",Sep-22
Slough Borough Council,806550,City Homecare Ltd,M44C,Adult Social Care Operations,Supplies and Services,"1,058.40",Sep-22
Slough Borough Council,806550,City Homecare Ltd,M44C,Adult Social Care Operations,Supplies and Services,831.60,Sep-22
Slough Borough Council,806550,City Homecare Ltd,M44C,Adult Social Care Operations,Supplies and Services,588.00,Sep-22
Slough Borough Council,806550,City Homecare Ltd,M44C,Adult Social Care Operations,Supplies and Services,823.20,Sep-22
Slough Borough Council,806550,City Homecare Ltd,M44C,Adult Social Care Operations,Supplies and Services,"1,411.20",Sep-22
Slough Borough Council,806550,City Homecare Ltd,M44C,Adult Social Care Operations,Supplies and Services,"1,285.20",Sep-22
Slough Borough Council,806550,City Homecare Ltd,M44C,Adult Social Care Operations,Supplies and Services,831.60,Sep-22
Slough Borough Council,806550,City Homecare Ltd,M44D,Adult Social Care Operations,Supplies and Services,688.80,Sep-22
Slough Borough Council,806550,City Homecare Ltd,M44D,Adult Social Care Operations,Supplies and Services,940.80,Sep-22
Slough Borough Council,806550,City Homecare Ltd,M44D,Adult Social Care Operations,Supplies and Services,688.00,Sep-22
Slough Borough Council,806550,City Homecare Ltd,M44D,Adult Social Care Operations,Supplies and Services,"1,948.80",Sep-22
Slough Borough Council,806550,City Homecare Ltd,M44D,Adult Social Care Operations,Supplies and Services,940.80,Sep-22
Slough Borough Council,806550,City Homecare Ltd,M44D,Adult Social Care Operations,Supplies and Services,"2,822.40",Sep-22
Slough Borough Council,806550,City Homecare Ltd,M44D,Adult Social Care Operations,Supplies and Services,537.60,Sep-22
Slough Borough Council,806550,City Homecare Ltd,M44D,Adult Social Care Operations,Supplies and Services,"1,545.60",Sep-22
Slough Borough Council,806550,City Homecare Ltd,M44D,Adult Social Care Operations,Supplies and Services,617.40,Sep-22
Slough Borough Council,806550,City Homecare Ltd,M44D,Adult Social Care Operations,Supplies and Services,588.00,Sep-22
Slough Borough Council,806550,City Homecare Ltd,M44D,Adult Social Care Operations,Supplies and Services,705.60,Sep-22
Slough Borough Council,806550,City Homecare Ltd,M44D,Adult Social Care Operations,Supplies and Services,588.00,Sep-22
Slough Borough Council,806550,City Homecare Ltd,M44D,Adult Social Care Operations,Supplies and Services,705.60,Sep-22
Slough Borough Council,806550,City Homecare Ltd,M44E,Adult Social Care Operations,Supplies and Services,705.60,Sep-22
Slough Borough Council,806550,City Homecare Ltd,M44E,Adult Social Care Operations,Supplies and Services,705.60,Sep-22
Slough Borough Council,806550,City Homecare Ltd,M44F,Adult Social Care Operations,Supplies and Services,"1,478.40",Sep-22
Slough Borough Council,806550,City Homecare Ltd,M44F,Adult Social Care Operations,Supplies and Services,806.40,Sep-22
Slough Borough Council,806550,City Homecare Ltd,M44F,Adult Social Care Operations,Supplies and Services,840.00,Sep-22
Slough Borough Council,806550,City Homecare Ltd,M45C,Adult Social Care Operations,Supplies and Services,831.60,Sep-22
Slough Borough Council,806550,City Homecare Ltd,M45C,Adult Social Care Operations,Supplies and Services,823.20,Sep-22
Slough Borough Council,806550,City Homecare Ltd,M45C,Adult Social Care Operations,Supplies and Services,"1,360.80",Sep-22
Slough Borough Council,806550,City Homecare Ltd,M48C,Adult Social Care Operations,Supplies and Services,554.40,Sep-22
Slough Borough Council,806550,City Homecare Ltd,M48C,Adult Social Care Operations,Supplies and Services,554.40,Sep-22
Slough Borough Council,807242,Civica Election Services Ltd,B246,Governance,Supplies and Services,525.00,Sep-22
Slough Borough Council,1083,Civica Uk Limited,B246,Governance,Supplies and Services,"2,300.00",Sep-22
Slough Borough Council,1083,Civica Uk Limited,B342,Digital and Strategic IT,Supplies and Services,"11,645.00",Sep-22
Slough Borough Council,1083,Civica Uk Limited,B282,Digital and Strategic IT,Capital Charges,"49,299.00",Sep-22
Slough Borough Council,1151,Claycots Primary School,E200,Children & Families,Supplies and Services,"560,458.70",Sep-22
Slough Borough Council,408,Clear Channel Uk Ltd,B023,Finance & Commercial,Supplies and Services,"164,792.00",Sep-22
Slough Borough Council,3685,Coghlan Lodges Limited,M44D,Adult Social Care Operations,Supplies and Services,"2,116.04",Sep-22
Slough Borough Council,3685,Coghlan Lodges Limited,M44F,Adult Social Care Operations,Supplies and Services,"1,870.00",Sep-22
Slough Borough Council,805823,Collaborative Care Solutions,M42F,Adult Social Care Operations,Supplies and Services,"3,214.28",Sep-22
Slough Borough Council,805823,Collaborative Care Solutions,M42F,Adult Social Care Operations,Supplies and Services,"3,321.42",Sep-22
Slough Borough Council,805823,Collaborative Care Solutions,M42F,Adult Social Care Operations,Supplies and Services,"3,321.42",Sep-22
Slough Borough Council,805823,Collaborative Care Solutions,M42F,Adult Social Care Operations,Supplies and Services,"3,000.00",Sep-22
Slough Borough Council,805823,Collaborative Care Solutions,M42F,Adult Social Care Operations,Supplies and Services,"3,321.42",Sep-22
Slough Borough Council,805823,Collaborative Care Solutions,M42F,Adult Social Care Operations,Supplies and Services,"3,214.28",Sep-22
Slough Borough Council,805823,Collaborative Care Solutions,M42F,Adult Social Care Operations,Supplies and Services,"3,321.42",Sep-22
Slough Borough Council,805823,Collaborative Care Solutions,M42F,Adult Social Care Operations,Supplies and Services,"3,321.42",Sep-22
Slough Borough Council,806524,Colliers International,J006,Place Management,Supplies and Services,"3,666.67",Sep-22
Slough Borough Council,806524,Colliers International,J006,Place Management,Supplies and Services,"1,250.00",Sep-22
Slough Borough Council,286,Colnbrook C Of E Primary School,E620,Children & Families,Supplies and Services,"18,177.35",Sep-22
Slough Borough Council,2535,Comfort Care Services,M42E,Adult Social Care Operations,Supplies and Services,"1,128.21",Sep-22
Slough Borough Council,2535,Comfort Care Services,M42E,Adult Social Care Operations,Supplies and Services,750.00,Sep-22
Slough Borough Council,2535,Comfort Care Services,M42E,Adult Social Care Operations,Supplies and Services,546.00,Sep-22
Slough Borough Council,2535,Comfort Care Services,M42E,Adult Social Care Operations,Supplies and Services,"2,250.00",Sep-22
Slough Borough Council,2535,Comfort Care Services,M42E,Adult Social Care Operations,Supplies and Services,"1,489.24",Sep-22
Slough Borough Council,2535,Comfort Care Services,M42E,Adult Social Care Operations,Supplies and Services,"3,089.06",Sep-22
Slough Borough Council,2535,Comfort Care Services,M42E,Adult Social Care Operations,Supplies and Services,"2,550.00",Sep-22
Slough Borough Council,2535,Comfort Care Services,M42F,Adult Social Care Operations,Supplies and Services,"1,215.00",Sep-22
Slough Borough Council,2535,Comfort Care Services,M42F,Adult Social Care Operations,Supplies and Services,"2,550.00",Sep-22
Slough Borough Council,2535,Comfort Care Services,M42F,Adult Social Care Operations,Supplies and Services,812.14,Sep-22
Slough Borough Council,2535,Comfort Care Services,M42F,Adult Social Care Operations,Supplies and Services,"1,258.84",Sep-22
Slough Borough Council,2535,Comfort Care Services,M42F,Adult Social Care Operations,Supplies and Services,"2,550.00",Sep-22
Slough Borough Council,2535,Comfort Care Services,M42F,Adult Social Care Operations,Supplies and Services,812.14,Sep-22
Slough Borough Council,2535,Comfort Care Services,M42F,Adult Social Care Operations,Supplies and Services,"2,550.00",Sep-22
Slough Borough Council,2535,Comfort Care Services,M42F,Adult Social Care Operations,Supplies and Services,"2,262.43",Sep-22
Slough Borough Council,2535,Comfort Care Services,M42F,Adult Social Care Operations,Supplies and Services,"2,550.00",Sep-22
Slough Borough Council,2535,Comfort Care Services,M42F,Adult Social Care Operations,Supplies and Services,812.14,Sep-22
Slough Borough Council,2535,Comfort Care Services,M42F,Adult Social Care Operations,Supplies and Services,"3,768.21",Sep-22
Slough Borough Council,2535,Comfort Care Services,M42F,Adult Social Care Operations,Supplies and Services,"1,692.86",Sep-22
Slough Borough Council,2535,Comfort Care Services,M42F,Adult Social Care Operations,Supplies and Services,"3,362.14",Sep-22
Slough Borough Council,2535,Comfort Care Services,M42F,Adult Social Care Operations,Supplies and Services,812.14,Sep-22
Slough Borough Council,2535,Comfort Care Services,M42F,Adult Social Care Operations,Supplies and Services,"1,258.84",Sep-22
Slough Borough Council,2535,Comfort Care Services,M42F,Adult Social Care Operations,Supplies and Services,"2,550.00",Sep-22
Slough Borough Council,2535,Comfort Care Services,M44C,Adult Social Care Operations,Supplies and Services,"2,274.00",Sep-22
Slough Borough Council,2535,Comfort Care Services,M44E,Adult Social Care Operations,Supplies and Services,"4,317.64",Sep-22
Slough Borough Council,2535,Comfort Care Services,M44F,Adult Social Care Operations,Supplies and Services,"1,281.96",Sep-22
Slough Borough Council,2535,Comfort Care Services,M44F,Adult Social Care Operations,Supplies and Services,"1,275.00",Sep-22
Slough Borough Council,2535,Comfort Care Services,M44F,Adult Social Care Operations,Supplies and Services,"3,249.17",Sep-22
Slough Borough Council,2535,Comfort Care Services,M44F,Adult Social Care Operations,Supplies and Services,"1,275.00",Sep-22
Slough Borough Council,2535,Comfort Care Services,M44F,Adult Social Care Operations,Supplies and Services,"3,362.14",Sep-22
Slough Borough Council,2535,Comfort Care Services,M44F,Adult Social Care Operations,Supplies and Services,"2,843.10",Sep-22
Slough Borough Council,2535,Comfort Care Services,M44F,Adult Social Care Operations,Supplies and Services,"1,275.00",Sep-22
Slough Borough Council,2535,Comfort Care Services,M44F,Adult Social Care Operations,Supplies and Services,899.14,Sep-22
Slough Borough Council,2535,Comfort Care Services,M44F,Adult Social Care Operations,Supplies and Services,"2,843.10",Sep-22
Slough Borough Council,2535,Comfort Care Services,M44F,Adult Social Care Operations,Supplies and Services,"2,550.00",Sep-22
Slough Borough Council,2535,Comfort Care Services,M81D,Adult Social Care Operations,Supplies and Services,"2,550.00",Sep-22
Slough Borough Council,1772,Computershare Voucher Services,B348,People,Supplies and Services,"2,301.00",Sep-22
Slough Borough Council,807468,"Connect Managed Services (UK) Ltd, trading as Conn3ct",A106,Customer,Supplies and Services,"2,467.87",Sep-22
Slough Borough Council,2051,Cornerstone Barristers,P194,Capital,Capital Charges,"1,633.75",Sep-22
Slough Borough Council,1480,Corona Energy Limited,K526,Building Management,Premises,"23,153.25",Sep-22
Slough Borough Council,1480,Corona Energy Limited,K526,Building Management,Premises,750.06,Sep-22
Slough Borough Council,1480,Corona Energy Limited,K526,Building Management,Premises,"22,100.99",Sep-22
Slough Borough Council,1480,Corona Energy Limited,K526,Building Management,Premises,"19,067.46",Sep-22
Slough Borough Council,1480,Corona Energy Limited,K526,Building Management,Premises,"12,033.89",Sep-22
Slough Borough Council,1480,Corona Energy Limited,K526,Building Management,Premises,"2,044.09",Sep-22
Slough Borough Council,1480,Corona Energy Limited,K526,Building Management,Premises,"13,908.16",Sep-22
Slough Borough Council,1480,Corona Energy Limited,K526,Building Management,Premises,"3,750.05",Sep-22
Slough Borough Council,1480,Corona Energy Limited,K526,Building Management,Premises,"18,549.70",Sep-22
Slough Borough Council,1480,Corona Energy Limited,K526,Building Management,Premises,"36,070.08",Sep-22
Slough Borough Council,805278,Countrystyle Recycling Ltd,D342,Place Operations,Supplies and Services,"2,525.00",Sep-22
Slough Borough Council,805278,Countrystyle Recycling Ltd,D342,Place Operations,Supplies and Services,"5,050.00",Sep-22
Slough Borough Council,3670,Craegmoor Birches Grove Priory,M27F,Adult Social Care Operations,Supplies and Services,"3,823.00",Sep-22
Slough Borough Council,3670,Craegmoor Birches Grove Priory,M27F,Adult Social Care Operations,Supplies and Services,"1,984.04",Sep-22
Slough Borough Council,3670,Craegmoor Birches Grove Priory,M27F,Adult Social Care Operations,Supplies and Services,"3,823.00",Sep-22
Slough Borough Council,3670,Craegmoor Birches Grove Priory,M27F,Adult Social Care Operations,Supplies and Services,"1,984.04",Sep-22
Slough Borough Council,1638,Creative Support Ltd,A02L,Adult Social Care Operations,Supplies and Services,"1,365.30",Sep-22
Slough Borough Council,1638,Creative Support Ltd,A02L,Adult Social Care Operations,Supplies and Services,"1,065.60",Sep-22
Slough Borough Council,1638,Creative Support Ltd,A02L,Adult Social Care Operations,Supplies and Services,"1,565.10",Sep-22
Slough Borough Council,1638,Creative Support Ltd,A02L,Adult Social Care Operations,Supplies and Services,"1,431.90",Sep-22
Slough Borough Council,1638,Creative Support Ltd,A02L,Adult Social Care Operations,Supplies and Services,"1,165.50",Sep-22
Slough Borough Council,1638,Creative Support Ltd,M42E,Adult Social Care Operations,Supplies and Services,"1,182.15",Sep-22
Slough Borough Council,1638,Creative Support Ltd,M42E,Adult Social Care Operations,Supplies and Services,"3,013.65",Sep-22
Slough Borough Council,1638,Creative Support Ltd,M42E,Adult Social Care Operations,Supplies and Services,"2,214.45",Sep-22
Slough Borough Council,1638,Creative Support Ltd,M42E,Adult Social Care Operations,Supplies and Services,"2,021.04",Sep-22
Slough Borough Council,1638,Creative Support Ltd,M42E,Adult Social Care Operations,Supplies and Services,"6,993.00",Sep-22
Slough Borough Council,1638,Creative Support Ltd,M42E,Adult Social Care Operations,Supplies and Services,"2,214.45",Sep-22
Slough Borough Council,1638,Creative Support Ltd,M42E,Adult Social Care Operations,Supplies and Services,"3,013.65",Sep-22
Slough Borough Council,1638,Creative Support Ltd,M44E,Adult Social Care Operations,Supplies and Services,"1,465.20",Sep-22
Slough Borough Council,1638,Creative Support Ltd,M44E,Adult Social Care Operations,Supplies and Services,699.30,Sep-22
Slough Borough Council,1638,Creative Support Ltd,M44E,Adult Social Care Operations,Supplies and Services,999.00,Sep-22
Slough Borough Council,1638,Creative Support Ltd,M44E,Adult Social Care Operations,Supplies and Services,932.40,Sep-22
Slough Borough Council,1638,Creative Support Ltd,M44E,Adult Social Care Operations,Supplies and Services,999.00,Sep-22
Slough Borough Council,806983,Critiqom,B377,Finance & Commercial,Supplies and Services,996.92,Sep-22
Slough Borough Council,806983,Critiqom,H015,Finance & Commercial,Supplies and Services,858.71,Sep-22
Slough Borough Council,808383,Croft Brothers UK Limited,M50A,Place Operations,Supplies and Services,910.78,Sep-22
Slough Borough Council,808383,Croft Brothers UK Limited,M50A,Place Operations,Transport,858.18,Sep-22
Slough Borough Council,806900,CYXTERA TECHNOLOGY UK LIMITED,B282,Digital and Strategic IT,Supplies and Services,"14,882.98",Sep-22
Slough Borough Council,636,David John (Papers) Ltd,K059,Business Services,Supplies and Services,598.90,Sep-22
Slough Borough Council,807440,David Peplow,A04A,Adult Social Care Operations,Supplies and Services,"1,800.00",Sep-22
Slough Borough Council,804689,De Lage Landen Leasing Ltd,K059,Business Services,Supplies and Services,"2,085.00",Sep-22
Slough Borough Council,807563,Delib Limited,B203,Finance & Commercial,Indirect Employee Expenses,"1,200.00",Sep-22
Slough Borough Council,804903,Dennis Eagle Limited,D610,Place Operations,Supplies and Services,"18,810.54",Sep-22
Slough Borough Council,804903,Dennis Eagle Limited,D630,Place Operations,Supplies and Services,"1,773.30",Sep-22
Slough Borough Council,804903,Dennis Eagle Limited,D610,Place Operations,Supplies and Services,548.49,Sep-22
Slough Borough Council,804903,Dennis Eagle Limited,D610,Place Operations,Supplies and Services,878.41,Sep-22
Slough Borough Council,804903,Dennis Eagle Limited,D610,Place Operations,Supplies and Services,659.97,Sep-22
Slough Borough Council,804903,Dennis Eagle Limited,D610,Place Operations,Supplies and Services,675.84,Sep-22
Slough Borough Council,806652,Desborough College Academy Trust,F552,Children & Families,Supplies and Services,"4,000.00",Sep-22
Slough Borough Council,3554,Dimensions (Uk) Ltd,M42E,Adult Social Care Operations,Supplies and Services,"7,237.97",Sep-22
Slough Borough Council,3554,Dimensions (Uk) Ltd,M42E,Adult Social Care Operations,Supplies and Services,"5,953.25",Sep-22
Slough Borough Council,3554,Dimensions (Uk) Ltd,M42E,Adult Social Care Operations,Supplies and Services,"7,839.64",Sep-22
Slough Borough Council,3554,Dimensions (Uk) Ltd,M42E,Adult Social Care Operations,Supplies and Services,"7,489.87",Sep-22
Slough Borough Council,3554,Dimensions (Uk) Ltd,M42E,Adult Social Care Operations,Supplies and Services,"7,489.87",Sep-22
Slough Borough Council,3554,Dimensions (Uk) Ltd,M42E,Adult Social Care Operations,Supplies and Services,"7,586.74",Sep-22
Slough Borough Council,3554,Dimensions (Uk) Ltd,M42E,Adult Social Care Operations,Supplies and Services,"7,248.26",Sep-22
Slough Borough Council,3554,Dimensions (Uk) Ltd,M42E,Adult Social Care Operations,Supplies and Services,"7,056.60",Sep-22
Slough Borough Council,3554,Dimensions (Uk) Ltd,M42E,Adult Social Care Operations,Supplies and Services,"5,660.32",Sep-22
Slough Borough Council,3554,Dimensions (Uk) Ltd,M42E,Adult Social Care Operations,Supplies and Services,"5,918.36",Sep-22
Slough Borough Council,3554,Dimensions (Uk) Ltd,M42E,Adult Social Care Operations,Supplies and Services,"7,291.82",Sep-22
Slough Borough Council,3554,Dimensions (Uk) Ltd,M42E,Adult Social Care Operations,Supplies and Services,"5,849.00",Sep-22
Slough Borough Council,3554,Dimensions (Uk) Ltd,M42E,Adult Social Care Operations,Supplies and Services,"7,783.97",Sep-22
Slough Borough Council,3554,Dimensions (Uk) Ltd,M42E,Adult Social Care Operations,Supplies and Services,"7,479.24",Sep-22
Slough Borough Council,3554,Dimensions (Uk) Ltd,M42E,Adult Social Care Operations,Supplies and Services,"6,482.81",Sep-22
Slough Borough Council,3554,Dimensions (Uk) Ltd,M42E,Adult Social Care Operations,Supplies and Services,"6,151.69",Sep-22
Slough Borough Council,3554,Dimensions (Uk) Ltd,M42E,Adult Social Care Operations,Supplies and Services,"6,115.64",Sep-22
Slough Borough Council,3554,Dimensions (Uk) Ltd,M42E,Adult Social Care Operations,Supplies and Services,"7,291.82",Sep-22
Slough Borough Council,3554,Dimensions (Uk) Ltd,M42E,Adult Social Care Operations,Supplies and Services,"5,849.00",Sep-22
Slough Borough Council,3554,Dimensions (Uk) Ltd,M42E,Adult Social Care Operations,Supplies and Services,"6,115.64",Sep-22
Slough Borough Council,3554,Dimensions (Uk) Ltd,M42E,Adult Social Care Operations,Supplies and Services,"7,783.97",Sep-22
Slough Borough Council,3554,Dimensions (Uk) Ltd,M42E,Adult Social Care Operations,Supplies and Services,"7,479.24",Sep-22
Slough Borough Council,3554,Dimensions (Uk) Ltd,M42E,Adult Social Care Operations,Supplies and Services,"6,482.81",Sep-22
Slough Borough Council,3554,Dimensions (Uk) Ltd,M42E,Adult Social Care Operations,Supplies and Services,"6,151.69",Sep-22
Slough Borough Council,3554,Dimensions (Uk) Ltd,M42E,Adult Social Care Operations,Supplies and Services,"7,839.64",Sep-22
Slough Borough Council,805483,Direct Tyre Managenent Ltd,D610,Place Operations,Transport,"5,117.22",Sep-22
Slough Borough Council,805483,Direct Tyre Managenent Ltd,D620,Place Operations,Transport,631.56,Sep-22
Slough Borough Council,803306,Ditton Park Academy,E620,Children & Families,Supplies and Services,"17,683.56",Sep-22
Slough Borough Council,1457,Dr Norman Gordon,D320,Place Operations,Premises,"2,126.25",Sep-22
Slough Borough Council,803177,Early Steps Preschool,F909,Children & Families,Supplies and Services,"6,270.20",Sep-22
Slough Borough Council,803301,Eden Girls School,E610,Children & Families,Supplies and Services,"2,142.34",Sep-22
Slough Borough Council,1299,Edf Energy,K526,Building Management,Premises,"7,430.81",Sep-22
Slough Borough Council,1299,Edf Energy,K526,Building Management,Premises,"3,426.59",Sep-22
Slough Borough Council,1299,Edf Energy,K526,Building Management,Premises,"3,682.62",Sep-22
Slough Borough Council,1299,Edf Energy,K526,Building Management,Premises,"3,574.53",Sep-22
Slough Borough Council,1299,Edf Energy,K526,Building Management,Premises,"3,452.09",Sep-22
Slough Borough Council,1299,Edf Energy,K526,Building Management,Premises,"231,372.67",Sep-22
Slough Borough Council,1299,Edf Energy,K526,Building Management,Premises,"36,267.81",Sep-22
Slough Borough Council,1299,Edf Energy,K526,Building Management,Premises,"79,133.33",Sep-22
Slough Borough Council,1299,Edf Energy,K526,Building Management,Premises,"22,931.50",Sep-22
Slough Borough Council,1299,Edf Energy,K526,Building Management,Premises,"131,528.45",Sep-22
Slough Borough Council,1299,Edf Energy,K526,Building Management,Premises,"27,847.49",Sep-22
Slough Borough Council,1299,Edf Energy,K526,Building Management,Premises,"101,981.99",Sep-22
Slough Borough Council,1299,Edf Energy,K526,Building Management,Premises,"29,459.47",Sep-22
Slough Borough Council,1299,Edf Energy,D413,Place Strategy & Infrastructure,Supplies and Services,"59,553.69",Sep-22
Slough Borough Council,1299,Edf Energy,D413,Place Strategy & Infrastructure,Supplies and Services,"51,762.83",Sep-22
Slough Borough Council,1299,Edf Energy,D413,Place Strategy & Infrastructure,Supplies and Services,867.29,Sep-22
Slough Borough Council,1299,Edf Energy,D413,Place Strategy & Infrastructure,Supplies and Services,"56,776.78",Sep-22
Slough Borough Council,1299,Edf Energy,D413,Place Strategy & Infrastructure,Supplies and Services,"1,003.78",Sep-22
Slough Borough Council,1299,Edf Energy,D413,Place Strategy & Infrastructure,Supplies and Services,"69,028.18",Sep-22
Slough Borough Council,1299,Edf Energy,D413,Place Strategy & Infrastructure,Supplies and Services,"68,549.56",Sep-22
Slough Borough Council,1299,Edf Energy,D413,Place Strategy & Infrastructure,Supplies and Services,609.32,Sep-22
Slough Borough Council,807001,Elegant Care Services Ltd,M42E,Adult Social Care Operations,Supplies and Services,"5,757.14",Sep-22
Slough Borough Council,807001,Elegant Care Services Ltd,M42E,Adult Social Care Operations,Supplies and Services,"5,571.42",Sep-22
Slough Borough Council,807001,Elegant Care Services Ltd,M42E,Adult Social Care Operations,Supplies and Services,"10,185.71",Sep-22
Slough Borough Council,807001,Elegant Care Services Ltd,M42E,Adult Social Care Operations,Supplies and Services,"9,857.14",Sep-22
Slough Borough Council,807001,Elegant Care Services Ltd,M42E,Adult Social Care Operations,Supplies and Services,"5,978.57",Sep-22
Slough Borough Council,807001,Elegant Care Services Ltd,M42E,Adult Social Care Operations,Supplies and Services,"5,785.71",Sep-22
Slough Borough Council,807001,Elegant Care Services Ltd,M44C,Adult Social Care Operations,Supplies and Services,"6,535.71",Sep-22
Slough Borough Council,807001,Elegant Care Services Ltd,M44C,Adult Social Care Operations,Supplies and Services,"6,753.57",Sep-22
Slough Borough Council,806355,Elysium Healthcare,M26E,Adult Social Care Operations,Supplies and Services,"11,044.68",Sep-22
Slough Borough Council,806355,Elysium Healthcare,M26E,Adult Social Care Operations,Supplies and Services,"9,576.52",Sep-22
Slough Borough Council,3752,Endurance Health,A04E,Adult Social Care Operations,Supplies and Services,"-1,356.60",Sep-22
Slough Borough Council,3752,Endurance Health,A07R,Adult Social Care Operations,Supplies and Services,"2,281.27",Sep-22
Slough Borough Council,3752,Endurance Health,A07R,Adult Social Care Operations,Supplies and Services,"1,634.48",Sep-22
Slough Borough Council,3752,Endurance Health,A07R,Adult Social Care Operations,Supplies and Services,"2,804.57",Sep-22
Slough Borough Council,3752,Endurance Health,A07R,Adult Social Care Operations,Supplies and Services,-624.75,Sep-22
Slough Borough Council,3752,Endurance Health,A07R,Adult Social Care Operations,Supplies and Services,"2,256.86",Sep-22
Slough Borough Council,3752,Endurance Health,A07R,Adult Social Care Operations,Supplies and Services,"1,927.80",Sep-22
Slough Borough Council,3752,Endurance Health,M44C,Adult Social Care Operations,Supplies and Services,744.95,Sep-22
Slough Borough Council,3752,Endurance Health,M44C,Adult Social Care Operations,Supplies and Services,824.68,Sep-22
Slough Borough Council,3752,Endurance Health,M44C,Adult Social Care Operations,Supplies and Services,"1,270.35",Sep-22
Slough Borough Council,3752,Endurance Health,M44C,Adult Social Care Operations,Supplies and Services,571.20,Sep-22
Slough Borough Council,3752,Endurance Health,M44C,Adult Social Care Operations,Supplies and Services,999.61,Sep-22
Slough Borough Council,3752,Endurance Health,M44C,Adult Social Care Operations,Supplies and Services,"1,130.22",Sep-22
Slough Borough Council,3752,Endurance Health,M44C,Adult Social Care Operations,Supplies and Services,"1,124.55",Sep-22
Slough Borough Council,3752,Endurance Health,M44C,Adult Social Care Operations,Supplies and Services,"1,124.55",Sep-22
Slough Borough Council,3752,Endurance Health,M44C,Adult Social Care Operations,Supplies and Services,783.92,Sep-22
Slough Borough Council,3752,Endurance Health,M44C,Adult Social Care Operations,Supplies and Services,946.05,Sep-22
Slough Borough Council,3752,Endurance Health,M44C,Adult Social Care Operations,Supplies and Services,"1,499.40",Sep-22
Slough Borough Council,3752,Endurance Health,M44C,Adult Social Care Operations,Supplies and Services,"2,249.10",Sep-22
Slough Borough Council,3752,Endurance Health,M44C,Adult Social Care Operations,Supplies and Services,696.15,Sep-22
Slough Borough Council,3752,Endurance Health,M44C,Adult Social Care Operations,Supplies and Services,"1,124.55",Sep-22
Slough Borough Council,3752,Endurance Health,M44C,Adult Social Care Operations,Supplies and Services,"1,999.20",Sep-22
Slough Borough Council,3752,Endurance Health,M44C,Adult Social Care Operations,Supplies and Services,"2,499.00",Sep-22
Slough Borough Council,3752,Endurance Health,M44C,Adult Social Care Operations,Supplies and Services,726.51,Sep-22
Slough Borough Council,3752,Endurance Health,M44C,Adult Social Care Operations,Supplies and Services,548.90,Sep-22
Slough Borough Council,3752,Endurance Health,M44C,Adult Social Care Operations,Supplies and Services,"1,450.31",Sep-22
Slough Borough Council,3752,Endurance Health,M44C,Adult Social Care Operations,Supplies and Services,"1,303.37",Sep-22
Slough Borough Council,3752,Endurance Health,M44C,Adult Social Care Operations,Supplies and Services,606.90,Sep-22
Slough Borough Council,3752,Endurance Health,M44C,Adult Social Care Operations,Supplies and Services,"1,121.55",Sep-22
Slough Borough Council,3752,Endurance Health,M44C,Adult Social Care Operations,Supplies and Services,631.01,Sep-22
Slough Borough Council,3752,Endurance Health,M44C,Adult Social Care Operations,Supplies and Services,"1,124.55",Sep-22
Slough Borough Council,3752,Endurance Health,M44C,Adult Social Care Operations,Supplies and Services,714.00,Sep-22
Slough Borough Council,3752,Endurance Health,M44C,Adult Social Care Operations,Supplies and Services,"1,570.80",Sep-22
Slough Borough Council,3752,Endurance Health,M44C,Adult Social Care Operations,Supplies and Services,916.02,Sep-22
Slough Borough Council,3752,Endurance Health,M44C,Adult Social Care Operations,Supplies and Services,626.55,Sep-22
Slough Borough Council,3752,Endurance Health,M44C,Adult Social Care Operations,Supplies and Services,"1,121.00",Sep-22
Slough Borough Council,3752,Endurance Health,M44C,Adult Social Care Operations,Supplies and Services,725.91,Sep-22
Slough Borough Council,3752,Endurance Health,M44C,Adult Social Care Operations,Supplies and Services,"1,446.76",Sep-22
Slough Borough Council,3752,Endurance Health,M44D,Adult Social Care Operations,Supplies and Services,"2,499.00",Sep-22
Slough Borough Council,3752,Endurance Health,M44D,Adult Social Care Operations,Supplies and Services,"1,128.72",Sep-22
Slough Borough Council,3752,Endurance Health,M44D,Adult Social Care Operations,Supplies and Services,864.55,Sep-22
Slough Borough Council,3752,Endurance Health,M44D,Adult Social Care Operations,Supplies and Services,"1,124.55",Sep-22
Slough Borough Council,3752,Endurance Health,M45C,Adult Social Care Operations,Supplies and Services,772.32,Sep-22
Slough Borough Council,3752,Endurance Health,M45C,Adult Social Care Operations,Supplies and Services,794.93,Sep-22
Slough Borough Council,3752,Endurance Health,M45C,Adult Social Care Operations,Supplies and Services,"1,999.20",Sep-22
Slough Borough Council,3752,Endurance Health,M48C,Adult Social Care Operations,Supplies and Services,"2,998.80",Sep-22
Slough Borough Council,805423,Enriched Care,M44D,Adult Social Care Operations,Supplies and Services,"3,621.00",Sep-22
Slough Borough Council,805423,Enriched Care,M44F,Adult Social Care Operations,Supplies and Services,"2,529.00",Sep-22
Slough Borough Council,805423,Enriched Care,M44F,Adult Social Care Operations,Supplies and Services,"2,787.00",Sep-22
Slough Borough Council,805423,Enriched Care,M44F,Adult Social Care Operations,Supplies and Services,"2,679.00",Sep-22
Slough Borough Council,805423,Enriched Care,M44F,Adult Social Care Operations,Supplies and Services,"4,275.00",Sep-22
Slough Borough Council,805423,Enriched Care,M80F,Adult Social Care Operations,Supplies and Services,"1,701.30",Sep-22
Slough Borough Council,807310,Enterprise Rent-A-Car UK Limited trading as Enterprise Flex-E-Rent,D900,Place Operations,Transport,"27,639.10",Sep-22
Slough Borough Council,639,Environment Agency,D900,Place Operations,Supplies and Services,579.04,Sep-22
Slough Borough Council,4035,Ernst & Young Llp,B015,Finance & Commercial,Supplies and Services,"2,085.74",Sep-22
Slough Borough Council,640,Essex County Council,L516,Treasury Management,Agency Staff,"24,153.00",Sep-22
Slough Borough Council,640,Essex County Council,L516,Treasury Management,Agency Staff,"28,542.00",Sep-22
Slough Borough Council,2677,Eton House Residential Home,M25C,Adult Social Care Operations,Supplies and Services,"3,534.00",Sep-22
Slough Borough Council,2677,Eton House Residential Home,M25D,Adult Social Care Operations,Supplies and Services,"3,199.64",Sep-22
Slough Borough Council,2677,Eton House Residential Home,M27C,Adult Social Care Operations,Supplies and Services,"2,657.14",Sep-22
Slough Borough Council,2677,Eton House Residential Home,M27C,Adult Social Care Operations,Supplies and Services,"2,657.14",Sep-22
Slough Borough Council,1995,Eton Wick C Of E First School,F552,Children & Families,Supplies and Services,"3,098.00",Sep-22
Slough Borough Council,808344,Euro Housing UK LTD,H205,Housing (People) Services,Supplies and Services,"11,935.00",Sep-22
Slough Borough Council,806501,Excellent Healthcare Services Ltd,A07R,Adult Social Care Operations,Supplies and Services,897.80,Sep-22
Slough Borough Council,806501,Excellent Healthcare Services Ltd,A07R,Adult Social Care Operations,Supplies and Services,833.98,Sep-22
Slough Borough Council,806501,Excellent Healthcare Services Ltd,A07R,Adult Social Care Operations,Supplies and Services,612.72,Sep-22
Slough Borough Council,806501,Excellent Healthcare Services Ltd,A07R,Adult Social Care Operations,Supplies and Services,595.70,Sep-22
Slough Borough Council,806501,Excellent Healthcare Services Ltd,A07R,Adult Social Care Operations,Supplies and Services,825.47,Sep-22
Slough Borough Council,806501,Excellent Healthcare Services Ltd,A07R,Adult Social Care Operations,Supplies and Services,"1,165.87",Sep-22
Slough Borough Council,806501,Excellent Healthcare Services Ltd,A07R,Adult Social Care Operations,Supplies and Services,612.72,Sep-22
Slough Borough Council,806501,Excellent Healthcare Services Ltd,A07R,Adult Social Care Operations,Supplies and Services,544.64,Sep-22
Slough Borough Council,806501,Excellent Healthcare Services Ltd,A07R,Adult Social Care Operations,Supplies and Services,634.00,Sep-22
Slough Borough Council,806501,Excellent Healthcare Services Ltd,A07R,Adult Social Care Operations,Supplies and Services,"1,072.26",Sep-22
Slough Borough Council,806501,Excellent Healthcare Services Ltd,A07R,Adult Social Care Operations,Supplies and Services,689.31,Sep-22
Slough Borough Council,806501,Excellent Healthcare Services Ltd,M44C,Adult Social Care Operations,Supplies and Services,833.98,Sep-22
Slough Borough Council,806501,Excellent Healthcare Services Ltd,M44C,Adult Social Care Operations,Supplies and Services,"1,667.96",Sep-22
Slough Borough Council,806501,Excellent Healthcare Services Ltd,M44C,Adult Social Care Operations,Supplies and Services,595.70,Sep-22
Slough Borough Council,806501,Excellent Healthcare Services Ltd,M44C,Adult Social Care Operations,Supplies and Services,595.70,Sep-22
Slough Borough Council,806501,Excellent Healthcare Services Ltd,M44C,Adult Social Care Operations,Supplies and Services,"2,144.52",Sep-22
Slough Borough Council,806501,Excellent Healthcare Services Ltd,M44C,Adult Social Care Operations,Supplies and Services,"2,280.68",Sep-22
Slough Borough Council,806501,Excellent Healthcare Services Ltd,M44C,Adult Social Care Operations,Supplies and Services,714.84,Sep-22
Slough Borough Council,806501,Excellent Healthcare Services Ltd,M44C,Adult Social Care Operations,Supplies and Services,"1,072.26",Sep-22
Slough Borough Council,806501,Excellent Healthcare Services Ltd,M44C,Adult Social Care Operations,Supplies and Services,510.60,Sep-22
Slough Borough Council,806501,Excellent Healthcare Services Ltd,M44C,Adult Social Care Operations,Supplies and Services,"1,072.26",Sep-22
Slough Borough Council,806501,Excellent Healthcare Services Ltd,M44C,Adult Social Care Operations,Supplies and Services,833.98,Sep-22
Slough Borough Council,806501,Excellent Healthcare Services Ltd,M44C,Adult Social Care Operations,Supplies and Services,"1,676.47",Sep-22
Slough Borough Council,806501,Excellent Healthcare Services Ltd,M44C,Adult Social Care Operations,Supplies and Services,595.70,Sep-22
Slough Borough Council,806501,Excellent Healthcare Services Ltd,M44C,Adult Social Care Operations,Supplies and Services,595.70,Sep-22
Slough Borough Council,806501,Excellent Healthcare Services Ltd,M44C,Adult Social Care Operations,Supplies and Services,"2,280.68",Sep-22
Slough Borough Council,806501,Excellent Healthcare Services Ltd,M44C,Adult Social Care Operations,Supplies and Services,714.84,Sep-22
Slough Borough Council,806501,Excellent Healthcare Services Ltd,M44C,Adult Social Care Operations,Supplies and Services,"2,144.52",Sep-22
Slough Borough Council,806501,Excellent Healthcare Services Ltd,M44D,Adult Social Care Operations,Supplies and Services,595.70,Sep-22
Slough Borough Council,806501,Excellent Healthcare Services Ltd,M44D,Adult Social Care Operations,Supplies and Services,595.70,Sep-22
Slough Borough Council,806501,Excellent Healthcare Services Ltd,M44F,Adult Social Care Operations,Supplies and Services,723.35,Sep-22
Slough Borough Council,806501,Excellent Healthcare Services Ltd,M44F,Adult Social Care Operations,Supplies and Services,"2,382.80",Sep-22
Slough Borough Council,806501,Excellent Healthcare Services Ltd,M44F,Adult Social Care Operations,Supplies and Services,953.12,Sep-22
Slough Borough Council,806501,Excellent Healthcare Services Ltd,M44F,Adult Social Care Operations,Supplies and Services,"1,314.80",Sep-22
Slough Borough Council,806501,Excellent Healthcare Services Ltd,M44F,Adult Social Care Operations,Supplies and Services,714.84,Sep-22
Slough Borough Council,806501,Excellent Healthcare Services Ltd,M45C,Adult Social Care Operations,Supplies and Services,"1,021.20",Sep-22
Slough Borough Council,806501,Excellent Healthcare Services Ltd,M45C,Adult Social Care Operations,Supplies and Services,646.76,Sep-22
Slough Borough Council,807560,Exeter Royal Academy for Deaf Education,F558,Children & Families,Supplies and Services,"35,687.00",Sep-22
Slough Borough Council,805225,Falcon Surfacing Ltd,D880,Place Operations,Supplies and Services,"4,575.00",Sep-22
Slough Borough Council,805225,Falcon Surfacing Ltd,D880,Place Operations,Supplies and Services,"4,575.00",Sep-22
Slough Borough Council,805225,Falcon Surfacing Ltd,D880,Place Operations,Supplies and Services,995.00,Sep-22
Slough Borough Council,805225,Falcon Surfacing Ltd,D880,Place Operations,Supplies and Services,"20,070.50",Sep-22
Slough Borough Council,805225,Falcon Surfacing Ltd,D880,Place Operations,Supplies and Services,"13,205.00",Sep-22
Slough Borough Council,805225,Falcon Surfacing Ltd,D880,Place Operations,Supplies and Services,893.35,Sep-22
Slough Borough Council,805225,Falcon Surfacing Ltd,D880,Place Operations,Supplies and Services,"4,625.00",Sep-22
Slough Borough Council,805225,Falcon Surfacing Ltd,D880,Place Operations,Supplies and Services,"5,722.40",Sep-22
Slough Borough Council,805225,Falcon Surfacing Ltd,D880,Place Operations,Supplies and Services,"2,622.20",Sep-22
Slough Borough Council,805225,Falcon Surfacing Ltd,D880,Place Operations,Supplies and Services,"1,871.49",Sep-22
Slough Borough Council,805225,Falcon Surfacing Ltd,D880,Place Operations,Supplies and Services,"10,856.00",Sep-22
Slough Borough Council,805225,Falcon Surfacing Ltd,D880,Place Operations,Supplies and Services,"6,738.51",Sep-22
Slough Borough Council,805225,Falcon Surfacing Ltd,D880,Place Operations,Supplies and Services,"9,126.20",Sep-22
Slough Borough Council,805225,Falcon Surfacing Ltd,D880,Place Operations,Supplies and Services,"14,163.92",Sep-22
Slough Borough Council,805225,Falcon Surfacing Ltd,D880,Place Operations,Supplies and Services,"2,348.00",Sep-22
Slough Borough Council,805225,Falcon Surfacing Ltd,D880,Place Operations,Supplies and Services,"4,575.00",Sep-22
Slough Borough Council,805225,Falcon Surfacing Ltd,D880,Place Operations,Supplies and Services,"6,529.40",Sep-22
Slough Borough Council,805225,Falcon Surfacing Ltd,D880,Place Operations,Supplies and Services,"36,694.63",Sep-22
Slough Borough Council,805225,Falcon Surfacing Ltd,D880,Place Operations,Supplies and Services,"4,575.00",Sep-22
Slough Borough Council,805225,Falcon Surfacing Ltd,D880,Place Operations,Supplies and Services,"7,205.00",Sep-22
Slough Borough Council,805225,Falcon Surfacing Ltd,D880,Place Operations,Supplies and Services,"4,575.00",Sep-22
Slough Borough Council,805225,Falcon Surfacing Ltd,D880,Place Operations,Supplies and Services,"15,701.73",Sep-22
Slough Borough Council,805225,Falcon Surfacing Ltd,D880,Place Operations,Supplies and Services,"2,788.11",Sep-22
Slough Borough Council,805225,Falcon Surfacing Ltd,D880,Place Operations,Supplies and Services,"35,833.78",Sep-22
Slough Borough Council,805225,Falcon Surfacing Ltd,D880,Place Operations,Supplies and Services,"4,575.00",Sep-22
Slough Borough Council,805225,Falcon Surfacing Ltd,D880,Place Operations,Supplies and Services,"4,613.22",Sep-22
Slough Borough Council,805225,Falcon Surfacing Ltd,D880,Place Operations,Supplies and Services,"2,748.41",Sep-22
Slough Borough Council,805225,Falcon Surfacing Ltd,D880,Place Operations,Supplies and Services,690.00,Sep-22
Slough Borough Council,805225,Falcon Surfacing Ltd,D880,Place Operations,Supplies and Services,"3,660.00",Sep-22
Slough Borough Council,805225,Falcon Surfacing Ltd,D880,Place Operations,Supplies and Services,"4,380.00",Sep-22
Slough Borough Council,805225,Falcon Surfacing Ltd,D880,Place Operations,Supplies and Services,"1,925.78",Sep-22
Slough Borough Council,805225,Falcon Surfacing Ltd,D880,Place Operations,Supplies and Services,"58,555.54",Sep-22
Slough Borough Council,805225,Falcon Surfacing Ltd,D880,Place Operations,Supplies and Services,"1,711.46",Sep-22
Slough Borough Council,805225,Falcon Surfacing Ltd,D880,Place Operations,Supplies and Services,641.14,Sep-22
Slough Borough Council,805225,Falcon Surfacing Ltd,D880,Place Operations,Supplies and Services,871.52,Sep-22
Slough Borough Council,805225,Falcon Surfacing Ltd,D880,Place Operations,Supplies and Services,641.14,Sep-22
Slough Borough Council,805225,Falcon Surfacing Ltd,D880,Place Operations,Supplies and Services,"3,660.00",Sep-22
Slough Borough Council,805225,Falcon Surfacing Ltd,D880,Place Operations,Supplies and Services,"3,908.91",Sep-22
Slough Borough Council,805225,Falcon Surfacing Ltd,D880,Place Operations,Supplies and Services,918.89,Sep-22
Slough Borough Council,805225,Falcon Surfacing Ltd,D880,Place Operations,Supplies and Services,"2,748.41",Sep-22
Slough Borough Council,805225,Falcon Surfacing Ltd,D880,Place Operations,Supplies and Services,"4,575.00",Sep-22
Slough Borough Council,805225,Falcon Surfacing Ltd,D880,Place Operations,Supplies and Services,"5,360.91",Sep-22
Slough Borough Council,805225,Falcon Surfacing Ltd,D880,Place Operations,Supplies and Services,"3,660.00",Sep-22
Slough Borough Council,805225,Falcon Surfacing Ltd,D880,Place Operations,Supplies and Services,"38,054.35",Sep-22
Slough Borough Council,641,Falon Nameplates Limited,D320,Place Operations,Supplies and Services,"1,043.50",Sep-22
Slough Borough Council,641,Falon Nameplates Limited,D320,Place Operations,Supplies and Services,"1,076.64",Sep-22
Slough Borough Council,4031,Family Support Practise Limited,A03D,Adult Social Care Operations,Supplies and Services,"2,189.25",Sep-22
Slough Borough Council,4031,Family Support Practise Limited,B277,Digital and Strategic IT,Supplies and Services,"1,459.50",Sep-22
Slough Borough Council,4031,Family Support Practise Limited,B277,Digital and Strategic IT,Supplies and Services,"1,800.00",Sep-22
Slough Borough Council,4031,Family Support Practise Limited,B277,Digital and Strategic IT,Supplies and Services,"1,800.00",Sep-22
Slough Borough Council,4031,Family Support Practise Limited,B277,Digital and Strategic IT,Supplies and Services,"1,100.00",Sep-22
Slough Borough Council,4031,Family Support Practise Limited,B277,Digital and Strategic IT,Supplies and Services,"1,459.50",Sep-22
Slough Borough Council,475,Farnham Road Surgery,A04C,Adult Social Care Operations,Supplies and Services,"14,313.66",Sep-22
Slough Borough Council,803888,FFT Education Ltd,F200,Education & Inclusion,Supplies and Services,"2,873.24",Sep-22
Slough Borough Council,806760,Fire Maintenance Limited,B179,Business Services,Supplies and Services,"1,300.00",Sep-22
Slough Borough Council,955,First Beeline Buses Ltd,D512,Place Strategy & Infrastructure,Supplies and Services,"92,230.07",Sep-22
Slough Borough Council,955,First Beeline Buses Ltd,D512,Place Strategy & Infrastructure,Supplies and Services,"92,230.07",Sep-22
Slough Borough Council,1413,First Greater Western Ltd,F123,Education & Inclusion,Supplies and Services,"1,144.00",Sep-22
Slough Borough Council,754,First Steps Day Nursery,F909,Children & Families,Supplies and Services,"10,168.53",Sep-22
Slough Borough Council,1626,Five Star Radio Cars Limited,F123,Education & Inclusion,Supplies and Services,950.00,Sep-22
Slough Borough Council,808561,Fizz Pop Science,F382,Children & Families,Supplies and Services,900.00,Sep-22
Slough Borough Council,2519,Fleet Tutors,F416,Education & Inclusion,Supplies and Services,"3,168.00",Sep-22
Slough Borough Council,2204,Fleetdrive Management Ltd,M50A,Place Operations,Transport,500.08,Sep-22
Slough Borough Council,2204,Fleetdrive Management Ltd,M50A,Place Operations,Transport,500.08,Sep-22
Slough Borough Council,2204,Fleetdrive Management Ltd,M50A,Place Operations,Transport,500.08,Sep-22
Slough Borough Council,2460,Forest Bridge School Ltd,F417,Education & Inclusion,Supplies and Services,793.33,Sep-22
Slough Borough Council,1204,Forget Me Not,M25C,Adult Social Care Operations,Supplies and Services,"3,800.00",Sep-22
Slough Borough Council,1204,Forget Me Not,M25C,Adult Social Care Operations,Supplies and Services,"3,180.00",Sep-22
Slough Borough Council,1204,Forget Me Not,M25C,Adult Social Care Operations,Supplies and Services,"3,800.00",Sep-22
Slough Borough Council,1204,Forget Me Not,M25C,Adult Social Care Operations,Supplies and Services,"3,180.00",Sep-22
Slough Borough Council,1204,Forget Me Not,M27C,Adult Social Care Operations,Supplies and Services,"3,570.00",Sep-22
Slough Borough Council,1204,Forget Me Not,M27C,Adult Social Care Operations,Supplies and Services,"3,199.76",Sep-22
Slough Borough Council,1204,Forget Me Not,M27C,Adult Social Care Operations,Supplies and Services,"3,570.00",Sep-22
Slough Borough Council,1204,Forget Me Not,M27C,Adult Social Care Operations,Supplies and Services,"3,199.76",Sep-22
Slough Borough Council,647,Foxborough Primary School,E620,Children & Families,Supplies and Services,"11,911.54",Sep-22
Slough Borough Council,805936,Freshworks Inc,B282,Digital and Strategic IT,Supplies and Services,"4,140.00",Sep-22
Slough Borough Council,806480,Frontier NX Limited,A04C,Adult Social Care Operations,Supplies and Services,920.16,Sep-22
Slough Borough Council,806480,Frontier NX Limited,A04C,Adult Social Care Operations,Supplies and Services,"3,073.50",Sep-22
Slough Borough Council,807125,Futures For Shared Lives,M36E,Adult Social Care Operations,Supplies and Services,"3,325.50",Sep-22
Slough Borough Council,807125,Futures For Shared Lives,M36E,Adult Social Care Operations,Supplies and Services,"3,436.35",Sep-22
Slough Borough Council,807125,Futures For Shared Lives,M36E,Adult Social Care Operations,Supplies and Services,"3,436.35",Sep-22
Slough Borough Council,804911,GAP Group Limited,D880,Place Operations,Supplies and Services,902.88,Sep-22
Slough Borough Council,804911,GAP Group Limited,D880,Place Operations,Supplies and Services,924.00,Sep-22
Slough Borough Council,804911,GAP Group Limited,D880,Place Operations,Supplies and Services,968.00,Sep-22
Slough Borough Council,804911,GAP Group Limited,D880,Place Operations,Supplies and Services,950.40,Sep-22
Slough Borough Council,804911,GAP Group Limited,D880,Place Operations,Supplies and Services,924.00,Sep-22
Slough Borough Council,804911,GAP Group Limited,D880,Place Operations,Supplies and Services,882.00,Sep-22
Slough Borough Council,804911,GAP Group Limited,D880,Place Operations,Supplies and Services,924.00,Sep-22
Slough Borough Council,804911,GAP Group Limited,D880,Place Operations,Supplies and Services,924.00,Sep-22
Slough Borough Council,804911,GAP Group Limited,D880,Place Operations,Supplies and Services,882.00,Sep-22
Slough Borough Council,804911,GAP Group Limited,D880,Place Operations,Supplies and Services,997.92,Sep-22
Slough Borough Council,804911,GAP Group Limited,D880,Place Operations,Supplies and Services,968.00,Sep-22
Slough Borough Council,804911,GAP Group Limited,D880,Place Operations,Supplies and Services,997.92,Sep-22
Slough Borough Council,1758,Gas Advisory Services Limited,J606,Place Management,Supplies and Services,"4,224.50",Sep-22
Slough Borough Council,1758,Gas Advisory Services Limited,J606,Place Management,Supplies and Services,"3,504.00",Sep-22
Slough Borough Council,1758,Gas Advisory Services Limited,J606,Place Management,Supplies and Services,840.00,Sep-22
Slough Borough Council,1758,Gas Advisory Services Limited,J606,Place Management,Supplies and Services,840.00,Sep-22
Slough Borough Council,807052,Georgia Thompson,C322,Community,Supplies and Services,934.00,Sep-22
Slough Borough Council,803955,Gillotts School,F552,Children & Families,Supplies and Services,"6,000.00",Sep-22
Slough Borough Council,806204,GLOBAL MEDIATION LIMITED,F500,Education & Inclusion,Supplies and Services,"1,600.00",Sep-22
Slough Borough Council,2830,GR Response Healthcare Ltd,A07R,Adult Social Care Operations,Supplies and Services,"2,250.08",Sep-22
Slough Borough Council,2830,GR Response Healthcare Ltd,A07R,Adult Social Care Operations,Supplies and Services,"1,892.92",Sep-22
Slough Borough Council,2830,GR Response Healthcare Ltd,M44C,Adult Social Care Operations,Supplies and Services,"2,394.00",Sep-22
Slough Borough Council,2830,GR Response Healthcare Ltd,M44C,Adult Social Care Operations,Supplies and Services,"1,330.00",Sep-22
Slough Borough Council,2830,GR Response Healthcare Ltd,M44C,Adult Social Care Operations,Supplies and Services,"2,394.00",Sep-22
Slough Borough Council,2830,GR Response Healthcare Ltd,M44C,Adult Social Care Operations,Supplies and Services,"1,577.00",Sep-22
Slough Borough Council,2830,GR Response Healthcare Ltd,M44C,Adult Social Care Operations,Supplies and Services,"1,320.50",Sep-22
Slough Borough Council,2830,GR Response Healthcare Ltd,M44C,Adult Social Care Operations,Supplies and Services,"2,546.00",Sep-22
Slough Borough Council,2830,GR Response Healthcare Ltd,M44C,Adult Social Care Operations,Supplies and Services,"2,250.08",Sep-22
Slough Borough Council,2830,GR Response Healthcare Ltd,M44C,Adult Social Care Operations,Supplies and Services,"2,000.32",Sep-22
Slough Borough Council,2830,GR Response Healthcare Ltd,M44C,Adult Social Care Operations,Supplies and Services,"1,615.84",Sep-22
Slough Borough Council,2830,GR Response Healthcare Ltd,M44C,Adult Social Care Operations,Supplies and Services,"1,500.24",Sep-22
Slough Borough Council,2830,GR Response Healthcare Ltd,M44D,Adult Social Care Operations,Supplies and Services,"1,596.00",Sep-22
Slough Borough Council,2830,GR Response Healthcare Ltd,M44D,Adult Social Care Operations,Supplies and Services,931.00,Sep-22
Slough Borough Council,2830,GR Response Healthcare Ltd,M44D,Adult Social Care Operations,Supplies and Services,"2,698.00",Sep-22
Slough Borough Council,2830,GR Response Healthcare Ltd,M44D,Adult Social Care Operations,Supplies and Services,"2,593.50",Sep-22
Slough Borough Council,2830,GR Response Healthcare Ltd,M44D,Adult Social Care Operations,Supplies and Services,"2,044.72",Sep-22
Slough Borough Council,2830,GR Response Healthcare Ltd,M44D,Adult Social Care Operations,Supplies and Services,"2,250.08",Sep-22
Slough Borough Council,2830,GR Response Healthcare Ltd,M44F,Adult Social Care Operations,Supplies and Services,"2,128.00",Sep-22
Slough Borough Council,2830,GR Response Healthcare Ltd,M44F,Adult Social Care Operations,Supplies and Services,570.92,Sep-22
Slough Borough Council,2830,GR Response Healthcare Ltd,M45C,Adult Social Care Operations,Supplies and Services,"2,394.00",Sep-22
Slough Borough Council,2830,GR Response Healthcare Ltd,M48C,Adult Social Care Operations,Supplies and Services,"3,002.00",Sep-22
Slough Borough Council,2830,GR Response Healthcare Ltd,A06C,Adult Social Care Commissioning,Supplies and Services,"8,400.00",Sep-22
Slough Borough Council,807255,Green Corridor,F558,Children & Families,Supplies and Services,"1,624.00",Sep-22
Slough Borough Council,807255,Green Corridor,F558,Children & Families,Supplies and Services,"2,348.04",Sep-22
Slough Borough Council,808378,Greensleeves Care,M17C,Adult Social Care Operations,Supplies and Services,"3,497.49",Sep-22
Slough Borough Council,805069,Grove Academy,E610,Children & Families,Supplies and Services,"23,250.00",Sep-22
Slough Borough Council,804447,Grundon Waste Management Limited,D342,Place Operations,Supplies and Services,"462,144.35",Sep-22
Slough Borough Council,3228,H Plus Care Ltd,M18C,Adult Social Care Operations,Supplies and Services,"5,142.86",Sep-22
Slough Borough Council,3228,H Plus Care Ltd,M25C,Adult Social Care Operations,Supplies and Services,"5,357.14",Sep-22
Slough Borough Council,3228,H Plus Care Ltd,M26E,Adult Social Care Operations,Supplies and Services,"5,142.86",Sep-22
Slough Borough Council,806681,Hako Machines Ltd,D620,Place Operations,Supplies and Services,597.42,Sep-22
Slough Borough Council,744,Hampshire County Council,D015,Place Strategy & Infrastructure,Supplies and Services,"3,415.50",Sep-22
Slough Borough Council,804986,Havencare Ltd,M26E,Adult Social Care Operations,Supplies and Services,"5,118.00",Sep-22
Slough Borough Council,1381,Haybrook College,E610,Children & Families,Supplies and Services,"88,684.19",Sep-22
Slough Borough Council,3784,Haybrook College Pru,E610,Children & Families,Supplies and Services,"54,200.00",Sep-22
Slough Borough Council,803753,Healthcare Homes,M15D,Adult Social Care Operations,Supplies and Services,"2,734.29",Sep-22
Slough Borough Council,803753,Healthcare Homes,M17C,Adult Social Care Operations,Supplies and Services,"4,285.71",Sep-22
Slough Borough Council,803753,Healthcare Homes,M17C,Adult Social Care Operations,Supplies and Services,"4,714.29",Sep-22
Slough Borough Council,803753,Healthcare Homes,M17C,Adult Social Care Operations,Supplies and Services,"2,544.86",Sep-22
Slough Borough Council,803753,Healthcare Homes,M17C,Adult Social Care Operations,Supplies and Services,"4,428.57",Sep-22
Slough Borough Council,803753,Healthcare Homes,M18C,Adult Social Care Operations,Supplies and Services,"4,714.29",Sep-22
Slough Borough Council,803753,Healthcare Homes,M27C,Adult Social Care Operations,Supplies and Services,"3,000.00",Sep-22
Slough Borough Council,803753,Healthcare Homes,M28C,Adult Social Care Operations,Supplies and Services,"4,428.57",Sep-22
Slough Borough Council,803753,Healthcare Homes,M28C,Adult Social Care Operations,Supplies and Services,"4,428.57",Sep-22
Slough Borough Council,805368,Heathermount School,F462,Children & Families,Supplies and Services,"17,445.79",Sep-22
Slough Borough Council,805368,Heathermount School,F462,Children & Families,Supplies and Services,"17,445.79",Sep-22
Slough Borough Council,805368,Heathermount School,F462,Children & Families,Supplies and Services,"17,445.79",Sep-22
Slough Borough Council,807682,Help and Care,A02C,Adult Social Care Commissioning,Supplies and Services,"16,109.74",Sep-22
Slough Borough Council,807944,Hemisphere West Europe Ltd.,C104,Community,Supplies and Services,"3,240.00",Sep-22
Slough Borough Council,805818,Hestia Housing & Support,H254,Place Regulation,Supplies and Services,"53,610.81",Sep-22
Slough Borough Council,806731,High Hurlands Homes,M26E,Adult Social Care Operations,Supplies and Services,"6,730.80",Sep-22
Slough Borough Council,806731,High Hurlands Homes,M26E,Adult Social Care Operations,Supplies and Services,"7,451.96",Sep-22
Slough Borough Council,850,Holy Family Catholic Primary School,E250,Children & Families,Supplies and Services,"166,656.93",Sep-22
Slough Borough Council,2113,Housing Partners,H217,Community,Supplies and Services,"10,494.75",Sep-22
Slough Borough Council,1914,Huntcliff Limited,J028,Place Management,Supplies and Services,987.50,Sep-22
Slough Borough Council,2917,Imperial Coaches Ltd,F123,Education & Inclusion,Supplies and Services,"2,350.00",Sep-22
Slough Borough Council,351,Imperial Polythene Products Ltd,D620,Place Operations,Supplies and Services,"2,450.00",Sep-22
Slough Borough Council,807666,Independence Home and Domicilary Care,M44F,Adult Social Care Operations,Supplies and Services,"3,381.17",Sep-22
Slough Borough Council,807666,Independence Home and Domicilary Care,M44F,Adult Social Care Operations,Supplies and Services,"2,940.66",Sep-22
Slough Borough Council,807666,Independence Home and Domicilary Care,M44F,Adult Social Care Operations,Supplies and Services,"3,348.00",Sep-22
Slough Borough Council,807666,Independence Home and Domicilary Care,M44F,Adult Social Care Operations,Supplies and Services,"1,544.58",Sep-22
Slough Borough Council,3570,Independent Supported Living And Disabilities Ltd,M42E,Adult Social Care Operations,Supplies and Services,"3,000.28",Sep-22
Slough Borough Council,3570,Independent Supported Living And Disabilities Ltd,M42E,Adult Social Care Operations,Supplies and Services,"3,000.28",Sep-22
Slough Borough Council,3570,Independent Supported Living And Disabilities Ltd,M42E,Adult Social Care Operations,Supplies and Services,"3,000.00",Sep-22
Slough Borough Council,3570,Independent Supported Living And Disabilities Ltd,M44D,Adult Social Care Operations,Supplies and Services,"3,044.16",Sep-22
Slough Borough Council,3570,Independent Supported Living And Disabilities Ltd,M44E,Adult Social Care Operations,Supplies and Services,"3,570.00",Sep-22
Slough Borough Council,3570,Independent Supported Living And Disabilities Ltd,M44E,Adult Social Care Operations,Supplies and Services,"1,050.00",Sep-22
Slough Borough Council,3570,Independent Supported Living And Disabilities Ltd,M44E,Adult Social Care Operations,Supplies and Services,"4,212.00",Sep-22
Slough Borough Council,3570,Independent Supported Living And Disabilities Ltd,M44E,Adult Social Care Operations,Supplies and Services,"1,440.00",Sep-22
Slough Borough Council,3570,Independent Supported Living And Disabilities Ltd,M44E,Adult Social Care Operations,Supplies and Services,"4,212.00",Sep-22
Slough Borough Council,3570,Independent Supported Living And Disabilities Ltd,M44E,Adult Social Care Operations,Supplies and Services,"1,050.00",Sep-22
Slough Borough Council,3570,Independent Supported Living And Disabilities Ltd,M44E,Adult Social Care Operations,Supplies and Services,"3,570.00",Sep-22
Slough Borough Council,3570,Independent Supported Living And Disabilities Ltd,M44E,Adult Social Care Operations,Supplies and Services,"1,440.00",Sep-22
Slough Borough Council,3570,Independent Supported Living And Disabilities Ltd,M44E,Adult Social Care Operations,Supplies and Services,"1,049.72",Sep-22
Slough Borough Council,3570,Independent Supported Living And Disabilities Ltd,M44E,Adult Social Care Operations,Supplies and Services,"1,440.00",Sep-22
Slough Borough Council,3570,Independent Supported Living And Disabilities Ltd,M81D,Adult Social Care Operations,Supplies and Services,"4,172.00",Sep-22
Slough Borough Council,3570,Independent Supported Living And Disabilities Ltd,M81D,Adult Social Care Operations,Supplies and Services,"4,172.00",Sep-22
Slough Borough Council,3172,Intelligent Transport Services,D015,Place Strategy & Infrastructure,Supplies and Services,"3,500.00",Sep-22
Slough Borough Council,3172,Intelligent Transport Services,D509,Place Strategy & Infrastructure,Supplies and Services,612.85,Sep-22
Slough Borough Council,3500,Iqra Slough Islamic Primary School,E480,Children & Families,Supplies and Services,"113,747.37",Sep-22
Slough Borough Council,998,Iron Mountain Uk Ltd,B282,Digital and Strategic IT,Supplies and Services,797.51,Sep-22
Slough Borough Council,2919,Islamic Shakhsiyah Foundation,F909,Children & Families,Supplies and Services,"9,007.09",Sep-22
Slough Borough Council,807346,Jacaranda,M44F,Adult Social Care Operations,Supplies and Services,"4,379.00",Sep-22
Slough Borough Council,807346,Jacaranda,M44F,Adult Social Care Operations,Supplies and Services,"4,379.00",Sep-22
Slough Borough Council,753,Jack In The Box Day Nursery,F909,Children & Families,Supplies and Services,"11,997.83",Sep-22
Slough Borough Council,733,James Elliman  School,E620,Children & Families,Supplies and Services,"38,026.44",Sep-22
Slough Borough Council,805226,JD Surfacing & Civil Engineering Limited,D880,Place Operations,Supplies and Services,"1,855.00",Sep-22
Slough Borough Council,805226,JD Surfacing & Civil Engineering Limited,D880,Place Operations,Supplies and Services,"7,980.00",Sep-22
Slough Borough Council,805226,JD Surfacing & Civil Engineering Limited,D880,Place Operations,Supplies and Services,"13,301.55",Sep-22
Slough Borough Council,805226,JD Surfacing & Civil Engineering Limited,D880,Place Operations,Supplies and Services,"4,844.00",Sep-22
Slough Borough Council,805226,JD Surfacing & Civil Engineering Limited,D880,Place Operations,Supplies and Services,"8,380.00",Sep-22
Slough Borough Council,805226,JD Surfacing & Civil Engineering Limited,D880,Place Operations,Supplies and Services,"7,413.52",Sep-22
Slough Borough Council,805226,JD Surfacing & Civil Engineering Limited,D880,Place Operations,Supplies and Services,"1,855.00",Sep-22
Slough Borough Council,805226,JD Surfacing & Civil Engineering Limited,D880,Place Operations,Supplies and Services,"16,610.80",Sep-22
Slough Borough Council,805226,JD Surfacing & Civil Engineering Limited,D880,Place Operations,Supplies and Services,"10,090.00",Sep-22
Slough Borough Council,805226,JD Surfacing & Civil Engineering Limited,D880,Place Operations,Supplies and Services,"8,525.93",Sep-22
Slough Borough Council,805226,JD Surfacing & Civil Engineering Limited,D880,Place Operations,Supplies and Services,"7,980.00",Sep-22
Slough Borough Council,805226,JD Surfacing & Civil Engineering Limited,D880,Place Operations,Supplies and Services,"5,950.02",Sep-22
Slough Borough Council,805226,JD Surfacing & Civil Engineering Limited,D880,Place Operations,Supplies and Services,"1,484.00",Sep-22
Slough Borough Council,805226,JD Surfacing & Civil Engineering Limited,D880,Place Operations,Supplies and Services,"8,192.04",Sep-22
Slough Borough Council,805226,JD Surfacing & Civil Engineering Limited,D880,Place Operations,Supplies and Services,"7,980.00",Sep-22
Slough Borough Council,805226,JD Surfacing & Civil Engineering Limited,D880,Place Operations,Supplies and Services,840.00,Sep-22
Slough Borough Council,807308,JLA Total Care Ltd,H205,Housing (People) Services,Supplies and Services,675.75,Sep-22
Slough Borough Council,808537,Kaitlin Killerby,F253,Children & Families,Agency Staff,"1,088.00",Sep-22
Slough Borough Council,808046,Karl Drummond,F253,Children & Families,Agency Staff,"1,088.00",Sep-22
Slough Borough Council,803815,Kathys Childcare,F909,Children & Families,Supplies and Services,"2,434.88",Sep-22
Slough Borough Council,2620,Kcare Nursing Agency Ltd,M44C,Adult Social Care Operations,Supplies and Services,883.89,Sep-22
Slough Borough Council,2620,Kcare Nursing Agency Ltd,M44C,Adult Social Care Operations,Supplies and Services,"1,364.91",Sep-22
Slough Borough Council,2620,Kcare Nursing Agency Ltd,M44C,Adult Social Care Operations,Supplies and Services,"2,826.31",Sep-22
Slough Borough Council,2620,Kcare Nursing Agency Ltd,M44C,Adult Social Care Operations,Supplies and Services,"1,071.34",Sep-22
Slough Borough Council,2620,Kcare Nursing Agency Ltd,M44C,Adult Social Care Operations,Supplies and Services,774.36,Sep-22
Slough Borough Council,2620,Kcare Nursing Agency Ltd,M44D,Adult Social Care Operations,Supplies and Services,"1,571.36",Sep-22
Slough Borough Council,2620,Kcare Nursing Agency Ltd,M44D,Adult Social Care Operations,Supplies and Services,"1,474.86",Sep-22
Slough Borough Council,2620,Kcare Nursing Agency Ltd,M44D,Adult Social Care Operations,Supplies and Services,839.48,Sep-22
Slough Borough Council,2620,Kcare Nursing Agency Ltd,M48C,Adult Social Care Operations,Supplies and Services,"1,073.26",Sep-22
Slough Borough Council,2620,Kcare Nursing Agency Ltd,M48C,Adult Social Care Operations,Supplies and Services,986.80,Sep-22
Slough Borough Council,2620,Kcare Nursing Agency Ltd,M48C,Adult Social Care Operations,Supplies and Services,"4,000.00",Sep-22
Slough Borough Council,2620,Kcare Nursing Agency Ltd,M48C,Adult Social Care Operations,Supplies and Services,"4,000.00",Sep-22
Slough Borough Council,804887,KCare Nursing Agency Ltd Supported House Living,M42F,Adult Social Care Operations,Supplies and Services,"2,926.00",Sep-22
Slough Borough Council,804887,KCare Nursing Agency Ltd Supported House Living,M44F,Adult Social Care Operations,Supplies and Services,"2,493.50",Sep-22
Slough Borough Council,804875,Kennel Lane School,F551,Children & Families,Supplies and Services,"3,978.00",Sep-22
Slough Borough Council,808146,Kents Hill Care Home,M18C,Adult Social Care Operations,Supplies and Services,"3,764.29",Sep-22
Slough Borough Council,807742,Khalsa Primary School,E620,Children & Families,Supplies and Services,"25,258.61",Sep-22
Slough Borough Council,803916,Kharis Solutions,M42E,Adult Social Care Operations,Supplies and Services,"7,188.00",Sep-22
Slough Borough Council,803916,Kharis Solutions,M42E,Adult Social Care Operations,Supplies and Services,"7,188.00",Sep-22
Slough Borough Council,803916,Kharis Solutions,M44C,Adult Social Care Operations,Supplies and Services,"1,470.84",Sep-22
Slough Borough Council,803916,Kharis Solutions,M44C,Adult Social Care Operations,Supplies and Services,"1,961.12",Sep-22
Slough Borough Council,803916,Kharis Solutions,M44C,Adult Social Care Operations,Supplies and Services,"2,346.34",Sep-22
Slough Borough Council,803916,Kharis Solutions,M44C,Adult Social Care Operations,Supplies and Services,"1,470.84",Sep-22
Slough Borough Council,803916,Kharis Solutions,M44D,Adult Social Care Operations,Supplies and Services,"2,206.26",Sep-22
Slough Borough Council,803916,Kharis Solutions,M44D,Adult Social Care Operations,Supplies and Services,"2,206.26",Sep-22
Slough Borough Council,803916,Kharis Solutions,M48C,Adult Social Care Operations,Supplies and Services,"2,276.30",Sep-22
Slough Borough Council,803916,Kharis Solutions,M48C,Adult Social Care Operations,Supplies and Services,"2,276.30",Sep-22
Slough Borough Council,807911,Kidz Enterprise LTD,F382,Children & Families,Supplies and Services,"1,621.00",Sep-22
Slough Borough Council,807911,Kidz Enterprise LTD,F382,Children & Families,Supplies and Services,"3,243.00",Sep-22
Slough Borough Council,1728,Kristiina Smith,C322,Community,Supplies and Services,"1,360.00",Sep-22
Slough Borough Council,805130,LABC Central,D218,Place Regulation,Salaries and Wages-Employees Expenses,"2,201.33",Sep-22
Slough Borough Council,664,Langley Grammar School,E610,Children & Families,Supplies and Services,732.67,Sep-22
Slough Borough Council,1699,Langley Hall Primary Academy,E620,Children & Families,Supplies and Services,"7,053.18",Sep-22
Slough Borough Council,3001,Langley Haven Care Homes Ltd,M25C,Adult Social Care Operations,Supplies and Services,"3,488.40",Sep-22
Slough Borough Council,3001,Langley Haven Care Homes Ltd,M25C,Adult Social Care Operations,Supplies and Services,"3,488.40",Sep-22
Slough Borough Council,3001,Langley Haven Care Homes Ltd,M25D,Adult Social Care Operations,Supplies and Services,"3,604.68",Sep-22
Slough Borough Council,3001,Langley Haven Care Homes Ltd,M25D,Adult Social Care Operations,Supplies and Services,"3,488.40",Sep-22
Slough Borough Council,3001,Langley Haven Care Homes Ltd,M25D,Adult Social Care Operations,Supplies and Services,"2,674.44",Sep-22
Slough Borough Council,3001,Langley Haven Care Homes Ltd,M26D,Adult Social Care Operations,Supplies and Services,930.24,Sep-22
Slough Borough Council,3001,Langley Haven Care Homes Ltd,M26D,Adult Social Care Operations,Supplies and Services,"1,744.20",Sep-22
Slough Borough Council,3001,Langley Haven Care Homes Ltd,M26E,Adult Social Care Operations,Supplies and Services,"3,600.00",Sep-22
Slough Borough Council,3001,Langley Haven Care Homes Ltd,M27C,Adult Social Care Operations,Supplies and Services,"3,488.40",Sep-22
Slough Borough Council,3001,Langley Haven Care Homes Ltd,M27C,Adult Social Care Operations,Supplies and Services,"3,488.40",Sep-22
Slough Borough Council,3001,Langley Haven Care Homes Ltd,M27C,Adult Social Care Operations,Supplies and Services,"3,488.40",Sep-22
Slough Borough Council,3001,Langley Haven Care Homes Ltd,M27C,Adult Social Care Operations,Supplies and Services,"3,488.40",Sep-22
Slough Borough Council,3001,Langley Haven Care Homes Ltd,M27F,Adult Social Care Operations,Supplies and Services,"1,821.43",Sep-22
Slough Borough Council,3001,Langley Haven Care Homes Ltd,M27F,Adult Social Care Operations,Supplies and Services,"3,257.14",Sep-22
Slough Borough Council,3001,Langley Haven Care Homes Ltd,M27F,Adult Social Care Operations,Supplies and Services,"3,488.40",Sep-22
Slough Borough Council,3001,Langley Haven Care Homes Ltd,M27F,Adult Social Care Operations,Supplies and Services,"3,488.40",Sep-22
Slough Borough Council,3001,Langley Haven Care Homes Ltd,M27F,Adult Social Care Operations,Supplies and Services,"3,488.40",Sep-22
Slough Borough Council,3001,Langley Haven Care Homes Ltd,M27F,Adult Social Care Operations,Supplies and Services,"3,488.40",Sep-22
Slough Borough Council,3001,Langley Haven Care Homes Ltd,M28C,Adult Social Care Operations,Supplies and Services,"3,604.68",Sep-22
Slough Borough Council,3001,Langley Haven Care Homes Ltd,M29C,Adult Social Care Operations,Supplies and Services,"3,488.40",Sep-22
Slough Borough Council,3001,Langley Haven Care Homes Ltd,M29C,Adult Social Care Operations,Supplies and Services,"3,420.00",Sep-22
Slough Borough Council,803686,Lascelles Park Nursery,F909,Children & Families,Supplies and Services,"17,552.68",Sep-22
Slough Borough Council,808111,Learning Curve Group Ltd,F210,Community,TP-Other Bodies,"79,694.67",Sep-22
Slough Borough Council,808423,Leo�s Circus CIC,F382,Children & Families,Supplies and Services,"1,053.36",Sep-22
Slough Borough Council,3482,Leonard Cheshire Disability,M25D,Adult Social Care Operations,Supplies and Services,"5,699.36",Sep-22
Slough Borough Council,3482,Leonard Cheshire Disability,M25D,Adult Social Care Operations,Supplies and Services,"5,699.36",Sep-22
Slough Borough Council,3482,Leonard Cheshire Disability,M25D,Adult Social Care Operations,Supplies and Services,"5,889.34",Sep-22
Slough Borough Council,3482,Leonard Cheshire Disability,M26E,Adult Social Care Operations,Supplies and Services,"6,579.93",Sep-22
Slough Borough Council,3482,Leonard Cheshire Disability,M26E,Adult Social Care Operations,Supplies and Services,"6,367.67",Sep-22
Slough Borough Council,301,Liberata Uk Limited,B048,Finance & Commercial,Supplies and Services,"10,458.72",Sep-22
Slough Borough Council,301,Liberata Uk Limited,B048,Finance & Commercial,Supplies and Services,"10,968.70",Sep-22
Slough Borough Council,807116,Libraries Connected,C104,Community,Indirect Employee Expenses,507.03,Sep-22
Slough Borough Council,469,LimeBlue Innovation Limited,H213,Adult Social Care Operations,Supplies and Services,"1,030.00",Sep-22
Slough Borough Council,397,Liquidlogic,A03D,Adult Social Care Operations,Supplies and Services,"13,950.00",Sep-22
Slough Borough Council,397,Liquidlogic,F279,Children & Families,Supplies and Services,"5,698.77",Sep-22
Slough Borough Council,804692,Little Diamonds Pre School,F909,Children & Families,Supplies and Services,"15,000.00",Sep-22
Slough Borough Council,808192,Little Musketeers,F382,Children & Families,Supplies and Services,"13,913.36",Sep-22
Slough Borough Council,3791,Littledown Pru,E610,Children & Families,Supplies and Services,"17,100.00",Sep-22
Slough Borough Council,667,Littledown School,E610,Children & Families,Supplies and Services,"57,661.64",Sep-22
Slough Borough Council,804544,London Borough of Harrow,B096,Governance,Indirect Employee Expenses,"126,630.19",Sep-22
Slough Borough Council,1282,Long Close School,F909,Children & Families,Supplies and Services,"6,859.24",Sep-22
Slough Borough Council,2302,Look Ahead Care And Support,H211,Adult Social Care Operations,Supplies and Services,"13,961.64",Sep-22
Slough Borough Council,803596,Lorensbergs Limited,C104,Community,Supplies and Services,"6,562.98",Sep-22
Slough Borough Council,1771,Lynch Hill Academy,E620,Children & Families,Supplies and Services,"11,875.00",Sep-22
Slough Borough Council,3424,M D Homes,M15F,Adult Social Care Operations,Supplies and Services,"4,714.29",Sep-22
Slough Borough Council,3424,M D Homes,M15F,Adult Social Care Operations,Supplies and Services,"4,871.43",Sep-22
Slough Borough Council,3424,M D Homes,M15F,Adult Social Care Operations,Supplies and Services,"4,871.43",Sep-22
Slough Borough Council,3424,M D Homes,M15F,Adult Social Care Operations,Supplies and Services,"4,871.43",Sep-22
Slough Borough Council,3424,M D Homes,M15F,Adult Social Care Operations,Supplies and Services,"4,714.29",Sep-22
Slough Borough Council,807217,Macadamia Support Limited,M42E,Adult Social Care Operations,Supplies and Services,"7,308.00",Sep-22
Slough Borough Council,807217,Macadamia Support Limited,M42E,Adult Social Care Operations,Supplies and Services,"3,589.12",Sep-22
Slough Borough Council,807217,Macadamia Support Limited,M42E,Adult Social Care Operations,Supplies and Services,"3,973.20",Sep-22
Slough Borough Council,807217,Macadamia Support Limited,M42E,Adult Social Care Operations,Supplies and Services,"7,308.00",Sep-22
Slough Borough Council,807217,Macadamia Support Limited,M42E,Adult Social Care Operations,Supplies and Services,"3,589.12",Sep-22
Slough Borough Council,807217,Macadamia Support Limited,M42E,Adult Social Care Operations,Supplies and Services,"6,931.20",Sep-22
Slough Borough Council,807217,Macadamia Support Limited,M42E,Adult Social Care Operations,Supplies and Services,"6,931.20",Sep-22
Slough Borough Council,807217,Macadamia Support Limited,M42E,Adult Social Care Operations,Supplies and Services,"6,713.00",Sep-22
Slough Borough Council,807217,Macadamia Support Limited,M42E,Adult Social Care Operations,Supplies and Services,"6,713.00",Sep-22
Slough Borough Council,807217,Macadamia Support Limited,M42E,Adult Social Care Operations,Supplies and Services,"3,973.20",Sep-22
Slough Borough Council,807217,Macadamia Support Limited,M42E,Adult Social Care Operations,Supplies and Services,"7,308.00",Sep-22
Slough Borough Council,807217,Macadamia Support Limited,M42E,Adult Social Care Operations,Supplies and Services,"3,589.12",Sep-22
Slough Borough Council,807217,Macadamia Support Limited,M42E,Adult Social Care Operations,Supplies and Services,"6,931.20",Sep-22
Slough Borough Council,807217,Macadamia Support Limited,M42E,Adult Social Care Operations,Supplies and Services,"6,713.00",Sep-22
Slough Borough Council,807217,Macadamia Support Limited,M42E,Adult Social Care Operations,Supplies and Services,"3,973.20",Sep-22
Slough Borough Council,807217,Macadamia Support Limited,M44C,Adult Social Care Operations,Supplies and Services,"3,591.56",Sep-22
Slough Borough Council,807217,Macadamia Support Limited,M44C,Adult Social Care Operations,Supplies and Services,"3,591.56",Sep-22
Slough Borough Council,807217,Macadamia Support Limited,M44C,Adult Social Care Operations,Supplies and Services,"3,591.56",Sep-22
Slough Borough Council,807217,Macadamia Support Limited,M44D,Adult Social Care Operations,Supplies and Services,"5,523.00",Sep-22
Slough Borough Council,807217,Macadamia Support Limited,M44D,Adult Social Care Operations,Supplies and Services,"5,523.00",Sep-22
Slough Borough Council,807217,Macadamia Support Limited,M44D,Adult Social Care Operations,Supplies and Services,"5,523.00",Sep-22
Slough Borough Council,1874,Maccabee Pets Hotel,H253,Community,Supplies and Services,"1,800.00",Sep-22
Slough Borough Council,1874,Maccabee Pets Hotel,H253,Community,Supplies and Services,"3,320.00",Sep-22
Slough Borough Council,1874,Maccabee Pets Hotel,H253,Community,Supplies and Services,"1,240.00",Sep-22
Slough Borough Council,1395,Manage4U Chartered Surveyors,J150,Place Management,Supplies and Services,630.00,Sep-22
Slough Borough Council,1941,Manor Green School,F551,Children & Families,Supplies and Services,"44,100.00",Sep-22
Slough Borough Council,1941,Manor Green School,F551,Children & Families,Supplies and Services,"45,000.00",Sep-22
Slough Borough Council,1941,Manor Green School,F551,Children & Families,Supplies and Services,"274,322.00",Sep-22
Slough Borough Council,529,Marish Primary School,E620,Children & Families,Supplies and Services,"95,509.19",Sep-22
Slough Borough Council,1886,Matrix Scm,B023,Finance & Commercial,Agency Staff,"361,608.94",Sep-22
Slough Borough Council,1886,Matrix Scm,B023,Finance & Commercial,Agency Staff,"358,481.14",Sep-22
Slough Borough Council,1886,Matrix Scm,B023,Finance & Commercial,Agency Staff,"388,434.22",Sep-22
Slough Borough Council,1886,Matrix Scm,B023,Finance & Commercial,Agency Staff,"370,885.08",Sep-22
Slough Borough Council,1886,Matrix Scm,B023,Finance & Commercial,Agency Staff,"355,006.03",Sep-22
Slough Borough Council,806926,Meadow High School,F551,Children & Families,Supplies and Services,"3,333.33",Sep-22
Slough Borough Council,806926,Meadow High School,F551,Children & Families,Supplies and Services,"6,666.66",Sep-22
Slough Borough Council,806926,Meadow High School,F551,Children & Families,Supplies and Services,"5,000.00",Sep-22
Slough Borough Council,806926,Meadow High School,F551,Children & Families,Supplies and Services,"3,333.33",Sep-22
Slough Borough Council,806926,Meadow High School,F551,Children & Families,Supplies and Services,"6,666.66",Sep-22
Slough Borough Council,806926,Meadow High School,F551,Children & Families,Supplies and Services,"5,000.00",Sep-22
Slough Borough Council,1496,Mighty Acorns Day Nursery Ltd,F909,Children & Families,Supplies and Services,"16,235.90",Sep-22
Slough Borough Council,805121,MMCG (2) Limited,A02E,Adult Social Care Operations,Supplies and Services,"3,557.25",Sep-22
Slough Borough Council,805121,MMCG (2) Limited,A03E,Adult Social Care Operations,Supplies and Services,"4,387.30",Sep-22
Slough Borough Council,805121,MMCG (2) Limited,A03E,Adult Social Care Operations,Supplies and Services,"3,679.67",Sep-22
Slough Borough Council,805121,MMCG (2) Limited,M15D,Adult Social Care Operations,Supplies and Services,"3,557.25",Sep-22
Slough Borough Council,805121,MMCG (2) Limited,M15D,Adult Social Care Operations,Supplies and Services,"3,557.25",Sep-22
Slough Borough Council,805121,MMCG (2) Limited,M15F,Adult Social Care Operations,Supplies and Services,"3,557.25",Sep-22
Slough Borough Council,805121,MMCG (2) Limited,M17C,Adult Social Care Operations,Supplies and Services,"3,557.25",Sep-22
Slough Borough Council,805121,MMCG (2) Limited,M17C,Adult Social Care Operations,Supplies and Services,"4,387.30",Sep-22
Slough Borough Council,805121,MMCG (2) Limited,M17C,Adult Social Care Operations,Supplies and Services,"3,557.25",Sep-22
Slough Borough Council,805121,MMCG (2) Limited,M17C,Adult Social Care Operations,Supplies and Services,"3,557.25",Sep-22
Slough Borough Council,805121,MMCG (2) Limited,M18C,Adult Social Care Operations,Supplies and Services,"3,557.25",Sep-22
Slough Borough Council,805121,MMCG (2) Limited,M18C,Adult Social Care Operations,Supplies and Services,"3,557.25",Sep-22
Slough Borough Council,805121,MMCG (2) Limited,M18C,Adult Social Care Operations,Supplies and Services,"4,387.30",Sep-22
Slough Borough Council,805121,MMCG (2) Limited,M18C,Adult Social Care Operations,Supplies and Services,"3,557.25",Sep-22
Slough Borough Council,805121,MMCG (2) Limited,M18C,Adult Social Care Operations,Supplies and Services,"1,606.50",Sep-22
Slough Borough Council,805121,MMCG (2) Limited,M18C,Adult Social Care Operations,Supplies and Services,"3,442.50",Sep-22
Slough Borough Council,805121,MMCG (2) Limited,M18C,Adult Social Care Operations,Supplies and Services,"-3,098.25",Sep-22
Slough Borough Council,805121,MMCG (2) Limited,M18C,Adult Social Care Operations,Supplies and Services,"3,557.25",Sep-22
Slough Borough Council,805121,MMCG (2) Limited,M18C,Adult Social Care Operations,Supplies and Services,"2,194.63",Sep-22
Slough Borough Council,805121,MMCG (2) Limited,M18C,Adult Social Care Operations,Supplies and Services,-688.50,Sep-22
Slough Borough Council,805121,MMCG (2) Limited,M25C,Adult Social Care Operations,Supplies and Services,"3,557.25",Sep-22
Slough Borough Council,805121,MMCG (2) Limited,M25C,Adult Social Care Operations,Supplies and Services,"3,557.25",Sep-22
Slough Borough Council,805121,MMCG (2) Limited,M25C,Adult Social Care Operations,Supplies and Services,"3,557.25",Sep-22
Slough Borough Council,805121,MMCG (2) Limited,M27C,Adult Social Care Operations,Supplies and Services,"3,557.25",Sep-22
Slough Borough Council,805121,MMCG (2) Limited,M27C,Adult Social Care Operations,Supplies and Services,"3,557.25",Sep-22
Slough Borough Council,805121,MMCG (2) Limited,M27C,Adult Social Care Operations,Supplies and Services,"3,557.25",Sep-22
Slough Borough Council,805121,MMCG (2) Limited,M27C,Adult Social Care Operations,Supplies and Services,"3,557.25",Sep-22
Slough Borough Council,805121,MMCG (2) Limited,M27C,Adult Social Care Operations,Supplies and Services,"3,557.25",Sep-22
Slough Borough Council,805121,MMCG (2) Limited,M27C,Adult Social Care Operations,Supplies and Services,"3,557.25",Sep-22
Slough Borough Council,805121,MMCG (2) Limited,M27C,Adult Social Care Operations,Supplies and Services,"3,557.25",Sep-22
Slough Borough Council,805121,MMCG (2) Limited,M27C,Adult Social Care Operations,Supplies and Services,"3,557.25",Sep-22
Slough Borough Council,805121,MMCG (2) Limited,M28C,Adult Social Care Operations,Supplies and Services,596.70,Sep-22
Slough Borough Council,805121,MMCG (2) Limited,M29C,Adult Social Care Operations,Supplies and Services,"3,557.25",Sep-22
Slough Borough Council,805121,MMCG (2) Limited,A05M,Mental Health Services,Supplies and Services,"3,557.25",Sep-22
Slough Borough Council,1786,Mobius Networks Ltd,D500,Place Strategy & Infrastructure,Premises,618.30,Sep-22
Slough Borough Council,1786,Mobius Networks Ltd,D500,Place Strategy & Infrastructure,Premises,"20,418.10",Sep-22
Slough Borough Council,2645,Modus Care Ltd,M26E,Adult Social Care Operations,Supplies and Services,"12,121.55",Sep-22
Slough Borough Council,2115,Montagu Evans Llp,B086,Place Strategy & Infrastructure,Capital Charges,"10,063.00",Sep-22
Slough Borough Council,1140,Montem Guesthouse,H205,Housing (People) Services,Supplies and Services,"1,705.00",Sep-22
Slough Borough Council,1140,Montem Guesthouse,H205,Housing (People) Services,Supplies and Services,"1,705.00",Sep-22
Slough Borough Council,1140,Montem Guesthouse,H205,Housing (People) Services,Supplies and Services,"1,550.00",Sep-22
Slough Borough Council,1140,Montem Guesthouse,H205,Housing (People) Services,Supplies and Services,"1,705.00",Sep-22
Slough Borough Council,1140,Montem Guesthouse,H205,Housing (People) Services,Supplies and Services,"1,550.00",Sep-22
Slough Borough Council,1140,Montem Guesthouse,H205,Housing (People) Services,Supplies and Services,"1,550.00",Sep-22
Slough Borough Council,1140,Montem Guesthouse,H205,Housing (People) Services,Supplies and Services,"1,395.00",Sep-22
Slough Borough Council,1140,Montem Guesthouse,H205,Housing (People) Services,Supplies and Services,"1,550.00",Sep-22
Slough Borough Council,1140,Montem Guesthouse,H205,Housing (People) Services,Supplies and Services,"1,240.00",Sep-22
Slough Borough Council,1140,Montem Guesthouse,H205,Housing (People) Services,Supplies and Services,"1,395.00",Sep-22
Slough Borough Council,1140,Montem Guesthouse,H205,Housing (People) Services,Supplies and Services,"1,550.00",Sep-22
Slough Borough Council,1140,Montem Guesthouse,H205,Housing (People) Services,Supplies and Services,"1,085.00",Sep-22
Slough Borough Council,1140,Montem Guesthouse,H205,Housing (People) Services,Supplies and Services,"1,550.00",Sep-22
Slough Borough Council,1140,Montem Guesthouse,H205,Housing (People) Services,Supplies and Services,"1,550.00",Sep-22
Slough Borough Council,1140,Montem Guesthouse,H205,Housing (People) Services,Supplies and Services,"1,395.00",Sep-22
Slough Borough Council,1140,Montem Guesthouse,H205,Housing (People) Services,Supplies and Services,"1,550.00",Sep-22
Slough Borough Council,1140,Montem Guesthouse,H205,Housing (People) Services,Supplies and Services,"1,550.00",Sep-22
Slough Borough Council,1140,Montem Guesthouse,H205,Housing (People) Services,Supplies and Services,"1,550.00",Sep-22
Slough Borough Council,1140,Montem Guesthouse,H205,Housing (People) Services,Supplies and Services,"1,705.00",Sep-22
Slough Borough Council,1140,Montem Guesthouse,H205,Housing (People) Services,Supplies and Services,"1,705.00",Sep-22
Slough Borough Council,1140,Montem Guesthouse,H205,Housing (People) Services,Supplies and Services,"1,705.00",Sep-22
Slough Borough Council,1140,Montem Guesthouse,H205,Housing (People) Services,Supplies and Services,"1,395.00",Sep-22
Slough Borough Council,1140,Montem Guesthouse,H205,Housing (People) Services,Supplies and Services,"1,395.00",Sep-22
Slough Borough Council,1140,Montem Guesthouse,H205,Housing (People) Services,Supplies and Services,"1,395.00",Sep-22
Slough Borough Council,1140,Montem Guesthouse,H205,Housing (People) Services,Supplies and Services,"1,395.00",Sep-22
Slough Borough Council,1140,Montem Guesthouse,H205,Housing (People) Services,Supplies and Services,"1,395.00",Sep-22
Slough Borough Council,1140,Montem Guesthouse,H205,Housing (People) Services,Supplies and Services,"1,550.00",Sep-22
Slough Borough Council,1140,Montem Guesthouse,H205,Housing (People) Services,Supplies and Services,"1,705.00",Sep-22
Slough Borough Council,1140,Montem Guesthouse,H205,Housing (People) Services,Supplies and Services,"1,705.00",Sep-22
Slough Borough Council,1140,Montem Guesthouse,H205,Housing (People) Services,Supplies and Services,"1,860.00",Sep-22
Slough Borough Council,1140,Montem Guesthouse,H205,Housing (People) Services,Supplies and Services,"1,457.00",Sep-22
Slough Borough Council,1140,Montem Guesthouse,H205,Housing (People) Services,Supplies and Services,"1,550.00",Sep-22
Slough Borough Council,1140,Montem Guesthouse,H205,Housing (People) Services,Supplies and Services,"1,457.00",Sep-22
Slough Borough Council,1140,Montem Guesthouse,H205,Housing (People) Services,Supplies and Services,"1,457.00",Sep-22
Slough Borough Council,3302,Montem Primary School,E620,Children & Families,Supplies and Services,"24,709.05",Sep-22
Slough Borough Council,3372,More House School,F462,Children & Families,Supplies and Services,"6,912.00",Sep-22
Slough Borough Council,807432,MPD FM Limited,P172,Capital,Capital Charges,"9,169.92",Sep-22
Slough Borough Council,807432,MPD FM Limited,P172,Capital,Capital Charges,"9,169.92",Sep-22
Slough Borough Council,807432,MPD FM Limited,P172,Capital,Capital Charges,"8,883.36",Sep-22
Slough Borough Council,807432,MPD FM Limited,P172,Capital,Capital Charges,"9,169.92",Sep-22
Slough Borough Council,806484,Mrs Parwinder Kaur Bhandal,H205,Housing (People) Services,Supplies and Services,"3,196.00",Sep-22
Slough Borough Council,806484,Mrs Parwinder Kaur Bhandal,H205,Housing (People) Services,Supplies and Services,"7,936.00",Sep-22
Slough Borough Council,806858,MUDDY BOOTS DAY NURSERY LTD,F909,Children & Families,Supplies and Services,"6,081.95",Sep-22
Slough Borough Council,808335,myriad,B408,Customer,Agency Staff,"2,400.00",Sep-22
Slough Borough Council,805369,NAS Services Limited,M42E,Adult Social Care Operations,Supplies and Services,"8,170.11",Sep-22
Slough Borough Council,808068,NEC Software Solutions UK Limited,B126,Place Regulation,Supplies and Services,"9,020.00",Sep-22
Slough Borough Council,1117,Newsquest Media Group Limited,F382,Children & Families,Supplies and Services,500.00,Sep-22
Slough Borough Council,805932,NHS East Berkshire CCG,P395,Capital,Capital Charges,"7,366.67",Sep-22
Slough Borough Council,1864,Noahs Ark Environmental Services Ltd,H253,Community,Supplies and Services,"2,676.15",Sep-22
Slough Borough Council,1864,Noahs Ark Environmental Services Ltd,H253,Community,Supplies and Services,"-1,198.79",Sep-22
Slough Borough Council,3717,Norwood Schools Limited,M26E,Adult Social Care Operations,Supplies and Services,"4,051.92",Sep-22
Slough Borough Council,3717,Norwood Schools Limited,M26E,Adult Social Care Operations,Supplies and Services,"4,051.92",Sep-22
Slough Borough Council,3717,Norwood Schools Limited,M26E,Adult Social Care Operations,Supplies and Services,"4,051.92",Sep-22
Slough Borough Council,3717,Norwood Schools Limited,M26E,Adult Social Care Operations,Supplies and Services,"1,465.16",Sep-22
Slough Borough Council,3717,Norwood Schools Limited,M26E,Adult Social Care Operations,Supplies and Services,"4,253.92",Sep-22
Slough Borough Council,3717,Norwood Schools Limited,M26E,Adult Social Care Operations,External Receipts,-641.20,Sep-22
Slough Borough Council,3717,Norwood Schools Limited,M26E,Adult Social Care Operations,External Receipts,-641.20,Sep-22
Slough Borough Council,3717,Norwood Schools Limited,M26E,Adult Social Care Operations,External Receipts,-641.20,Sep-22
Slough Borough Council,3717,Norwood Schools Limited,M26E,Adult Social Care Operations,External Receipts,-641.20,Sep-22
Slough Borough Council,803238,Oasis Care and Training Agency,A07R,Adult Social Care Operations,Supplies and Services,"1,925.28",Sep-22
Slough Borough Council,803238,Oasis Care and Training Agency,A07R,Adult Social Care Operations,Supplies and Services,730.58,Sep-22
Slough Borough Council,803238,Oasis Care and Training Agency,A07R,Adult Social Care Operations,Supplies and Services,842.32,Sep-22
Slough Borough Council,803238,Oasis Care and Training Agency,M44C,Adult Social Care Operations,Supplies and Services,962.64,Sep-22
Slough Borough Council,803238,Oasis Care and Training Agency,M44C,Adult Social Care Operations,Supplies and Services,"2,045.60",Sep-22
Slough Borough Council,803238,Oasis Care and Training Agency,M44C,Adult Social Care Operations,Supplies and Services,739.16,Sep-22
Slough Borough Council,803238,Oasis Care and Training Agency,M44C,Adult Social Care Operations,Supplies and Services,"1,082.96",Sep-22
Slough Borough Council,803238,Oasis Care and Training Agency,M44C,Adult Social Care Operations,Supplies and Services,722.00,Sep-22
Slough Borough Council,803238,Oasis Care and Training Agency,M44C,Adult Social Care Operations,Supplies and Services,515.71,Sep-22
Slough Borough Council,803238,Oasis Care and Training Agency,M44C,Adult Social Care Operations,Supplies and Services,"1,220.48",Sep-22
Slough Borough Council,803238,Oasis Care and Training Agency,M44C,Adult Social Care Operations,Supplies and Services,"1,151.72",Sep-22
Slough Borough Council,803238,Oasis Care and Training Agency,M44C,Adult Social Care Operations,Supplies and Services,"2,684.64",Sep-22
Slough Borough Council,803238,Oasis Care and Training Agency,M44C,Adult Social Care Operations,Supplies and Services,"2,784.80",Sep-22
Slough Borough Council,803238,Oasis Care and Training Agency,M44C,Adult Social Care Operations,Supplies and Services,"1,250.57",Sep-22
Slough Borough Council,803238,Oasis Care and Training Agency,M44C,Adult Social Care Operations,Supplies and Services,"1,443.96",Sep-22
Slough Borough Council,803238,Oasis Care and Training Agency,M44C,Adult Social Care Operations,Supplies and Services,"2,165.96",Sep-22
Slough Borough Council,803238,Oasis Care and Training Agency,M44C,Adult Social Care Operations,Supplies and Services,842.32,Sep-22
Slough Borough Council,803238,Oasis Care and Training Agency,M44C,Adult Social Care Operations,Supplies and Services,"3,893.48",Sep-22
Slough Borough Council,803238,Oasis Care and Training Agency,M44C,Adult Social Care Operations,Supplies and Services,"3,893.48",Sep-22
Slough Borough Council,803238,Oasis Care and Training Agency,M44D,Adult Social Care Operations,Supplies and Services,842.32,Sep-22
Slough Borough Council,803238,Oasis Care and Training Agency,M44D,Adult Social Care Operations,Supplies and Services,"1,340.84",Sep-22
Slough Borough Council,803238,Oasis Care and Training Agency,M44D,Adult Social Care Operations,Supplies and Services,"2,165.96",Sep-22
Slough Borough Council,803238,Oasis Care and Training Agency,M44D,Adult Social Care Operations,Supplies and Services,952.48,Sep-22
Slough Borough Council,803238,Oasis Care and Training Agency,M44D,Adult Social Care Operations,Supplies and Services,979.84,Sep-22
Slough Borough Council,803238,Oasis Care and Training Agency,M44D,Adult Social Care Operations,Supplies and Services,"1,072.81",Sep-22
Slough Borough Council,803238,Oasis Care and Training Agency,M85F,Adult Social Care Operations,Supplies and Services,550.08,Sep-22
Slough Borough Council,1767,Olive Tree Montessori Ltd,F909,Children & Families,Supplies and Services,"20,748.05",Sep-22
Slough Borough Council,804687,Optalis Limited,M42E,Adult Social Care Operations,Supplies and Services,"5,642.13",Sep-22
Slough Borough Council,804687,Optalis Limited,M42E,Adult Social Care Operations,Supplies and Services,"5,642.13",Sep-22
Slough Borough Council,804687,Optalis Limited,M42E,Adult Social Care Operations,Supplies and Services,"4,807.26",Sep-22
Slough Borough Council,803490,Optimum Specialised Home Limited,M26E,Adult Social Care Operations,Supplies and Services,"8,400.00",Sep-22
Slough Borough Council,803490,Optimum Specialised Home Limited,M26E,Adult Social Care Operations,Supplies and Services,"7,200.00",Sep-22
Slough Borough Council,803490,Optimum Specialised Home Limited,M26E,Adult Social Care Operations,Supplies and Services,"7,180.00",Sep-22
Slough Borough Council,803490,Optimum Specialised Home Limited,M26E,Adult Social Care Operations,Supplies and Services,"7,200.00",Sep-22
Slough Borough Council,803490,Optimum Specialised Home Limited,M26E,Adult Social Care Operations,Supplies and Services,"8,400.00",Sep-22
Slough Borough Council,1629,Opus Energy Limited,K526,Building Management,Premises,"14,452.13",Sep-22
Slough Borough Council,1629,Opus Energy Limited,K526,Building Management,Premises,"6,005.22",Sep-22
Slough Borough Council,803960,Orchard Hill College,F558,Children & Families,Supplies and Services,"25,950.21",Sep-22
Slough Borough Council,803960,Orchard Hill College,F558,Children & Families,Supplies and Services,"17,582.22",Sep-22
Slough Borough Council,807272,Origin Transport Consultants Ltd,D224,Place Regulation,Supplies and Services,"4,687.45",Sep-22
Slough Borough Council,805011,Osborne Property Services Limited,J607,Place Management,Premises,"150,402.09",Sep-22
Slough Borough Council,805011,Osborne Property Services Limited,J607,Place Management,Premises,"38,749.58",Sep-22
Slough Borough Council,805011,Osborne Property Services Limited,J015,Place Management,Premises,"46,110.36",Sep-22
Slough Borough Council,805011,Osborne Property Services Limited,J015,Place Management,Premises,"48,246.64",Sep-22
Slough Borough Council,805011,Osborne Property Services Limited,J606,Place Management,Supplies and Services,"111,721.84",Sep-22
Slough Borough Council,805011,Osborne Property Services Limited,J606,Place Management,Supplies and Services,"3,884.48",Sep-22
Slough Borough Council,805011,Osborne Property Services Limited,P409,Capital,Capital Charges,"17,649.43",Sep-22
Slough Borough Council,805011,Osborne Property Services Limited,P413,Capital,Capital Charges,"26,557.37",Sep-22
Slough Borough Council,805011,Osborne Property Services Limited,P415,Capital,Capital Charges,"108,618.26",Sep-22
Slough Borough Council,805011,Osborne Property Services Limited,P417,Capital,Capital Charges,"8,189.51",Sep-22
Slough Borough Council,805011,Osborne Property Services Limited,P419,Capital,Capital Charges,"4,805.44",Sep-22
Slough Borough Council,805011,Osborne Property Services Limited,P421,Capital,Capital Charges,"19,971.96",Sep-22
Slough Borough Council,805011,Osborne Property Services Limited,P431,Capital,Capital Charges,"95,495.32",Sep-22
Slough Borough Council,805011,Osborne Property Services Limited,P547,Capital,Capital Charges,"3,629.78",Sep-22
Slough Borough Council,805011,Osborne Property Services Limited,J607,Place Management,Supplies and Services,"130,853.32",Sep-22
Slough Borough Council,805011,Osborne Property Services Limited,J607,Place Management,Supplies and Services,"16,661.14",Sep-22
Slough Borough Council,805011,Osborne Property Services Limited,J606,Place Management,Supplies and Services,"253,814.12",Sep-22
Slough Borough Council,805011,Osborne Property Services Limited,J606,Place Management,Supplies and Services,"253,814.12",Sep-22
Slough Borough Council,3371,Our Lady Of Peace Catholic Primary and Nursery School,E340,Children & Families,Supplies and Services,"9,135.41",Sep-22
Slough Borough Council,807728,OverDrive Global Limited,C104,Community,Supplies and Services,"4,699.00",Sep-22
Slough Borough Council,680,Oxford House Community Care,A07R,Adult Social Care Operations,Supplies and Services,720.42,Sep-22
Slough Borough Council,680,Oxford House Community Care,M44C,Adult Social Care Operations,Supplies and Services,"2,491.89",Sep-22
Slough Borough Council,680,Oxford House Community Care,M44C,Adult Social Care Operations,Supplies and Services,"2,237.24",Sep-22
Slough Borough Council,680,Oxford House Community Care,M44C,Adult Social Care Operations,Supplies and Services,"2,231.98",Sep-22
Slough Borough Council,680,Oxford House Community Care,M44C,Adult Social Care Operations,Supplies and Services,"1,296.53",Sep-22
Slough Borough Council,680,Oxford House Community Care,M44C,Adult Social Care Operations,Supplies and Services,"1,315.03",Sep-22
Slough Borough Council,680,Oxford House Community Care,M44C,Adult Social Care Operations,Supplies and Services,"1,238.47",Sep-22
Slough Borough Council,680,Oxford House Community Care,M44C,Adult Social Care Operations,Supplies and Services,"2,239.01",Sep-22
Slough Borough Council,680,Oxford House Community Care,M44C,Adult Social Care Operations,Supplies and Services,"1,012.89",Sep-22
Slough Borough Council,680,Oxford House Community Care,M44C,Adult Social Care Operations,Supplies and Services,"2,328.19",Sep-22
Slough Borough Council,680,Oxford House Community Care,M44C,Adult Social Care Operations,Supplies and Services,"2,457.56",Sep-22
Slough Borough Council,680,Oxford House Community Care,M44C,Adult Social Care Operations,Supplies and Services,824.55,Sep-22
Slough Borough Council,680,Oxford House Community Care,M44C,Adult Social Care Operations,Supplies and Services,"1,048.11",Sep-22
Slough Borough Council,680,Oxford House Community Care,M44C,Adult Social Care Operations,Supplies and Services,"1,184.47",Sep-22
Slough Borough Council,680,Oxford House Community Care,M44C,Adult Social Care Operations,Supplies and Services,580.80,Sep-22
Slough Borough Council,680,Oxford House Community Care,M44C,Adult Social Care Operations,Supplies and Services,976.80,Sep-22
Slough Borough Council,680,Oxford House Community Care,M44C,Adult Social Care Operations,Supplies and Services,842.74,Sep-22
Slough Borough Council,680,Oxford House Community Care,M44C,Adult Social Care Operations,Supplies and Services,"2,282.07",Sep-22
Slough Borough Council,680,Oxford House Community Care,M44C,Adult Social Care Operations,Supplies and Services,"1,085.34",Sep-22
Slough Borough Council,680,Oxford House Community Care,M44C,Adult Social Care Operations,Supplies and Services,"1,289.79",Sep-22
Slough Borough Council,680,Oxford House Community Care,M44C,Adult Social Care Operations,Supplies and Services,"1,283.33",Sep-22
Slough Borough Council,680,Oxford House Community Care,M44D,Adult Social Care Operations,Supplies and Services,654.99,Sep-22
Slough Borough Council,680,Oxford House Community Care,M44D,Adult Social Care Operations,Supplies and Services,649.73,Sep-22
Slough Borough Council,680,Oxford House Community Care,M44D,Adult Social Care Operations,Supplies and Services,616.00,Sep-22
Slough Borough Council,680,Oxford House Community Care,M44D,Adult Social Care Operations,Supplies and Services,726.01,Sep-22
Slough Borough Council,680,Oxford House Community Care,M44D,Adult Social Care Operations,Supplies and Services,"1,108.21",Sep-22
Slough Borough Council,680,Oxford House Community Care,M44D,Adult Social Care Operations,Supplies and Services,727.16,Sep-22
Slough Borough Council,680,Oxford House Community Care,M45C,Adult Social Care Operations,Supplies and Services,"2,238.80",Sep-22
Slough Borough Council,680,Oxford House Community Care,M47D,Adult Social Care Operations,Supplies and Services,631.84,Sep-22
Slough Borough Council,680,Oxford House Community Care,M48C,Adult Social Care Operations,Supplies and Services,689.59,Sep-22
Slough Borough Council,680,Oxford House Community Care,M48C,Adult Social Care Operations,Supplies and Services,957.15,Sep-22
Slough Borough Council,518,Oxford House Nursing Home,M15D,Adult Social Care Operations,Supplies and Services,"3,235.76",Sep-22
Slough Borough Council,518,Oxford House Nursing Home,M15D,Adult Social Care Operations,Supplies and Services,"3,235.76",Sep-22
Slough Borough Council,518,Oxford House Nursing Home,M18C,Adult Social Care Operations,Supplies and Services,"38,829.12",Sep-22
Slough Borough Council,518,Oxford House Nursing Home,M18C,Adult Social Care Operations,Supplies and Services,"3,235.76",Sep-22
Slough Borough Council,518,Oxford House Nursing Home,M18C,Adult Social Care Operations,Supplies and Services,"3,235.76",Sep-22
Slough Borough Council,518,Oxford House Nursing Home,M28C,Adult Social Care Operations,Supplies and Services,"3,052.60",Sep-22
Slough Borough Council,2520,Paradigm Housing Group Ltd,H205,Housing (People) Services,Premises,"13,896.41",Sep-22
Slough Borough Council,2509,Parvaaz Project,M44E,Adult Social Care Operations,Supplies and Services,678.60,Sep-22
Slough Borough Council,2509,Parvaaz Project,M44E,Adult Social Care Operations,Supplies and Services,678.60,Sep-22
Slough Borough Council,2509,Parvaaz Project,M44E,Adult Social Care Operations,Supplies and Services,678.60,Sep-22
Slough Borough Council,2509,Parvaaz Project,M44E,Adult Social Care Operations,Supplies and Services,678.60,Sep-22
Slough Borough Council,2509,Parvaaz Project,M50E,Adult Social Care Operations,Supplies and Services,800.40,Sep-22
Slough Borough Council,2509,Parvaaz Project,M50E,Adult Social Care Operations,Supplies and Services,800.40,Sep-22
Slough Borough Council,2509,Parvaaz Project,M50E,Adult Social Care Operations,Supplies and Services,800.40,Sep-22
Slough Borough Council,2509,Parvaaz Project,M50E,Adult Social Care Operations,Supplies and Services,800.40,Sep-22
Slough Borough Council,2509,Parvaaz Project,M50E,Adult Social Care Operations,Supplies and Services,556.80,Sep-22
Slough Borough Council,2509,Parvaaz Project,M50E,Adult Social Care Operations,Supplies and Services,626.40,Sep-22
Slough Borough Council,2509,Parvaaz Project,M50E,Adult Social Care Operations,Supplies and Services,626.40,Sep-22
Slough Borough Council,2509,Parvaaz Project,M50E,Adult Social Care Operations,Supplies and Services,556.80,Sep-22
Slough Borough Council,824,Penn Wood Primary and Nursery School,F549,Children & Families,Supplies and Services,"1,260.00",Sep-22
Slough Borough Council,824,Penn Wood Primary and Nursery School,E450,Children & Families,Supplies and Services,"300,168.39",Sep-22
Slough Borough Council,807611,Peopletoo Ltd,A01D,Adult Social Care Operations,Supplies and Services,"40,528.00",Sep-22
Slough Borough Council,1504,Permanent Futures Limited,F410,Children & Families,Supplies and Services,"1,350.00",Sep-22
Slough Borough Council,1504,Permanent Futures Limited,F410,Children & Families,Supplies and Services,"1,350.00",Sep-22
Slough Borough Council,1504,Permanent Futures Limited,F410,Children & Families,Supplies and Services,900.00,Sep-22
Slough Borough Council,1504,Permanent Futures Limited,F640,Children & Families,Supplies and Services,"1,500.00",Sep-22
Slough Borough Council,1504,Permanent Futures Limited,F640,Children & Families,Supplies and Services,"1,500.00",Sep-22
Slough Borough Council,1504,Permanent Futures Limited,F640,Children & Families,Supplies and Services,"1,500.00",Sep-22
Slough Borough Council,1504,Permanent Futures Limited,F640,Children & Families,Supplies and Services,"1,500.00",Sep-22
Slough Borough Council,1504,Permanent Futures Limited,F640,Children & Families,Supplies and Services,"1,500.00",Sep-22
Slough Borough Council,807727,Phoenix Infant Academy c/o Thames Learning Trust,E620,Children & Families,Supplies and Services,"29,164.99",Sep-22
Slough Borough Council,805351,Pield Heath House School,F462,Children & Families,Supplies and Services,"47,420.58",Sep-22
Slough Borough Council,3359,Pippins School,E370,Children & Families,Supplies and Services,"15,970.50",Sep-22
Slough Borough Council,904,Pitney Bowes Finance Plc,K077,Business Services,Supplies and Services,545.67,Sep-22
Slough Borough Council,904,Pitney Bowes Finance Plc,K077,Business Services,Supplies and Services,504.00,Sep-22
Slough Borough Council,807120,PJ Care Limited,M15D,Adult Social Care Operations,Supplies and Services,"9,514.50",Sep-22
Slough Borough Council,3644,Poppy Cottage,M42E,Adult Social Care Operations,Supplies and Services,"6,159.00",Sep-22
Slough Borough Council,3644,Poppy Cottage,M42E,Adult Social Care Operations,Supplies and Services,"6,159.00",Sep-22
Slough Borough Council,2537,Pre School Stars,F909,Children & Families,Supplies and Services,"6,682.55",Sep-22
Slough Borough Council,808565,Primeway Care,M44C,Adult Social Care Operations,Supplies and Services,"1,252.01",Sep-22
Slough Borough Council,808565,Primeway Care,M44C,Adult Social Care Operations,Supplies and Services,"1,252.01",Sep-22
Slough Borough Council,808565,Primeway Care,M44C,Adult Social Care Operations,Supplies and Services,"1,252.01",Sep-22
Slough Borough Council,808565,Primeway Care,M44C,Adult Social Care Operations,Supplies and Services,"1,185.35",Sep-22
Slough Borough Council,808565,Primeway Care,M44C,Adult Social Care Operations,Supplies and Services,"1,211.63",Sep-22
Slough Borough Council,808565,Primeway Care,M44C,Adult Social Care Operations,Supplies and Services,"1,252.01",Sep-22
Slough Borough Council,808565,Primeway Care,M44C,Adult Social Care Operations,Supplies and Services,"1,250.09",Sep-22
Slough Borough Council,808565,Primeway Care,M44C,Adult Social Care Operations,Supplies and Services,"1,213.55",Sep-22
Slough Borough Council,808565,Primeway Care,M44C,Adult Social Care Operations,Supplies and Services,"1,000.07",Sep-22
Slough Borough Council,808565,Primeway Care,M44C,Adult Social Care Operations,Supplies and Services,"1,166.75",Sep-22
Slough Borough Council,808565,Primeway Care,M44C,Adult Social Care Operations,Supplies and Services,"1,252.01",Sep-22
Slough Borough Council,807214,Priors Court Services Ltd,F462,Children & Families,Supplies and Services,"92,938.42",Sep-22
Slough Borough Council,849,Priory Primary School,E380,Children & Families,Supplies and Services,"361,959.50",Sep-22
Slough Borough Council,808180,Proact,B342,Digital and Strategic IT,Capital Charges,550.00,Sep-22
Slough Borough Council,808180,Proact,B342,Digital and Strategic IT,Capital Charges,"4,400.00",Sep-22
Slough Borough Council,808180,Proact,P084,Capital,Capital Charges,"6,600.00",Sep-22
Slough Borough Council,1138,Qed Slough Ltd,F868,Children & Families,Supplies and Services,"22,755.38",Sep-22
Slough Borough Council,1138,Qed Slough Ltd,F868,Children & Families,Supplies and Services,"9,382.60",Sep-22
Slough Borough Council,1138,Qed Slough Ltd,F868,Children & Families,Supplies and Services,"600,910.67",Sep-22
Slough Borough Council,1138,Qed Slough Ltd,F868,Children & Families,Supplies and Services,"4,332.48",Sep-22
Slough Borough Council,805746,Qfree (Bristol) UK Ltd,D500,Place Strategy & Infrastructure,Premises,"1,582.00",Sep-22
Slough Borough Council,805746,Qfree (Bristol) UK Ltd,D500,Place Strategy & Infrastructure,Premises,"1,592.00",Sep-22
Slough Borough Council,808200,Quest Recovery Services Ltd,A07R,Adult Social Care Operations,Supplies and Services,"2,016.00",Sep-22
Slough Borough Council,808200,Quest Recovery Services Ltd,M44C,Adult Social Care Operations,Supplies and Services,"2,016.00",Sep-22
Slough Borough Council,808200,Quest Recovery Services Ltd,M44C,Adult Social Care Operations,Supplies and Services,848.00,Sep-22
Slough Borough Council,808200,Quest Recovery Services Ltd,M44C,Adult Social Care Operations,Supplies and Services,"1,008.00",Sep-22
Slough Borough Council,808200,Quest Recovery Services Ltd,M44C,Adult Social Care Operations,Supplies and Services,"1,456.00",Sep-22
Slough Borough Council,808200,Quest Recovery Services Ltd,M44D,Adult Social Care Operations,Supplies and Services,"5,146.00",Sep-22
Slough Borough Council,808200,Quest Recovery Services Ltd,M44D,Adult Social Care Operations,Supplies and Services,"4,814.00",Sep-22
Slough Borough Council,808200,Quest Recovery Services Ltd,M44E,Adult Social Care Operations,Supplies and Services,"1,792.00",Sep-22
Slough Borough Council,808200,Quest Recovery Services Ltd,M48C,Adult Social Care Operations,Supplies and Services,"1,008.00",Sep-22
Slough Borough Council,807974,Quick Removals,F253,Children & Families,Agency Staff,910.00,Sep-22
Slough Borough Council,2685,R.E.A.C.H,M26E,Adult Social Care Operations,Supplies and Services,"7,404.56",Sep-22
Slough Borough Council,2685,R.E.A.C.H,M26E,Adult Social Care Operations,Supplies and Services,"5,928.12",Sep-22
Slough Borough Council,2685,R.E.A.C.H,M26E,Adult Social Care Operations,Supplies and Services,"7,666.96",Sep-22
Slough Borough Council,2685,R.E.A.C.H,M26E,Adult Social Care Operations,Supplies and Services,"6,191.08",Sep-22
Slough Borough Council,2685,R.E.A.C.H,M26E,Adult Social Care Operations,Supplies and Services,"5,556.80",Sep-22
Slough Borough Council,2685,R.E.A.C.H,M26E,Adult Social Care Operations,Supplies and Services,"7,142.96",Sep-22
Slough Borough Council,2685,R.E.A.C.H,M26E,Adult Social Care Operations,Supplies and Services,"10,591.40",Sep-22
Slough Borough Council,2685,R.E.A.C.H,M26E,Adult Social Care Operations,Supplies and Services,"7,563.65",Sep-22
Slough Borough Council,2685,R.E.A.C.H,M26E,Adult Social Care Operations,Supplies and Services,"7,152.36",Sep-22
Slough Borough Council,2685,R.E.A.C.H,M26E,Adult Social Care Operations,Supplies and Services,"6,463.44",Sep-22
Slough Borough Council,2685,R.E.A.C.H,M26E,Adult Social Care Operations,Supplies and Services,"10,563.23",Sep-22
Slough Borough Council,2685,R.E.A.C.H,M26E,Adult Social Care Operations,Supplies and Services,"5,524.40",Sep-22
Slough Borough Council,2685,R.E.A.C.H,M26E,Adult Social Care Operations,Supplies and Services,"7,666.96",Sep-22
Slough Borough Council,2685,R.E.A.C.H,M26E,Adult Social Care Operations,Supplies and Services,"-7,394.04",Sep-22
Slough Borough Council,2685,R.E.A.C.H,M26E,Adult Social Care Operations,External Receipts,-641.20,Sep-22
Slough Borough Council,2685,R.E.A.C.H,M26E,Adult Social Care Operations,External Receipts,-569.84,Sep-22
Slough Borough Council,2685,R.E.A.C.H,M26E,Adult Social Care Operations,External Receipts,-569.84,Sep-22
Slough Borough Council,2685,R.E.A.C.H,M26E,Adult Social Care Operations,External Receipts,-641.20,Sep-22
Slough Borough Council,1305,Rackspace Limited,B282,Digital and Strategic IT,Supplies and Services,"2,201.00",Sep-22
Slough Borough Council,805444,Reading Transport Ltd,D512,Place Strategy & Infrastructure,Supplies and Services,"6,335.74",Sep-22
Slough Borough Council,808066,Rebecca Martin,F253,Children & Families,Agency Staff,"1,088.00",Sep-22
Slough Borough Council,806766,Red Brick Care Ltd,A07R,Adult Social Care Operations,Supplies and Services,867.00,Sep-22
Slough Borough Council,806766,Red Brick Care Ltd,A07R,Adult Social Care Operations,Supplies and Services,"1,453.50",Sep-22
Slough Borough Council,806766,Red Brick Care Ltd,A07R,Adult Social Care Operations,Supplies and Services,"2,142.00",Sep-22
Slough Borough Council,806766,Red Brick Care Ltd,A07R,Adult Social Care Operations,Supplies and Services,973.25,Sep-22
Slough Borough Council,806766,Red Brick Care Ltd,M44C,Adult Social Care Operations,Supplies and Services,"1,224.00",Sep-22
Slough Borough Council,806766,Red Brick Care Ltd,M44C,Adult Social Care Operations,Supplies and Services,"1,173.00",Sep-22
Slough Borough Council,806766,Red Brick Care Ltd,M44C,Adult Social Care Operations,Supplies and Services,"2,057.00",Sep-22
Slough Borough Council,806766,Red Brick Care Ltd,M44C,Adult Social Care Operations,Supplies and Services,"1,326.00",Sep-22
Slough Borough Council,806766,Red Brick Care Ltd,M44C,Adult Social Care Operations,Supplies and Services,"2,142.00",Sep-22
Slough Borough Council,806766,Red Brick Care Ltd,M44C,Adult Social Care Operations,Supplies and Services,"1,198.50",Sep-22
Slough Borough Council,806766,Red Brick Care Ltd,M45C,Adult Social Care Operations,Supplies and Services,816.00,Sep-22
Slough Borough Council,806766,Red Brick Care Ltd,M45C,Adult Social Care Operations,Supplies and Services,994.50,Sep-22
Slough Borough Council,806766,Red Brick Care Ltd,M45C,Adult Social Care Operations,Supplies and Services,"2,142.00",Sep-22
Slough Borough Council,806541,Redacted,F909,Children & Families,Supplies and Services,"20,229.02",Sep-22
Slough Borough Council,3903,Redacted,F909,Children & Families,Supplies and Services,"1,377.04",Sep-22
Slough Borough Council,805403,Redacted,F909,Children & Families,Supplies and Services,593.25,Sep-22
Slough Borough Council,805307,Redacted,F909,Children & Families,Supplies and Services,831.06,Sep-22
Slough Borough Council,3173,Redacted,F909,Children & Families,Supplies and Services,605.36,Sep-22
Slough Borough Council,808110,Redacted,F909,Children & Families,Supplies and Services,593.25,Sep-22
Slough Borough Council,3934,Redacted,F909,Children & Families,Supplies and Services,605.36,Sep-22
Slough Borough Council,806720,Redacted,F909,Children & Families,Supplies and Services,593.25,Sep-22
Slough Borough Council,3209,Redacted,F909,Children & Families,Supplies and Services,593.25,Sep-22
Slough Borough Council,804707,Redacted,F909,Children & Families,Supplies and Services,605.36,Sep-22
Slough Borough Council,804705,Redacted,F909,Children & Families,Supplies and Services,"1,186.50",Sep-22
Slough Borough Council,803824,Redacted,F909,Children & Families,Supplies and Services,"3,262.88",Sep-22
Slough Borough Council,807475,Redacted,F909,Children & Families,Supplies and Services,"4,983.50",Sep-22
Slough Borough Council,3251,Redacted,F909,Children & Families,Supplies and Services,536.75,Sep-22
Slough Borough Council,803853,Redacted,F909,Children & Families,Supplies and Services,839.43,Sep-22
Slough Borough Council,807647,Redacted,F909,Children & Families,Supplies and Services,871.71,Sep-22
Slough Borough Council,807836,Redacted,F909,Children & Families,Supplies and Services,"1,201.73",Sep-22
Slough Borough Council,804350,Redacted,F909,Children & Families,Supplies and Services,"1,271.25",Sep-22
Slough Borough Council,803874,Redacted,F909,Children & Families,Supplies and Services,621.50,Sep-22
Slough Borough Council,803819,Redacted,F909,Children & Families,Supplies and Services,656.11,Sep-22
Slough Borough Council,805806,Redacted,F909,Children & Families,Supplies and Services,593.25,Sep-22
Slough Borough Council,806854,Reed Specialist Recruitment,B033,People,Salaries and Wages,783.38,Sep-22
Slough Borough Council,806854,Reed Specialist Recruitment,B033,People,Salaries and Wages,783.38,Sep-22
Slough Borough Council,806854,Reed Specialist Recruitment,B033,People,Salaries and Wages,658.04,Sep-22
Slough Borough Council,806854,Reed Specialist Recruitment,B033,People,Salaries and Wages,783.38,Sep-22
Slough Borough Council,2229,Reliance High-Tech Limited (T/A Reliance Project),A01D,Adult Social Care Operations,Supplies and Services,"5,275.20",Sep-22
Slough Borough Council,808302,Reliant Care Limited,M44C,Adult Social Care Operations,Supplies and Services,"3,124.71",Sep-22
Slough Borough Council,807562,Renovo Farnborough Limited,M25D,Adult Social Care Operations,Supplies and Services,"8,433.64",Sep-22
Slough Borough Council,781,Resource Productions CIC,F210,Community,TP-Other Bodies,"8,016.67",Sep-22
Slough Borough Council,3486,Response Organisation,M42F,Adult Social Care Operations,Supplies and Services,"1,818.60",Sep-22
Slough Borough Council,3486,Response Organisation,M42F,Adult Social Care Operations,Supplies and Services,"1,274.28",Sep-22
Slough Borough Council,3486,Response Organisation,M42F,Adult Social Care Operations,Supplies and Services,773.22,Sep-22
Slough Borough Council,805202,Rigby Taylor Ltd,D750,Place Operations,Supplies and Services,"1,618.50",Sep-22
Slough Borough Council,805200,RJ Morgan Fencing Ltd,B089,Place Strategy & Infrastructure,Supplies and Services,"10,562.10",Sep-22
Slough Borough Council,806930,Roselight Healthcare Service Limited,M42F,Adult Social Care Operations,Supplies and Services,"3,340.00",Sep-22
Slough Borough Council,806930,Roselight Healthcare Service Limited,M42F,Adult Social Care Operations,Supplies and Services,"2,360.00",Sep-22
Slough Borough Council,806930,Roselight Healthcare Service Limited,M44F,Adult Social Care Operations,Supplies and Services,"2,600.00",Sep-22
Slough Borough Council,806930,Roselight Healthcare Service Limited,M44F,Adult Social Care Operations,Supplies and Services,"3,340.00",Sep-22
Slough Borough Council,806930,Roselight Healthcare Service Limited,M44F,Adult Social Care Operations,Supplies and Services,"1,765.16",Sep-22
Slough Borough Council,806930,Roselight Healthcare Service Limited,M44F,Adult Social Care Operations,Supplies and Services,"1,930.00",Sep-22
Slough Borough Council,806930,Roselight Healthcare Service Limited,M44F,Adult Social Care Operations,Supplies and Services,"1,722.00",Sep-22
Slough Borough Council,806930,Roselight Healthcare Service Limited,M44F,Adult Social Care Operations,Supplies and Services,"1,506.00",Sep-22
Slough Borough Council,806930,Roselight Healthcare Service Limited,M44F,Adult Social Care Operations,Supplies and Services,"1,592.52",Sep-22
Slough Borough Council,1220,Royal Borough Of Windsor & Mhead,B015,Finance & Commercial,Supplies and Services,"2,912.50",Sep-22
Slough Borough Council,2168,RSM UK Risk Assurance Services LLP,B132,Finance,Supplies and Services,"24,050.00",Sep-22
Slough Borough Council,2168,RSM UK Risk Assurance Services LLP,B146,Finance & Commercial,Supplies and Services,"11,950.00",Sep-22
Slough Borough Council,2168,RSM UK Risk Assurance Services LLP,B146,Finance & Commercial,Supplies and Services,"15,550.00",Sep-22
Slough Borough Council,2168,RSM UK Risk Assurance Services LLP,B146,Finance & Commercial,Supplies and Services,"15,825.00",Sep-22
Slough Borough Council,2168,RSM UK Risk Assurance Services LLP,B146,Finance & Commercial,Supplies and Services,"24,500.00",Sep-22
Slough Borough Council,2168,RSM UK Risk Assurance Services LLP,B146,Finance & Commercial,Supplies and Services,"13,675.00",Sep-22
Slough Borough Council,2168,RSM UK Risk Assurance Services LLP,B146,Finance & Commercial,Supplies and Services,"27,500.00",Sep-22
Slough Borough Council,2168,RSM UK Risk Assurance Services LLP,B146,Finance & Commercial,Supplies and Services,"12,900.00",Sep-22
Slough Borough Council,2168,RSM UK Risk Assurance Services LLP,B146,Finance & Commercial,Supplies and Services,"13,675.00",Sep-22
Slough Borough Council,2168,RSM UK Risk Assurance Services LLP,B146,Finance & Commercial,Supplies and Services,"13,675.00",Sep-22
Slough Borough Council,2168,RSM UK Risk Assurance Services LLP,B146,Finance & Commercial,Supplies and Services,"13,675.00",Sep-22
Slough Borough Council,2168,RSM UK Risk Assurance Services LLP,B146,Finance & Commercial,Supplies and Services,"13,675.00",Sep-22
Slough Borough Council,2168,RSM UK Risk Assurance Services LLP,B146,Finance & Commercial,Supplies and Services,"13,675.00",Sep-22
Slough Borough Council,2168,RSM UK Risk Assurance Services LLP,B146,Finance & Commercial,Supplies and Services,"18,050.00",Sep-22
Slough Borough Council,808170,Rupert Griffiths t/a Land and Art,P220,Capital,Capital Charges,"4,984.00",Sep-22
Slough Borough Council,842,Ryvers Primary School,E620,Children & Families,Supplies and Services,"13,733.55",Sep-22
Slough Borough Council,808515,S R Estate Holding Limited,H205,Housing (People) Services,Supplies and Services,"1,705.00",Sep-22
Slough Borough Council,806398,Saba Park UK Services Limited,D122,Place Strategy & Infrastructure,Premises,"14,512.21",Sep-22
Slough Borough Council,806398,Saba Park UK Services Limited,D123,Place Strategy & Infrastructure,Supplies and Services,543.74,Sep-22
Slough Borough Council,806398,Saba Park UK Services Limited,D123,Place Strategy & Infrastructure,Supplies and Services,"2,235.60",Sep-22
Slough Borough Council,806398,Saba Park UK Services Limited,D123,Place Strategy & Infrastructure,Supplies and Services,"99,783.26",Sep-22
Slough Borough Council,806398,Saba Park UK Services Limited,D122,Place Strategy & Infrastructure,Supplies and Services,"11,087.03",Sep-22
Slough Borough Council,806398,Saba Park UK Services Limited,D123,Place Strategy & Infrastructure,Supplies and Services,"1,792.73",Sep-22
Slough Borough Council,806398,Saba Park UK Services Limited,D010,Place Strategy & Infrastructure,Supplies and Services,"18,770.42",Sep-22
Slough Borough Council,805875,Salutem Shared Services,M25D,Adult Social Care Operations,Supplies and Services,"6,187.80",Sep-22
Slough Borough Council,805875,Salutem Shared Services,M26E,Adult Social Care Operations,Supplies and Services,"3,883.05",Sep-22
Slough Borough Council,805875,Salutem Shared Services,M26E,Adult Social Care Operations,Supplies and Services,628.03,Sep-22
Slough Borough Council,805875,Salutem Shared Services,M26E,Adult Social Care Operations,Supplies and Services,607.76,Sep-22
Slough Borough Council,805875,Salutem Shared Services,M26E,Adult Social Care Operations,Supplies and Services,"3,757.80",Sep-22
Slough Borough Council,805875,Salutem Shared Services,M26E,Adult Social Care Operations,External Receipts,-628.02,Sep-22
Slough Borough Council,805875,Salutem Shared Services,M26E,Adult Social Care Operations,External Receipts,-607.76,Sep-22
Slough Borough Council,1580,Savills (UK) Ltd,P405,Capital,Capital Charges,"3,741.25",Sep-22
Slough Borough Council,1661,Scottish And Southern Electricity,P209,Capital,Capital Charges,"5,433.24",Sep-22
Slough Borough Council,3169,Seeability,M26E,Adult Social Care Operations,Supplies and Services,"11,377.00",Sep-22
Slough Borough Council,3169,Seeability,M26E,Adult Social Care Operations,Supplies and Services,"11,377.00",Sep-22
Slough Borough Council,759,Segro Plc,B082,Place Strategy & Infrastructure,Supplies and Services,"62,375.00",Sep-22
Slough Borough Council,803999,Sequence Care Group,M26E,Adult Social Care Operations,Supplies and Services,"12,307.65",Sep-22
Slough Borough Council,803999,Sequence Care Group,M26E,Adult Social Care Operations,Supplies and Services,"2,414.10",Sep-22
Slough Borough Council,803999,Sequence Care Group,M26E,Adult Social Care Operations,Supplies and Services,"-1,924.98",Sep-22
Slough Borough Council,808140,Service to the Aged Ltd,M15D,Adult Social Care Operations,Supplies and Services,"3,764.33",Sep-22
Slough Borough Council,2585,Seymour House,M26E,Adult Social Care Operations,Supplies and Services,"6,360.66",Sep-22
Slough Borough Council,2585,Seymour House,M26E,Adult Social Care Operations,Supplies and Services,"3,827.08",Sep-22
Slough Borough Council,2585,Seymour House,M26E,Adult Social Care Operations,Supplies and Services,"6,572.69",Sep-22
Slough Borough Council,2585,Seymour House,M42E,Adult Social Care Operations,Supplies and Services,"3,741.31",Sep-22
Slough Borough Council,2585,Seymour House,M26E,Adult Social Care Operations,External Receipts,-505.11,Sep-22
Slough Borough Council,2585,Seymour House,M26E,Adult Social Care Operations,External Receipts,-521.95,Sep-22
Slough Borough Council,805203,Shorts Agricultural Services Ltd,D342,Place Operations,Supplies and Services,"9,926.17",Sep-22
Slough Borough Council,805203,Shorts Agricultural Services Ltd,D342,Place Operations,Supplies and Services,"7,059.69",Sep-22
Slough Borough Council,805807,Siemens Mobility Limited,D500,Place Strategy & Infrastructure,Premises,"25,435.72",Sep-22
Slough Borough Council,805807,Siemens Mobility Limited,P235,Capital,Capital Charges,"18,292.40",Sep-22
Slough Borough Council,804922,SIMPSON ENVIRONMENTAL SERVICE LTD,B082,Place Strategy & Infrastructure,Premises,"7,889.71",Sep-22
Slough Borough Council,804922,SIMPSON ENVIRONMENTAL SERVICE LTD,B082,Place Strategy & Infrastructure,Premises,"8,161.24",Sep-22
Slough Borough Council,808216,SJG Consultancy Ltd,F123,Education & Inclusion,Supplies and Services,"5,850.00",Sep-22
Slough Borough Council,3333,Slk Services,F123,Education & Inclusion,Supplies and Services,"7,974.00",Sep-22
Slough Borough Council,3333,Slk Services,F123,Education & Inclusion,Supplies and Services,"8,873.00",Sep-22
Slough Borough Council,3333,Slk Services,F123,Education & Inclusion,Supplies and Services,"5,814.00",Sep-22
Slough Borough Council,1459,Slough And Eton C E School,E610,Children & Families,Supplies and Services,"1,680.13",Sep-22
Slough Borough Council,807834,Slough Children First,M99C,Children & Families,Supplies and Services,"2,619,512.80",Sep-22
Slough Borough Council,1913,Slough Crossroads Caring For Carers,M44C,Adult Social Care Operations,Supplies and Services,744.00,Sep-22
Slough Borough Council,1913,Slough Crossroads Caring For Carers,M44C,Adult Social Care Operations,Supplies and Services,"1,095.00",Sep-22
Slough Borough Council,1913,Slough Crossroads Caring For Carers,M44E,Adult Social Care Operations,Supplies and Services,800.00,Sep-22
Slough Borough Council,1913,Slough Crossroads Caring For Carers,M44E,Adult Social Care Operations,Supplies and Services,"1,040.00",Sep-22
Slough Borough Council,3503,Slough Day Nursery,F909,Children & Families,Supplies and Services,"3,010.95",Sep-22
Slough Borough Council,232,Slough West Indian Peoples Enterprise,F253,Children & Families,Agency Staff,600.00,Sep-22
Slough Borough Council,806733,Smart Move (Estate Agents UK) LTD,H205,Housing (People) Services,Supplies and Services,"1,485.00",Sep-22
Slough Borough Council,114,Solutions 4 Health Ltd,A01P,Public Health,Supplies and Services,"229,057.81",Sep-22
Slough Borough Council,114,Solutions 4 Health Ltd,A01P,Public Health,Supplies and Services,"60,000.00",Sep-22
Slough Borough Council,808407,SOS Electricals & Services Ltd,P093,Capital,Capital Charges,"86,212.86",Sep-22
Slough Borough Council,805742,Southern Tyre Recycling Ltd,D342,Place Operations,Supplies and Services,543.75,Sep-22
Slough Borough Council,807995,Sport4Kids,F382,Children & Families,Supplies and Services,"7,260.00",Sep-22
Slough Borough Council,807995,Sport4Kids,F382,Children & Families,Supplies and Services,"13,970.00",Sep-22
Slough Borough Council,807995,Sport4Kids,F382,Children & Families,Supplies and Services,"7,343.00",Sep-22
Slough Borough Council,807995,Sport4Kids,F382,Children & Families,Supplies and Services,"2,255.00",Sep-22
Slough Borough Council,807995,Sport4Kids,F382,Children & Families,Supplies and Services,"4,868.00",Sep-22
Slough Borough Council,804781,Sports and Leisure Management Ltd,C424,Community,Supplies and Services,"1,270.00",Sep-22
Slough Borough Council,804781,Sports and Leisure Management Ltd,C424,Community,Supplies and Services,635.00,Sep-22
Slough Borough Council,1875,Ss & Kk. Hothi,H205,Housing (People) Services,Premises,"2,040.00",Sep-22
Slough Borough Council,1875,Ss & Kk. Hothi,H205,Housing (People) Services,Premises,"11,771.25",Sep-22
Slough Borough Council,1875,Ss & Kk. Hothi,H205,Housing (People) Services,Premises,"15,816.66",Sep-22
Slough Borough Council,808401,SSE Energy Solution,K526,Building Management,Premises,"2,638.68",Sep-22
Slough Borough Council,808401,SSE Energy Solution,K526,Building Management,Premises,"4,376.95",Sep-22
Slough Borough Council,808401,SSE Energy Solution,K526,Building Management,Premises,580.79,Sep-22
Slough Borough Council,808401,SSE Energy Solution,K526,Building Management,Premises,"13,765.55",Sep-22
Slough Borough Council,808401,SSE Energy Solution,K526,Building Management,Premises,"4,184.81",Sep-22
Slough Borough Council,808401,SSE Energy Solution,K526,Building Management,Premises,"28,339.18",Sep-22
Slough Borough Council,808401,SSE Energy Solution,K526,Building Management,Premises,"5,034.23",Sep-22
Slough Borough Council,808401,SSE Energy Solution,K526,Building Management,Premises,"80,870.78",Sep-22
Slough Borough Council,808401,SSE Energy Solution,K526,Building Management,Premises,684.31,Sep-22
Slough Borough Council,1366,Ssi Schaefer Ltd,D610,Place Operations,Supplies and Services,"19,067.60",Sep-22
Slough Borough Council,803165,St Anthony�s Catholic Primary School & Nursery,E620,Children & Families,Supplies and Services,"48,105.62",Sep-22
Slough Borough Council,2918,St Bernard�S Rc Preparatory School,F909,Children & Families,Supplies and Services,"14,635.90",Sep-22
Slough Borough Council,3383,St Bernards Catholic Grammar School,E550,Children & Families,Supplies and Services,"512,751.18",Sep-22
Slough Borough Council,3547,St Ethelberts School,E620,Children & Families,Supplies and Services,"1,045.60",Sep-22
Slough Borough Council,1378,St Josephs Catholic High School,E610,Children & Families,Supplies and Services,"38,171.66",Sep-22
Slough Borough Council,806584,St Mattews Ltd,M15F,Adult Social Care Operations,Supplies and Services,"3,964.29",Sep-22
Slough Borough Council,806584,St Mattews Ltd,M15F,Adult Social Care Operations,Supplies and Services,"4,417.50",Sep-22
Slough Borough Council,806584,St Mattews Ltd,M15F,Adult Social Care Operations,Supplies and Services,"4,275.00",Sep-22
Slough Borough Council,806584,St Mattews Ltd,M15F,Adult Social Care Operations,Supplies and Services,"4,275.00",Sep-22
Slough Borough Council,806584,St Mattews Ltd,M15F,Adult Social Care Operations,Supplies and Services,"4,096.43",Sep-22
Slough Borough Council,805867,ST VINCENTS SCHOOL FOR THE BLIND,F462,Children & Families,Supplies and Services,"14,500.00",Sep-22
Slough Borough Council,805206,Staysure Tyres Ltd,D750,Place Operations,Transport,523.00,Sep-22
Slough Borough Council,804910,Stennetts Limited,D750,Place Operations,Supplies and Services,"1,000.00",Sep-22
Slough Borough Council,804910,Stennetts Limited,D880,Place Operations,Supplies and Services,"1,365.00",Sep-22
Slough Borough Council,808142,Step Together Ltd,M28E,Adult Social Care Operations,Supplies and Services,"1,119.99",Sep-22
Slough Borough Council,3151,Stillwater Associates Limited,D458,Place Strategy & Infrastructure,Supplies and Services,"1,620.00",Sep-22
Slough Borough Council,3151,Stillwater Associates Limited,D458,Place Strategy & Infrastructure,Supplies and Services,900.00,Sep-22
Slough Borough Council,805181,Street Furnishings Ltd,D880,Place Operations,Supplies and Services,903.76,Sep-22
Slough Borough Council,2688,Sunnyside Nursing Home,M15D,Adult Social Care Operations,Supplies and Services,"2,991.76",Sep-22
Slough Borough Council,2688,Sunnyside Nursing Home,M17C,Adult Social Care Operations,Supplies and Services,"1,457.14",Sep-22
Slough Borough Council,2688,Sunnyside Nursing Home,M17C,Adult Social Care Operations,Supplies and Services,"3,400.00",Sep-22
Slough Borough Council,2688,Sunnyside Nursing Home,M17C,Adult Social Care Operations,Supplies and Services,"3,400.00",Sep-22
Slough Borough Council,2688,Sunnyside Nursing Home,M17C,Adult Social Care Operations,Supplies and Services,"2,064.29",Sep-22
Slough Borough Council,293,Surecare Slough,A07R,Adult Social Care Operations,Supplies and Services,"2,308.48",Sep-22
Slough Borough Council,293,Surecare Slough,A07R,Adult Social Care Operations,Supplies and Services,"2,134.98",Sep-22
Slough Borough Council,293,Surecare Slough,A07R,Adult Social Care Operations,Supplies and Services,"1,948.20",Sep-22
Slough Borough Council,293,Surecare Slough,A07R,Adult Social Care Operations,Supplies and Services,"2,392.87",Sep-22
Slough Borough Council,293,Surecare Slough,A07R,Adult Social Care Operations,Supplies and Services,"2,406.60",Sep-22
Slough Borough Council,293,Surecare Slough,A07R,Adult Social Care Operations,Supplies and Services,668.95,Sep-22
Slough Borough Council,293,Surecare Slough,M41D,Adult Social Care Operations,Supplies and Services,"2,406.60",Sep-22
Slough Borough Council,293,Surecare Slough,M44C,Adult Social Care Operations,Supplies and Services,"1,088.79",Sep-22
Slough Borough Council,293,Surecare Slough,M44C,Adult Social Care Operations,Supplies and Services,802.20,Sep-22
Slough Borough Council,293,Surecare Slough,M44C,Adult Social Care Operations,Supplies and Services,"2,502.10",Sep-22
Slough Borough Council,293,Surecare Slough,M44C,Adult Social Care Operations,Supplies and Services,"1,634.83",Sep-22
Slough Borough Council,293,Surecare Slough,M44C,Adult Social Care Operations,Supplies and Services,"2,406.60",Sep-22
Slough Borough Council,293,Surecare Slough,M44C,Adult Social Care Operations,Supplies and Services,783.10,Sep-22
Slough Borough Council,293,Surecare Slough,M44C,Adult Social Care Operations,Supplies and Services,"2,941.40",Sep-22
Slough Borough Council,293,Surecare Slough,M44C,Adult Social Care Operations,Supplies and Services,"1,337.00",Sep-22
Slough Borough Council,293,Surecare Slough,M44C,Adult Social Care Operations,Supplies and Services,"2,406.60",Sep-22
Slough Borough Council,293,Surecare Slough,M44C,Adult Social Care Operations,Supplies and Services,"2,674.00",Sep-22
Slough Borough Council,293,Surecare Slough,M44C,Adult Social Care Operations,Supplies and Services,802.20,Sep-22
Slough Borough Council,293,Surecare Slough,M44C,Adult Social Care Operations,Supplies and Services,935.90,Sep-22
Slough Borough Council,293,Surecare Slough,M44C,Adult Social Care Operations,Supplies and Services,534.80,Sep-22
Slough Borough Council,293,Surecare Slough,M44C,Adult Social Care Operations,Supplies and Services,"2,406.60",Sep-22
Slough Borough Council,293,Surecare Slough,M44C,Adult Social Care Operations,Supplies and Services,668.36,Sep-22
Slough Borough Council,293,Surecare Slough,M44C,Adult Social Care Operations,Supplies and Services,"3,208.80",Sep-22
Slough Borough Council,293,Surecare Slough,M44C,Adult Social Care Operations,Supplies and Services,"2,674.00",Sep-22
Slough Borough Council,293,Surecare Slough,M44C,Adult Social Care Operations,Supplies and Services,"1,256.78",Sep-22
Slough Borough Council,293,Surecare Slough,M44C,Adult Social Care Operations,Supplies and Services,"2,406.60",Sep-22
Slough Borough Council,293,Surecare Slough,M44C,Adult Social Care Operations,Supplies and Services,"1,202.16",Sep-22
Slough Borough Council,293,Surecare Slough,M44C,Adult Social Care Operations,Supplies and Services,533.54,Sep-22
Slough Borough Council,293,Surecare Slough,M44C,Adult Social Care Operations,Supplies and Services,595.40,Sep-22
Slough Borough Council,293,Surecare Slough,M44C,Adult Social Care Operations,Supplies and Services,"1,337.84",Sep-22
Slough Borough Council,293,Surecare Slough,M44C,Adult Social Care Operations,Supplies and Services,"1,361.83",Sep-22
Slough Borough Council,293,Surecare Slough,M44C,Adult Social Care Operations,Supplies and Services,802.20,Sep-22
Slough Borough Council,293,Surecare Slough,M44C,Adult Social Care Operations,Supplies and Services,"1,087.58",Sep-22
Slough Borough Council,293,Surecare Slough,M44C,Adult Social Care Operations,Supplies and Services,936.04,Sep-22
Slough Borough Council,293,Surecare Slough,M44C,Adult Social Care Operations,Supplies and Services,"1,929.32",Sep-22
Slough Borough Council,293,Surecare Slough,M44C,Adult Social Care Operations,Supplies and Services,935.09,Sep-22
Slough Borough Council,293,Surecare Slough,M44C,Adult Social Care Operations,Supplies and Services,"1,051.52",Sep-22
Slough Borough Council,293,Surecare Slough,M44D,Adult Social Care Operations,Supplies and Services,"2,406.60",Sep-22
Slough Borough Council,293,Surecare Slough,M44D,Adult Social Care Operations,Supplies and Services,"2,406.60",Sep-22
Slough Borough Council,293,Surecare Slough,M44D,Adult Social Care Operations,Supplies and Services,"1,337.00",Sep-22
Slough Borough Council,293,Surecare Slough,M44D,Adult Social Care Operations,Supplies and Services,"2,406.60",Sep-22
Slough Borough Council,293,Surecare Slough,M44D,Adult Social Care Operations,Supplies and Services,935.95,Sep-22
Slough Borough Council,293,Surecare Slough,M44D,Adult Social Care Operations,Supplies and Services,"2,406.60",Sep-22
Slough Borough Council,293,Surecare Slough,M44D,Adult Social Care Operations,Supplies and Services,"1,199.24",Sep-22
Slough Borough Council,293,Surecare Slough,M44D,Adult Social Care Operations,Supplies and Services,"1,184.20",Sep-22
Slough Borough Council,293,Surecare Slough,M44E,Adult Social Care Operations,Supplies and Services,802.20,Sep-22
Slough Borough Council,293,Surecare Slough,M44E,Adult Social Care Operations,Supplies and Services,687.84,Sep-22
Slough Borough Council,293,Surecare Slough,M44F,Adult Social Care Operations,Supplies and Services,687.60,Sep-22
Slough Borough Council,293,Surecare Slough,M45C,Adult Social Care Operations,Supplies and Services,945.45,Sep-22
Slough Borough Council,293,Surecare Slough,M45C,Adult Social Care Operations,Supplies and Services,"2,543.45",Sep-22
Slough Borough Council,293,Surecare Slough,M48C,Adult Social Care Operations,Supplies and Services,"2,406.60",Sep-22
Slough Borough Council,293,Surecare Slough,M48C,Adult Social Care Operations,Supplies and Services,"2,785.69",Sep-22
Slough Borough Council,293,Surecare Slough,M48C,Adult Social Care Operations,Supplies and Services,"1,375.20",Sep-22
Slough Borough Council,293,Surecare Slough,M48C,Adult Social Care Operations,Supplies and Services,"2,674.00",Sep-22
Slough Borough Council,1833,Swarco Traffic Limited,D500,Place Strategy & Infrastructure,Premises,720.00,Sep-22
Slough Borough Council,803578,T Haynes Chorley & Co Ltd t/a Spectrum Plastics,C104,Community,Supplies and Services,"1,163.00",Sep-22
Slough Borough Council,805683,Team Carita DCS Limited,M44C,Adult Social Care Operations,Supplies and Services,560.00,Sep-22
Slough Borough Council,805683,Team Carita DCS Limited,M44C,Adult Social Care Operations,Supplies and Services,"1,072.00",Sep-22
Slough Borough Council,807134,TECHNIMOVE LTD,B342,Digital and Strategic IT,Capital Charges,"1,300.00",Sep-22
Slough Borough Council,3369,Teeny Boppers Montessori School,F909,Children & Families,Supplies and Services,"8,354.28",Sep-22
Slough Borough Council,807878,Thames Valley Buses,F123,Education & Inclusion,Supplies and Services,605.88,Sep-22
Slough Borough Council,807878,Thames Valley Buses,D512,Place Strategy & Infrastructure,Supplies and Services,"6,911.55",Sep-22
Slough Borough Council,807878,Thames Valley Buses,D512,Place Strategy & Infrastructure,Supplies and Services,"13,574.31",Sep-22
Slough Borough Council,807878,Thames Valley Buses,D512,Place Strategy & Infrastructure,Supplies and Services,"1,578.38",Sep-22
Slough Borough Council,807878,Thames Valley Buses,D512,Place Strategy & Infrastructure,Supplies and Services,"-2,202.85",Sep-22
Slough Borough Council,1078,Thames Valley Chamber Of Commerce Group,B415,Place Strategy & Infrastructure,Supplies and Services,"2,018.80",Sep-22
Slough Borough Council,717,Thames Water Utilities Limited,J015,Place Management,Premises,"4,766.94",Sep-22
Slough Borough Council,717,Thames Water Utilities Limited,J015,Place Management,Premises,"4,493.05",Sep-22
Slough Borough Council,717,Thames Water Utilities Limited,J015,Place Management,Premises,"44,710.93",Sep-22
Slough Borough Council,808451,The Address Management,H205,Housing (People) Services,Supplies and Services,"1,550.00",Sep-22
Slough Borough Council,808451,The Address Management,H205,Housing (People) Services,Supplies and Services,"1,705.00",Sep-22
Slough Borough Council,808451,The Address Management,H205,Housing (People) Services,Supplies and Services,"1,705.00",Sep-22
Slough Borough Council,808451,The Address Management,H205,Housing (People) Services,Supplies and Services,"1,705.00",Sep-22
Slough Borough Council,808451,The Address Management,H205,Housing (People) Services,Supplies and Services,"1,705.00",Sep-22
Slough Borough Council,808451,The Address Management,H205,Housing (People) Services,Supplies and Services,"1,800.00",Sep-22
Slough Borough Council,808451,The Address Management,H205,Housing (People) Services,Supplies and Services,"1,350.00",Sep-22
Slough Borough Council,808451,The Address Management,H205,Housing (People) Services,Supplies and Services,"1,650.00",Sep-22
Slough Borough Council,808451,The Address Management,H205,Housing (People) Services,Supplies and Services,"1,800.00",Sep-22
Slough Borough Council,808451,The Address Management,H205,Housing (People) Services,Supplies and Services,"1,650.00",Sep-22
Slough Borough Council,808451,The Address Management,H205,Housing (People) Services,Supplies and Services,"1,650.00",Sep-22
Slough Borough Council,3344,The Caldecott Foundation,F551,Children & Families,Supplies and Services,"12,117.86",Sep-22
Slough Borough Council,808541,The Expressive Child,F417,Education & Inclusion,Supplies and Services,589.50,Sep-22
Slough Borough Council,653,The Godolphin Junior Academy,E620,Children & Families,Supplies and Services,"4,107.64",Sep-22
Slough Borough Council,1385,The Langley Academy,E610,Children & Families,Supplies and Services,"21,200.00",Sep-22
Slough Borough Council,803300,The Langley Academy Primary,E610,Children & Families,Supplies and Services,"5,006.97",Sep-22
Slough Borough Council,806847,The Langley Heritage Primary Academy,E620,Children & Families,Supplies and Services,"28,435.16",Sep-22
Slough Borough Council,805400,The Leading Care Company,M44C,Adult Social Care Operations,Supplies and Services,"1,146.06",Sep-22
Slough Borough Council,805400,The Leading Care Company,M44C,Adult Social Care Operations,Supplies and Services,906.12,Sep-22
Slough Borough Council,805400,The Leading Care Company,M44C,Adult Social Care Operations,Supplies and Services,"1,047.57",Sep-22
Slough Borough Council,805400,The Leading Care Company,M44C,Adult Social Care Operations,Supplies and Services,"1,826.36",Sep-22
Slough Borough Council,805400,The Leading Care Company,M44C,Adult Social Care Operations,Supplies and Services,725.95,Sep-22
